Workbook

Sheet input
B2: =language!BY1 -> Dateneingabe
D4: N | E4: Y1 | F4: Y2 | G4: Y3 | H4: Y4 | I4: Y5
D5: 1 | E5: 74.03 | F5: 74.002
D6: 2 | E6: 73.995 | F6: 73.992
D7: 3 | E7: 73.988 | F7: 74.024
D8: 4 | E8: 74.002 | F8: 73.996
D9: 5 | E9: 73.992 | F9: 74.007
D10: 6 | E10: 74.009 | F10: 73.994
D11: 7 | E11: 73.995 | F11: 74.006
D12: 8 | E12: 73.985 | F12: 74.003
D13: 9 | E13: 74.008 | F13: 73.995
D14: 10 | E14: 73.998 | F14: 74
D15: 11 | E15: 73.994 | F15: 73.998
D16: 12 | E16: 74.004 | F16: 74
D17: 13 | E17: 73.983 | F17: 74.002
D18: 14 | E18: 74.006 | F18: 73.967
D19: 15 | E19: 74.012 | F19: 74.014
D20: 16 | E20: 74 | F20: 73.984
D21: 17 | E21: 73.994 | F21: 74.012
D22: 18 | E22: 74.006 | F22: 74.01
D23: 19 | E23: 73.984 | F23: 74.002
D24: 20 | E24: 74 | F24: 74.01
D25: 21 | E25: 73.982 | F25: 74.001
D26: 22 | E26: 74.004 | F26: 73.999
D27: 23 | E27: 74.01 | F27: 73.989
D28: 24 | E28: 74.015 | F28: 74.008
D29: 25 | E29: 73.982 | F29: 73.984
D30: 26 | E30: 74.03 | F30: 74.002
D31: 27 | E31: 73.995 | F31: 73.992
D32: 28 | E32: 73.988 | F32: 74.024
D33: 29 | E33: 74.002 | F33: 73.996
D34: 30 | E34: 73.992 | F34: 74.007
D35: 31 | E35: 74.009 | F35: 73.994
D36: 32 | E36: 73.995 | F36: 74.006
D37: 33 | E37: 73.985 | F37: 74.003
D38: 34 | E38: 74.008 | F38: 73.995
D39: 35 | E39: 73.998 | F39: 74
D40: 36 | E40: 73.994 | F40: 73.998
D41: 37
D42: 38
D43: 39
D44: 40
D45: 41
D46: 42
D47: 43
D48: 44
D49: 45
D50: 46
D51: 47
D52: 48
D53: 49
D54: 50
B56: =language!BZ1 -> Bis zu 50 Stichproben á 2 - 5 Werte
B57: =language!CA1 -> Bei jeder Stichprobe muss die gleiche Anzahl an Messerten aufgenommen werden

Sheet output
N2: Prozessfähigkeit | AB2: =IF(calculation!W57<>0,language!BK1,language!BJ1) -> Status: Die Werte im Arbeitsblatt sind kalkuliert
Q4: Werte können geändert werden
Q5: Werte werden berechnet (Blatt Berechnung)
Q7: Artikel: | R7: Halter
Q8: A-Nummer | R8: C2G234824ß
Q9: Zeichnung: | R9: UZT1340124357
Q10: Prüfer: | R10: Maier
Q11: Messmittel: | R11: Messschieber 47.22452
Q12: Datum: | R12: 2014-12-10
Q13: Merkmal: | R13: Länge
Q14: Maßeinheit: | R14: mm
Q15: Sollwert msoll = | S15: 74
Q16: Unterer Grenzwert UGW = | S16: 73.95
Q17: Oberer Grenzwert OGW = | S17: 74.05
Q18: Anzahl Klassen Histogramm = | S18: 20
Q19: Ppk < | R19: 1.33 | S19: Prozess nicht fähig
Q20: Ppk | R20: zwischen | S20: Prozess bedingt fähig
Q21: Ppk > | R21: 1.66 | S21: Prozess fähig
Q23: Umfang der Stichprobe | S23: =Anzahl -> 72
Q24: Mittelwert m | S24: =Mittelwert -> 73.99986111
Q25: Die Werte sind | S25: =IF(calculation!DH22<0.05,"nicht normalverteilt","normalverteilt") -> normalverteilt
Q27: Standardabweich. s (ges.) | S27: =Standardabweichung -> 0.01120777592
Q28: Gesamtprozess-fähigkeit | R28: Ppu | S28: =CPU -> 1.482932073
R29: Ppo | S29: =CPO -> 1.491193533
R30: Pp | S30: =CP -> 1.487062803
R31: Ppk | S31: =CPK -> 1.482932073
Q32: ="evaluation Ppk =>" -> evaluation Ppk => | S32: =IF(R19="","",(IF(S31<R19,S19,IF(S31>R21,S21,S20)))) -> Prozess bedingt fähig
Q34: Berechnete Leistung in ppm
Q35: Überschreitungs-anteil | R35: pUGW | S35: =BERPUGW -> 4.317644802
R36: pOGW | S36: =BERPOGW -> 3.84602726
R37: p | S37: =BERP -> 8.163672062
Q39: Beobachtete Leistung in ppm
Q40: Überschreitungs-anteil | R40: pUGW | S40: =BEOBPUGW -> 0
R41: pOGW | S41: =BEOBPOGW -> 0
R42: p | S42: =BEOBPPM -> 0
Q44: Cpk < | R44: 1.33 | S44: Prozess nicht fähig | U44: Definition Ppk und Cpk nach nach ISO22514, Bosch; (package SixsSigma) und Minitab Für Cpk (Standardabweichung Rquer und Konstante für erwartungsgetreue Schätzung) Für Ppk (Standardabweichung über die gesamte Grundgesamtheit) siehe auch: https://www.sixsigmablackbelt.de/definition-von-cpk-und-ppk-nach-iso-22514-und-aiag-spc/
Q45: Cpk | R45: zwischen | S45: Prozess bedingt fähig
Q46: Cpk > | R46: 1.66 | S46: Prozess fähig
Q48: Standardabweich. s (innerhalb.) | S48: =calculation!BI46 -> 0.01196808511
Q49: Prozessfähigkeit (innerhalb, potentiell) | R49: Cpu | S49: =calculation!BI49 -> 1.38872428
R50: Cpo | S50: =calculation!BI50 -> 1.396460905
R51: Cp | S51: =calculation!BI48 -> 1.392592593
R52: Cpk | S52: =calculation!BI51 -> 1.38872428
Q53: ="Bewertung Cpk =>" -> Bewertung Cpk => | S53: =IF(R44="","",(IF(S52<R44,S44,IF(S52>R46,S46,S45)))) -> Prozess bedingt fähig

Sheet calculation (hidden)
F2: UGW | G2: =output!S16 -> 73.95 | P2: UGW | Q2: 73.95 | W2: =IF(Q2<>G2,1,0) -> 0
F3: OGW | G3: =output!S17 -> 74.05 | P3: OGW | Q3: 74.05 | W3: 0
BG4: Prozess- und Maschinenfähigkeit | BW4: Stichprobe chronologisch | CP4: Wahrscheinlichkeitsnetz | CX4: Test auf Normalverteilung (Anderson Darling)
B5: x | L5: x | AF5: Xquer Karte | AJ5: Range Karte | AP5: Stichprobe Berechnung
C6: Y1 | D6: Y2 | E6: Y3 | F6: Y4 | G6: Y5 | M6: Y1 | N6: Y2 | O6: Y3 | P6: Y4 | Q6: Y5 | AA6: Mittelwert | AB6: Standardabweichung | AC6: Range | AE6: Zähler | AF6: Mittelwert | AG6: X quer | AH6: OEG X quer | AI6: UEG X quer | AJ6: Mittelwert | AK6: Range | AL6: OEG R | AO6: i | AP6: Wert für Berechnung | AQ6: <UGW | AR6: >OGW | AS6: i | AT6: Stichprobe 1 | AU6: i | AV6: Stichprobe 2 | AX6: i | AY6: Stichprobe 3 | BA6: i | BB6: Stichprobe 4 | BD6: i | BE6: Stichprobe 5 | BW6: Zähler | BX6: X Wert | BY6: Y1 Wert | BZ6: Y2 Wert | CA6: Y3 Wert | CB6: Y4 Wert | CC6: Y5 Wert | CE6: OGW | CF6: UGW | CG6: =" - 1 Sigma" -> - 1 Sigma | CH6: =" + 1 Sigma" -> + 1 Sigma | CI6: ="- 2 Sigma" -> - 2 Sigma | CJ6: =" + 2 Sigma" -> + 2 Sigma | CK6: =" - 3 Sigma" -> - 3 Sigma | CL6: =" + 3 Sigma" -> + 3 Sigma | CM6: Mittelwert | CQ6: u | CR6: x-quer+u∙s | CS6: Helfer | CT6: Fehlerindikator | CX6: i | CY6: xi sortiert | CZ6: Zähler | DB6: BG | DD6: S | DE6: z | DG6: Wert | DH6: z
B7: 1 | C7: =IF(input!E5="","",input!E5) -> 74.03 | D7: =IF(input!F5="","",input!F5) -> 74.002 | E7: =IF(input!G5="","",input!G5) ->  | F7: =IF(input!H5="","",input!H5) ->  | G7: =IF(input!I5="","",input!I5) ->  | L7: 1 | M7: 74.03 | N7: 74.002 | S7: =IF(M7<>C7,1,0) -> 0 | T7: =IF(N7<>D7,1,0) -> 0 | U7: 0 | V7: 0 | W7: 0 | AA7: =IF(M7<>"",AVERAGE(M7:Q7),"") -> 74.016 | AB7: =IF(M7<>"",_xlfn.STDEV.P(M7:Q7),"") -> 0.014 | AC7: =IF(M7<>"",MAX(M7:Q7)-MIN(M7:Q7),"") -> 0.028 | AE7: 1 | AF7: =IF(AA7="",NA(),xquerquer) -> 73.99986111 | AG7: =IF(AA7="",NA(),AA7) -> 74.016 | AH7: =IF(AA7="",NA(),xquerquer+(Azwei*Rquer)) -> 74.02524111 | AI7: =IF(AA7="",NA(),xquerquer-(Azwei*Rquer)) -> 73.97448111 | AJ7: =IF(AA7="",NA(),Rquer) -> 0.0135 | AK7: =IF(AA7="",NA(),AC7) -> 0.028 | AL7: =IF(AA7="",NA(),Dvier*Rquer) -> 0.044145 | AO7: 1 | AP7: =IF($BI$41=2,IF(AV7<>"",AV7,""),(IF($BI$41=3,IF(AY7<>"",AY7,""),(IF($BI$41=4,IF(BB7<>"",BB7,""),IF(BE7<>"",BE7,"")))))) -> 74.03 | AQ7: =IF(AP7<>"",IF(AP7<UGW,1,0),"") -> 0 | AR7: =IF(AP7<>"",IF(AP7>OGW,1,0),"") -> 0 | AU7: E5 | AV7: =IF($M$7="","",$M$7) -> 74.03 | AX7: E5 | AY7: =IF($M$7="","",$M$7) -> 74.03 | BA7: E5 | BB7: =IF($M$7="","",$M$7) -> 74.03 | BD7: E5 | BE7: =IF($M$7="","",$M$7) -> 74.03 | BH7: Datum: | BI7: =Datum -> 2014-12-10 | BW7: 1 | BX7: =IF((AnzahlderStichproben>BW7),BW7,AnzahlderStichproben) -> 1 | BY7: =IF(input!E5<>"",input!E5,"") -> 74.03 | BZ7: =IF(input!F5<>"",input!F5,NA()) -> 74.002 | CA7: =IF(input!G5<>"",input!G5,NA()) ->  | CB7: =IF(input!H5<>"",input!H5,NA()) ->  | CC7: =IF(input!I5<>"",input!I5,NA()) ->  | CE7: =IF($BI$12="",#N/A,IF(AP7<>"",OGW,CE6)) -> 74.05 | CF7: =IF($BI$11="",#N/A,(IF(AP7<>"",$BI$11,CF6))) -> 73.95 | CG7: =Mittelwert-Standardabweichung -> 73.98865334 | CH7: =Mittelwert+Standardabweichung -> 74.01106889 | CI7: =Mittelwert-2*Standardabweichung -> 73.97744556 | CJ7: =Mittelwert+2*Standardabweichung -> 74.02227666 | CK7: =Mittelwert-3*Standardabweichung -> 73.96623778 | CL7: =Mittelwert+3*Standardabweichung -> 74.03348444 | CM7: =Mittelwert -> 73.99986111 | CQ7: -6 | CR7: =Mittelwert+CQ7*Standardabweichung -> 73.93261446 | CS7: 3 | CT7: =CS7*2 -> 6 | CU7: =CR7 -> 73.93261446 | CX7: 1 | CY7: =IF(AP7="",NA(),SMALL(xi,CZ7)) -> 73.967 | CZ7: =IF(AP7="","",1) -> 1 | DA7: =IF(AP7="","",NORMSDIST((CY7-Mittelwert)/Standardabweichung)-0.00000001) -> 0.001683966249 | DB7: =IF(AP7="","",1-DA7) -> 0.9983160338 | DC7: =IF(IF(AP7="","",SMALL(BG,CZ7))=0,0.0001,IF(AP7="","",SMALL(BG,CZ7))) -> 0.003582201484 | DD7: =IF(AP7="","",(2*CZ7-1)*(LN(DC7)+LN(DA7))) -> -12.01838113 | DE7: =IF(AP7="",NA(),NORMSINV((CZ7-0.3)/(Anzahl+0.4))) -> -2.338969413 | DG7: =Standardabweichung*DH7+Mittelwert -> 74.03348444 | DH7: 3
B8: 2 | C8: =IF(input!E6="","",input!E6) -> 73.995 | D8: =IF(input!F6="","",input!F6) -> 73.992 | E8: =IF(input!G6="","",input!G6) ->  | F8: =IF(input!H6="","",input!H6) ->  | G8: =IF(input!I6="","",input!I6) ->  | L8: 2 | M8: 73.995 | N8: 73.992 | S8: =IF(M8<>C8,1,0) -> 0 | T8: =IF(N8<>D8,1,0) -> 0 | U8: =IF(O8<>E8,1,0) -> 0 | V8: =IF(P8<>F8,1,0) -> 0 | W8: =IF(Q8<>G8,1,0) -> 0 | AA8: =IF(M8<>"",AVERAGE(M8:Q8),"") -> 73.9935 | AB8: =IF(M8<>"",_xlfn.STDEV.P(M8:Q8),"") -> 0.0015 | AC8: =IF(M8<>"",MAX(M8:Q8)-MIN(M8:Q8),"") -> 0.003 | AE8: =IF(AA8="",AE7,L8) -> 2 | AF8: 73.99986111 | AG8: 73.9935 | AH8: 74.02524111 | AI8: 73.97448111 | AJ8: 0.0135 | AK8: =IF(AA8="",NA(),AC8) -> 0.003 | AL8: 0.044145 | AO8: 2 | AP8: =IF($BI$41=2,IF(AV8<>"",AV8,""),(IF($BI$41=3,IF(AY8<>"",AY8,""),(IF($BI$41=4,IF(BB8<>"",BB8,""),IF(BE8<>"",BE8,"")))))) -> 74.002 | AQ8: 0 | AR8: 0 | AV8: =IF($N$7="","",$N$7) -> 74.002 | AY8: =IF($N$7="","",$N$7) -> 74.002 | BB8: =IF($N$7="","",$N$7) -> 74.002 | BE8: =IF($N$7="","",$N$7) -> 74.002 | BH8: Merkmal: | BI8: =Merkmal -> Länge | BW8: 2 | BX8: 2 | BY8: =IF(input!E6<>"",input!E6,BY7) -> 73.995 | BZ8: =IF(input!F6<>"",input!F6,BZ7) -> 73.992 | CA8: =IF(input!G6<>"",input!G6,CA7) ->  | CB8: =IF(input!H6<>"",input!H6,CB7) ->  | CC8: =IF(input!I6<>"",input!I6,CC7) ->  | CE8: 74.05 | CF8: =IF($BI$11="",#N/A,(IF(AP8<>"",$BI$11,CF7))) -> 73.95 | CG8: =CG7 -> 73.98865334 | CH8: 74.01106889 | CI8: 73.97744556 | CJ8: 74.02227666 | CK8: 73.96623778 | CL8: 74.03348444 | CM8: 73.99986111 | CQ8: -5 | CR8: 73.94382223 | CS8: 3 | CT8: =CS8*2 -> 6 | CU8: =CU7 -> 73.93261446 | CX8: 2 | CY8: 73.982 | CZ8: =IF(AP8="","",1+CZ7) -> 2 | DA8: 0.05550882389 | DB8: 0.9444911761 | DC8: =IF(AP8="","",SMALL(BG,CZ8)) -> 0.003582201484 | DD8: -25.56897303 | DE8: -1.98664883 | DG8: =Standardabweichung*DH8+Mittelwert -> 73.99986111 | DH8: 0
B9: 3 | C9: =IF(input!E7="","",input!E7) -> 73.988 | D9: =IF(input!F7="","",input!F7) -> 74.024 | E9: =IF(input!G7="","",input!G7) ->  | F9: =IF(input!H7="","",input!H7) ->  | G9: =IF(input!I7="","",input!I7) ->  | L9: 3 | M9: 73.988 | N9: 74.024 | S9: 0 | T9: 0 | U9: 0 | V9: 0 | W9: 0 | AA9: 74.006 | AB9: 0.018 | AC9: 0.036 | AE9: =IF(AA9="",AE8,L9) -> 3 | AF9: 73.99986111 | AG9: 74.006 | AH9: 74.02524111 | AI9: 73.97448111 | AJ9: 0.0135 | AK9: 0.036 | AL9: 0.044145 | AO9: 3 | AP9: 73.995 | AQ9: 0 | AR9: 0 | AU9: E6 | AV9: =IF($M$8="","",$M$8) -> 73.995 | AY9: =IF($O$7="","",$O$7) ->  | BB9: =IF($O$7="","",$O$7) ->  | BE9: =IF($O$7="","",$O$7) ->  | BH9: Maßeinheit: | BI9: =Maßeinheit -> mm | BW9: 3 | BX9: 3 | BY9: =IF(input!E7<>"",input!E7,BY8) -> 73.988 | BZ9: =IF(input!F7<>"",input!F7,BZ8) -> 74.024 | CA9: =IF(input!G7<>"",input!G7,CA8) ->  | CB9: =IF(input!H7<>"",input!H7,CB8) ->  | CC9: =IF(input!I7<>"",input!I7,CC8) ->  | CE9: 74.05 | CF9: 73.95 | CG9: 73.98865334 | CH9: 74.01106889 | CI9: 73.97744556 | CJ9: 74.02227666 | CK9: 73.96623778 | CL9: 74.03348444 | CM9: 73.99986111 | CQ9: -4 | CR9: 73.95503001 | CS9: 3 | CT9: 6 | CU9: =CU8 -> 73.93261446 | CX9: 3 | CY9: 73.982 | CZ9: 3 | DA9: 0.05550882389 | DB9: 0.9444911761 | DC9: 0.01562940603 | DD9: -35.2490721 | DE9: -1.783004103 | DG9: =Standardabweichung*DH9+Mittelwert -> 73.96623778 | DH9: -3
B10: 4 | C10: =IF(input!E8="","",input!E8) -> 74.002 | D10: =IF(input!F8="","",input!F8) -> 73.996 | E10: =IF(input!G8="","",input!G8) ->  | F10: =IF(input!H8="","",input!H8) ->  | G10: =IF(input!I8="","",input!I8) ->  | L10: 4 | M10: 74.002 | N10: 73.996 | S10: 0 | T10: 0 | U10: 0 | V10: 0 | W10: 0 | AA10: 73.999 | AB10: 0.003 | AC10: 0.006 | AE10: 4 | AF10: 73.99986111 | AG10: 73.999 | AH10: 74.02524111 | AI10: 73.97448111 | AJ10: 0.0135 | AK10: 0.006 | AL10: 0.044145 | AO10: 4 | AP10: 73.992 | AQ10: 0 | AR10: 0 | AV10: =IF($N$8="","",$N$8) -> 73.992 | AX10: E6 | AY10: =IF($M$8="","",$M$8) -> 73.995 | BB10: =IF($P$7="","",$P$7) ->  | BE10: =IF($P$7="","",$P$7) ->  | BH10: Sollwert msoll = | BI10: =Sollwert -> 74 | BW10: 4 | BX10: 4 | BY10: =IF(input!E8<>"",input!E8,BY9) -> 74.002 | BZ10: =IF(input!F8<>"",input!F8,BZ9) -> 73.996 | CA10: =IF(input!G8<>"",input!G8,CA9) ->  | CB10: =IF(input!H8<>"",input!H8,CB9) ->  | CC10: =IF(input!I8<>"",input!I8,CC9) ->  | CE10: 74.05 | CF10: 73.95 | CG10: 73.98865334 | CH10: 74.01106889 | CI10: 73.97744556 | CJ10: 74.02227666 | CK10: 73.96623778 | CL10: 74.03348444 | CM10: 73.99986111 | CQ10: -2 | CR10: 73.97744556 | CS10: 3 | CT10: 6 | CU10: 73.93261446 | CX10: 4 | CY10: 73.983 | CZ10: 4 | DA10: 0.06623766508 | DB10: 0.9337623349 | DC10: 0.01562940603 | DD10: -48.11175009 | DE10: -1.634232958
B11: 5 | C11: =IF(input!E9="","",input!E9) -> 73.992 | D11: =IF(input!F9="","",input!F9) -> 74.007 | E11: =IF(input!G9="","",input!G9) ->  | F11: =IF(input!H9="","",input!H9) ->  | G11: =IF(input!I9="","",input!I9) ->  | L11: 5 | M11: 73.992 | N11: 74.007 | S11: 0 | T11: 0 | U11: 0 | V11: 0 | W11: 0 | AA11: 73.9995 | AB11: 0.0075 | AC11: 0.015 | AE11: 5 | AF11: 73.99986111 | AG11: 73.9995 | AH11: 74.02524111 | AI11: 73.97448111 | AJ11: 0.0135 | AK11: 0.015 | AL11: 0.044145 | AO11: 5 | AP11: 73.988 | AQ11: 0 | AR11: 0 | AU11: E7 | AV11: =IF($M$9="","",$M$9) -> 73.988 | AY11: =IF($N$8="","",$N$8) -> 73.992 | BA11: E6 | BB11: =IF($M$8="","",$M$8) -> 73.995 | BE11: =IF($Q$7="","",$Q$7) ->  | BH11: Unterer Grenzwert UGW = | BI11: =IF(output!S16="","",output!S16) -> 73.95 | BW11: 5 | BX11: 5 | BY11: =IF(input!E9<>"",input!E9,BY10) -> 73.992 | BZ11: =IF(input!F9<>"",input!F9,BZ10) -> 74.007 | CA11: =IF(input!G9<>"",input!G9,CA10) ->  | CB11: =IF(input!H9<>"",input!H9,CB10) ->  | CC11: =IF(input!I9<>"",input!I9,CC10) ->  | CE11: 74.05 | CF11: 73.95 | CG11: 73.98865334 | CH11: 74.01106889 | CI11: 73.97744556 | CJ11: 74.02227666 | CK11: 73.96623778 | CL11: 74.03348444 | CM11: 73.99986111 | CQ11: -1 | CR11: 73.98865334 | CS11: 3 | CT11: 6 | CU11: 73.93261446 | CX11: 5 | CY11: 73.984 | CZ11: 5 | DA11: 0.07850666624 | DB11: 0.9214933338 | DC11: 0.08838798112 | DD11: -44.73531915 | DE11: -1.514755814
B12: 6 | C12: =IF(input!E10="","",input!E10) -> 74.009 | D12: =IF(input!F10="","",input!F10) -> 73.994 | E12: =IF(input!G10="","",input!G10) ->  | F12: =IF(input!H10="","",input!H10) ->  | G12: =IF(input!I10="","",input!I10) ->  | L12: 6 | M12: 74.009 | N12: 73.994 | S12: 0 | T12: 0 | U12: 0 | V12: 0 | W12: 0 | AA12: 74.0015 | AB12: 0.0075 | AC12: 0.015 | AE12: 6 | AF12: 73.99986111 | AG12: 74.0015 | AH12: 74.02524111 | AI12: 73.97448111 | AJ12: 0.0135 | AK12: 0.015 | AL12: 0.044145 | AO12: 6 | AP12: 74.024 | AQ12: 0 | AR12: 0 | AV12: =IF($N$9="","",$N$9) -> 74.024 | AY12: =IF($O$8="","",$O$8) ->  | BB12: =IF($N$8="","",$N$8) -> 73.992 | BD12: E6 | BE12: =IF($M$8="","",$M$8) -> 73.995 | BH12: Oberer Grenzwert OGW = | BI12: =IF(output!S17="","",output!S17) -> 74.05 | BW12: 6 | BX12: 6 | BY12: =IF(input!E10<>"",input!E10,BY11) -> 74.009 | BZ12: =IF(input!F10<>"",input!F10,BZ11) -> 73.994 | CA12: =IF(input!G10<>"",input!G10,CA11) ->  | CB12: =IF(input!H10<>"",input!H10,CB11) ->  | CC12: =IF(input!I10<>"",input!I10,CC11) ->  | CE12: 74.05 | CF12: 73.95 | CG12: 73.98865334 | CH12: 74.01106889 | CI12: 73.97744556 | CJ12: 74.02227666 | CK12: 73.96623778 | CL12: 74.03348444 | CM12: 73.99986111 | CQ12: 1 | CR12: 74.01106889 | CS12: 3 | CT12: 6 | CU12: 73.93261446 | CX12: 6 | CY12: 73.984 | CZ12: 6 | DA12: 0.07850666624 | DB12: 0.9214933338 | DC12: 0.1035598993 | DD12: -52.93394517 | DE12: -1.413670865 | DG12: Summe S | DH12: =SUM(Normalverteilung_S) -> -5224.350618
B13: 7 | C13: =IF(input!E11="","",input!E11) -> 73.995 | D13: =IF(input!F11="","",input!F11) -> 74.006 | E13: =IF(input!G11="","",input!G11) ->  | F13: =IF(input!H11="","",input!H11) ->  | G13: =IF(input!I11="","",input!I11) ->  | L13: 7 | M13: 73.995 | N13: 74.006 | S13: 0 | T13: 0 | U13: 0 | V13: 0 | W13: 0 | AA13: 74.0005 | AB13: 0.0055 | AC13: 0.011 | AE13: 7 | AF13: 73.99986111 | AG13: 74.0005 | AH13: 74.02524111 | AI13: 73.97448111 | AJ13: 0.0135 | AK13: 0.011 | AL13: 0.044145 | AO13: 7 | AP13: 74.002 | AQ13: 0 | AR13: 0 | AU13: E8 | AV13: =IF($M$10="","",$M$10) -> 74.002 | AX13: E7 | AY13: =IF($M$9="","",$M$9) -> 73.988 | BB13: =IF($O$8="","",$O$8) ->  | BE13: =IF($N$8="","",$N$8) -> 73.992 | BW13: 7 | BX13: 7 | BY13: =IF(input!E11<>"",input!E11,BY12) -> 73.995 | BZ13: =IF(input!F11<>"",input!F11,BZ12) -> 74.006 | CA13: =IF(input!G11<>"",input!G11,CA12) ->  | CB13: =IF(input!H11<>"",input!H11,CB12) ->  | CC13: =IF(input!I11<>"",input!I11,CC12) ->  | CE13: 74.05 | CF13: 73.95 | CG13: 73.98865334 | CH13: 74.01106889 | CI13: 73.97744556 | CJ13: 74.02227666 | CK13: 73.96623778 | CL13: 74.03348444 | CM13: 73.99986111 | CQ13: 2 | CR13: 74.02227666 | CS13: 3 | CT13: 6 | CU13: 73.93261446 | CX13: 7 | CY13: 73.984 | CZ13: 7 | DA13: 0.07850666624 | DB13: 0.9214933338 | DC13: 0.1393870429 | DD13: -58.69594213 | DE13: -1.325266207 | DG13: AD | DH13: =-DH12/Anzahl-Anzahl -> 0.560425251
B14: 8 | C14: =IF(input!E12="","",input!E12) -> 73.985 | D14: =IF(input!F12="","",input!F12) -> 74.003 | E14: =IF(input!G12="","",input!G12) ->  | F14: =IF(input!H12="","",input!H12) ->  | G14: =IF(input!I12="","",input!I12) ->  | L14: 8 | M14: 73.985 | N14: 74.003 | S14: 0 | T14: 0 | U14: 0 | V14: 0 | W14: 0 | AA14: =IF(M14<>"",AVERAGE(M14:Q14),"") -> 73.994 | AB14: 0.009 | AC14: =IF(M14<>"",MAX(M14:Q14)-MIN(M14:Q14),"") -> 0.018 | AE14: 8 | AF14: 73.99986111 | AG14: 73.994 | AH14: 74.02524111 | AI14: 73.97448111 | AJ14: 0.0135 | AK14: 0.018 | AL14: 0.044145 | AO14: 8 | AP14: 73.996 | AQ14: 0 | AR14: 0 | AV14: =IF($N$10="","",$N$10) -> 73.996 | AY14: =IF($N$9="","",$N$9) -> 74.024 | BB14: =IF($P$8="","",$P$8) ->  | BE14: =IF($O$8="","",$O$8) ->  | BH14: Umfang der Stichprobe | BI14: =COUNT(xi) -> 72 | BL14: Konstanten | BW14: 8 | BX14: 8 | BY14: =IF(input!E12<>"",input!E12,BY13) -> 73.985 | BZ14: =IF(input!F12<>"",input!F12,BZ13) -> 74.003 | CA14: =IF(input!G12<>"",input!G12,CA13) ->  | CB14: =IF(input!H12<>"",input!H12,CB13) ->  | CC14: =IF(input!I12<>"",input!I12,CC13) ->  | CE14: 74.05 | CF14: 73.95 | CG14: 73.98865334 | CH14: 74.01106889 | CI14: 73.97744556 | CJ14: 74.02227666 | CK14: 73.96623778 | CL14: 74.03348444 | CM14: 73.99986111 | CQ14: 4 | CR14: 74.04469221 | CS14: 3 | CT14: 6 | CU14: 73.93261446 | CX14: 8 | CY14: 73.985 | CZ14: 8 | DA14: 0.092425746 | DB14: 0.907574254 | DC14: 0.1393870429 | DD14: -65.27775655 | DE14: -1.246155855 | DG14: AD* | DH14: =DH13*(1+0.75/Anzahl+2.25/Anzahl^2) -> 0.5665062542
B15: 9 | C15: =IF(input!E13="","",input!E13) -> 74.008 | D15: =IF(input!F13="","",input!F13) -> 73.995 | E15: =IF(input!G13="","",input!G13) ->  | F15: =IF(input!H13="","",input!H13) ->  | G15: =IF(input!I13="","",input!I13) ->  | L15: 9 | M15: 74.008 | N15: 73.995 | S15: 0 | T15: 0 | U15: 0 | V15: 0 | W15: 0 | AA15: =IF(M15<>"",AVERAGE(M15:Q15),"") -> 74.0015 | AB15: 0.0065 | AC15: =IF(M15<>"",MAX(M15:Q15)-MIN(M15:Q15),"") -> 0.013 | AE15: 9 | AF15: 73.99986111 | AG15: 74.0015 | AH15: 74.02524111 | AI15: 73.97448111 | AJ15: 0.0135 | AK15: 0.013 | AL15: 0.044145 | AO15: 9 | AP15: 73.992 | AQ15: 0 | AR15: 0 | AU15: E9 | AV15: =IF($M$11="","",$M$11) -> 73.992 | AY15: =IF($O$9="","",$O$9) ->  | BA15: E7 | BB15: =IF($M$9="","",$M$9) -> 73.988 | BE15: =IF($P$8="","",$P$8) ->  | BH15: Mittelwert m | BI15: =AVERAGE(xi) -> 73.99986111 | BL15: n | BM15: A2 | BN15: D4 | BO15: D3 | BP15: d2 | BW15: 9 | BX15: 9 | BY15: =IF(input!E13<>"",input!E13,BY14) -> 74.008 | BZ15: =IF(input!F13<>"",input!F13,BZ14) -> 73.995 | CA15: =IF(input!G13<>"",input!G13,CA14) ->  | CB15: =IF(input!H13<>"",input!H13,CB14) ->  | CC15: =IF(input!I13<>"",input!I13,CC14) ->  | CE15: 74.05 | CF15: 73.95 | CG15: 73.98865334 | CH15: 74.01106889 | CI15: 73.97744556 | CJ15: 74.02227666 | CK15: 73.96623778 | CL15: 74.03348444 | CM15: 73.99986111 | CQ15: 5 | CR15: 74.05589999 | CS15: 3 | CT15: 6 | CU15: 73.93261446 | CX15: 9 | CY15: 73.985 | CZ15: 9 | DA15: 0.092425746 | DB15: 0.907574254 | DC15: 0.1828307623 | DD15: -69.3692489 | DE15: -1.174158633
B16: 10 | C16: =IF(input!E14="","",input!E14) -> 73.998 | D16: =IF(input!F14="","",input!F14) -> 74 | E16: =IF(input!G14="","",input!G14) ->  | F16: =IF(input!H14="","",input!H14) ->  | G16: =IF(input!I14="","",input!I14) ->  | L16: 10 | M16: 73.998 | N16: 74 | S16: 0 | T16: 0 | U16: 0 | V16: 0 | W16: 0 | AA16: 73.999 | AB16: 0.001 | AC16: 0.002 | AE16: 10 | AF16: 73.99986111 | AG16: 73.999 | AH16: 74.02524111 | AI16: 73.97448111 | AJ16: 0.0135 | AK16: 0.002 | AL16: 0.044145 | AO16: 10 | AP16: 74.007 | AQ16: 0 | AR16: 0 | AV16: =IF($N$11="","",$N$11) -> 74.007 | AX16: E8 | AY16: =IF($M$10="","",$M$10) -> 74.002 | BB16: =IF($N$9="","",$N$9) -> 74.024 | BE16: =IF($Q$8="","",$Q$8) ->  | BH16: Standardabweichung s gesamt | BI16: =STDEV(xi) -> 0.01120777592 | BL16: 1 | BM16: 2.66 | BN16: 3.27 | BO16: 0 | BP16: 1.128 | BW16: 10 | BX16: 10 | BY16: =IF(input!E14<>"",input!E14,BY15) -> 73.998 | BZ16: =IF(input!F14<>"",input!F14,BZ15) -> 74 | CA16: =IF(input!G14<>"",input!G14,CA15) ->  | CB16: =IF(input!H14<>"",input!H14,CB15) ->  | CC16: =IF(input!I14<>"",input!I14,CC15) ->  | CE16: 74.05 | CF16: 73.95 | CG16: 73.98865334 | CH16: 74.01106889 | CI16: 73.97744556 | CJ16: 74.02227666 | CK16: 73.96623778 | CL16: 74.03348444 | CM16: 73.99986111 | CQ16: 6 | CR16: 74.06710777 | CS16: 3 | CT16: 6 | CU16: 73.93261446 | CX16: 10 | CY16: 73.988 | CZ16: 10 | DA16: 0.1449609253 | DB16: 0.8550390747 | DC16: 0.1828307623 | DD16: -68.97922267 | DE16: -1.107782404
B17: 11 | C17: =IF(input!E15="","",input!E15) -> 73.994 | D17: =IF(input!F15="","",input!F15) -> 73.998 | E17: =IF(input!G15="","",input!G15) ->  | F17: =IF(input!H15="","",input!H15) ->  | G17: =IF(input!I15="","",input!I15) ->  | L17: 11 | M17: 73.994 | N17: 73.998 | S17: 0 | T17: 0 | U17: 0 | V17: 0 | W17: 0 | AA17: 73.996 | AB17: 0.002 | AC17: 0.004 | AE17: 11 | AF17: 73.99986111 | AG17: 73.996 | AH17: 74.02524111 | AI17: 73.97448111 | AJ17: 0.0135 | AK17: 0.004 | AL17: 0.044145 | AO17: 11 | AP17: 74.009 | AQ17: 0 | AR17: 0 | AU17: E10 | AV17: =IF($M$12="","",$M$12) -> 74.009 | AY17: =IF($N$10="","",$N$10) -> 73.996 | BB17: =IF($O$9="","",$O$9) ->  | BD17: E7 | BE17: =IF($M$9="","",$M$9) -> 73.988 | BL17: 2 | BM17: 1.88 | BN17: 3.27 | BO17: 0 | BP17: 1.128 | BW17: 11 | BX17: 11 | BY17: =IF(input!E15<>"",input!E15,BY16) -> 73.994 | BZ17: =IF(input!F15<>"",input!F15,BZ16) -> 73.998 | CA17: =IF(input!G15<>"",input!G15,CA16) ->  | CB17: =IF(input!H15<>"",input!H15,CB16) ->  | CC17: =IF(input!I15<>"",input!I15,CC16) ->  | CE17: 74.05 | CF17: 73.95 | CG17: 73.98865334 | CH17: 74.01106889 | CI17: 73.97744556 | CJ17: 74.02227666 | CK17: 73.96623778 | CL17: 74.03348444 | CM17: 73.99986111 | CQ17: -3 | CR17: 73.96623778 | CS17: 3 | CT17: 6 | CU17: 73.93261446 | CX17: 11 | CY17: 73.988 | CZ17: 11 | DA17: 0.1449609253 | DB17: 0.8550390747 | DC17: 0.1828307623 | DD17: -76.24019348 | DE17: -1.045958679 | DG17: p1 | DH17: =IF(AND(DH14<13, DH14>=0.6),EXP(1.2937-5.709*DH14+0.0186*DH14^ 2),0) -> 0
B18: 12 | C18: =IF(input!E16="","",input!E16) -> 74.004 | D18: =IF(input!F16="","",input!F16) -> 74 | E18: =IF(input!G16="","",input!G16) ->  | F18: =IF(input!H16="","",input!H16) ->  | G18: =IF(input!I16="","",input!I16) ->  | L18: 12 | M18: 74.004 | N18: 74 | S18: 0 | T18: 0 | U18: 0 | V18: 0 | W18: 0 | AA18: 74.002 | AB18: 0.002 | AC18: 0.004 | AE18: 12 | AF18: 73.99986111 | AG18: 74.002 | AH18: 74.02524111 | AI18: 73.97448111 | AJ18: 0.0135 | AK18: 0.004 | AL18: 0.044145 | AO18: 12 | AP18: 73.994 | AQ18: 0 | AR18: 0 | AV18: =IF($N$12="","",$N$12) -> 73.994 | AY18: =IF($O$10="","",$O$10) ->  | BB18: =IF($P$9="","",$P$9) ->  | BE18: =IF($N$9="","",$N$9) -> 74.024 | BI18: Fähigkeitskennwerte | BL18: 3 | BM18: 1.023 | BN18: 2.575 | BO18: 0 | BP18: 1.693 | BW18: 12 | BX18: 12 | BY18: =IF(input!E16<>"",input!E16,BY17) -> 74.004 | BZ18: =IF(input!F16<>"",input!F16,BZ17) -> 74 | CA18: =IF(input!G16<>"",input!G16,CA17) ->  | CB18: =IF(input!H16<>"",input!H16,CB17) ->  | CC18: =IF(input!I16<>"",input!I16,CC17) ->  | CE18: 74.05 | CF18: 73.95 | CG18: 73.98865334 | CH18: 74.01106889 | CI18: 73.97744556 | CJ18: 74.02227666 | CK18: 73.96623778 | CL18: 74.03348444 | CM18: 73.99986111 | CQ18: 3 | CR18: 74.03348444 | CS18: 3 | CT18: 6 | CU18: 73.93261446 | CX18: 12 | CY18: 73.989 | CZ18: 12 | DA18: 0.166255307 | DB18: 0.833744693 | DC18: 0.2074199559 | DD18: -77.44653027 | DE18: -0.9878942947 | DG18: p2 | DH18: =IF(AND(DH14<0.6,DH14>=0.34),EXP(0.9177-4.279*DH14-1.38*DH14^2),0) -> 0.1423790025
B19: 13 | C19: =IF(input!E17="","",input!E17) -> 73.983 | D19: =IF(input!F17="","",input!F17) -> 74.002 | E19: =IF(input!G17="","",input!G17) ->  | F19: =IF(input!H17="","",input!H17) ->  | G19: =IF(input!I17="","",input!I17) ->  | L19: 13 | M19: 73.983 | N19: 74.002 | S19: 0 | T19: 0 | U19: 0 | V19: 0 | W19: 0 | AA19: 73.9925 | AB19: 0.0095 | AC19: 0.019 | AE19: 13 | AF19: 73.99986111 | AG19: 73.9925 | AH19: 74.02524111 | AI19: 73.97448111 | AJ19: 0.0135 | AK19: 0.019 | AL19: 0.044145 | AO19: 13 | AP19: 73.995 | AQ19: 0 | AR19: 0 | AU19: E11 | AV19: =IF($M$13="","",$M$13) -> 73.995 | AX19: E9 | AY19: =IF($M$11="","",$M$11) -> 73.992 | BA19: E8 | BB19: =IF($M$10="","",$M$10) -> 74.002 | BE19: =IF($O$9="","",$O$9) ->  | BH19: Ppu | BI19: =IF(BI11<>"",(BI15-BI11)/(3*BI16),"") -> 1.482932073 | BL19: 4 | BM19: 0.729 | BN19: 2.282 | BO19: 0 | BP19: 2.059 | BW19: 13 | BX19: 13 | BY19: =IF(input!E17<>"",input!E17,BY18) -> 73.983 | BZ19: =IF(input!F17<>"",input!F17,BZ18) -> 74.002 | CA19: =IF(input!G17<>"",input!G17,CA18) ->  | CB19: =IF(input!H17<>"",input!H17,CB18) ->  | CC19: =IF(input!I17<>"",input!I17,CC18) ->  | CE19: 74.05 | CF19: 73.95 | CG19: 73.98865334 | CH19: 74.01106889 | CI19: 73.97744556 | CJ19: 74.02227666 | CK19: 73.96623778 | CL19: 74.03348444 | CM19: 73.99986111 | CX19: 13 | CY19: 73.992 | CZ19: 13 | DA19: 0.2415273388 | DB19: 0.7584726612 | DC19: 0.2074199559 | DD19: -74.84455941 | DE19: -0.932983032 | DG19: p3 | DH19: =IF(AND(DH14<0.34,DH14>=0.2),1-EXP(-8.318+42.796*DH14-59.938*DH14^2),0) -> 0
B20: 14 | C20: =IF(input!E18="","",input!E18) -> 74.006 | D20: =IF(input!F18="","",input!F18) -> 73.967 | E20: =IF(input!G18="","",input!G18) ->  | F20: =IF(input!H18="","",input!H18) ->  | G20: =IF(input!I18="","",input!I18) ->  | L20: 14 | M20: 74.006 | N20: 73.967 | S20: 0 | T20: 0 | U20: 0 | V20: 0 | W20: 0 | AA20: 73.9865 | AB20: 0.0195 | AC20: 0.039 | AE20: 14 | AF20: 73.99986111 | AG20: 73.9865 | AH20: 74.02524111 | AI20: 73.97448111 | AJ20: 0.0135 | AK20: 0.039 | AL20: 0.044145 | AO20: 14 | AP20: 74.006 | AQ20: 0 | AR20: 0 | AV20: =IF($N$13="","",$N$13) -> 74.006 | AY20: =IF($N$11="","",$N$11) -> 74.007 | BB20: =IF($N$10="","",$N$10) -> 73.996 | BE20: =IF($P$9="","",$P$9) ->  | BH20: Ppo | BI20: =IF(BI12<>"",(BI12-BI15)/(3*BI16),"") -> 1.491193533 | BL20: 5 | BM20: 0.577 | BN20: 2.115 | BO20: 0 | BP20: 2.326 | BW20: 14 | BX20: 14 | BY20: =IF(input!E18<>"",input!E18,BY19) -> 74.006 | BZ20: =IF(input!F18<>"",input!F18,BZ19) -> 73.967 | CA20: =IF(input!G18<>"",input!G18,CA19) ->  | CB20: =IF(input!H18<>"",input!H18,CB19) ->  | CC20: =IF(input!I18<>"",input!I18,CC19) ->  | CE20: 74.05 | CF20: 73.95 | CG20: 73.98865334 | CH20: 74.01106889 | CI20: 73.97744556 | CJ20: 74.02227666 | CK20: 73.96623778 | CL20: 74.03348444 | CM20: 73.99986111 | CQ20: Mittelwert | CR20: =Mittelwert -> 73.99986111 | CS20: 3 | CX20: 14 | CY20: 73.992 | CZ20: 14 | DA20: 0.2415273388 | DB20: 0.7584726612 | DC20: 0.2338635098 | DD20: -77.5923363 | DE20: -0.8807502014 | DG20: p4 | DH20: =IF(DH14<0.2,1-EXP(-13.436+101.14*DH14-223.73*DH14^2),0) -> 0
B21: 15 | C21: =IF(input!E19="","",input!E19) -> 74.012 | D21: =IF(input!F19="","",input!F19) -> 74.014 | E21: =IF(input!G19="","",input!G19) ->  | F21: =IF(input!H19="","",input!H19) ->  | G21: =IF(input!I19="","",input!I19) ->  | L21: 15 | M21: 74.012 | N21: 74.014 | S21: 0 | T21: 0 | U21: 0 | V21: 0 | W21: 0 | AA21: 74.013 | AB21: 0.001 | AC21: 0.002 | AE21: 15 | AF21: 73.99986111 | AG21: 74.013 | AH21: 74.02524111 | AI21: 73.97448111 | AJ21: 0.0135 | AK21: 0.002 | AL21: 0.044145 | AO21: 15 | AP21: 73.985 | AQ21: 0 | AR21: 0 | AU21: E12 | AV21: =IF($M$14="","",$M$14) -> 73.985 | AY21: =IF($O$11="","",$O$11) ->  | BB21: =IF($O$10="","",$O$10) ->  | BE21: =IF($Q$9="","",$Q$9) ->  | BH21: Pp | BI21: =IF(OR(BI11="",BI12=""),"",(BI12-BI11)/(6*BI16)) -> 1.487062803 | BW21: 15 | BX21: 15 | BY21: =IF(input!E19<>"",input!E19,BY20) -> 74.012 | BZ21: =IF(input!F19<>"",input!F19,BZ20) -> 74.014 | CA21: =IF(input!G19<>"",input!G19,CA20) ->  | CB21: =IF(input!H19<>"",input!H19,CB20) ->  | CC21: =IF(input!I19<>"",input!I19,CC20) ->  | CE21: 74.05 | CF21: 73.95 | CG21: 73.98865334 | CH21: 74.01106889 | CI21: 73.97744556 | CJ21: 74.02227666 | CK21: 73.96623778 | CL21: 74.03348444 | CM21: 73.99986111 | CQ21: OGW | CR21: =OGW -> 74.05 | CS21: 3 | CX21: 15 | CY21: 73.992 | CZ21: 15 | DA21: 0.2415273388 | DB21: 0.7584726612 | DC21: 0.2338635098 | DD21: -83.33991676 | DE21: -0.8308164149
B22: 16 | C22: =IF(input!E20="","",input!E20) -> 74 | D22: =IF(input!F20="","",input!F20) -> 73.984 | E22: =IF(input!G20="","",input!G20) ->  | F22: =IF(input!H20="","",input!H20) ->  | G22: =IF(input!I20="","",input!I20) ->  | L22: 16 | M22: 74 | N22: 73.984 | S22: 0 | T22: 0 | U22: 0 | V22: 0 | W22: 0 | AA22: 73.992 | AB22: 0.008 | AC22: 0.016 | AE22: 16 | AF22: 73.99986111 | AG22: 73.992 | AH22: 74.02524111 | AI22: 73.97448111 | AJ22: 0.0135 | AK22: 0.016 | AL22: 0.044145 | AO22: 16 | AP22: 74.003 | AQ22: 0 | AR22: 0 | AV22: =IF($N$14="","",$N$14) -> 74.003 | AX22: E10 | AY22: =IF($M$12="","",$M$12) -> 74.009 | BB22: =IF($P$10="","",$P$10) ->  | BD22: E8 | BE22: =IF($M$10="","",$M$10) -> 74.002 | BH22: Ppk | BI22: =IF(BI12="",BI19,IF(BI11="",BI20,MIN(BI19,BI20))) -> 1.482932073 | BW22: 16 | BX22: 16 | BY22: =IF(input!E20<>"",input!E20,BY21) -> 74 | BZ22: =IF(input!F20<>"",input!F20,BZ21) -> 73.984 | CA22: =IF(input!G20<>"",input!G20,CA21) ->  | CB22: =IF(input!H20<>"",input!H20,CB21) ->  | CC22: =IF(input!I20<>"",input!I20,CC21) ->  | CE22: 74.05 | CF22: 73.95 | CG22: 73.98865334 | CH22: 74.01106889 | CI22: 73.97744556 | CJ22: 74.02227666 | CK22: 73.96623778 | CL22: 74.03348444 | CM22: 73.99986111 | CQ22: UGW | CR22: =UGW -> 73.95 | CS22: 3 | CX22: 16 | CY22: 73.992 | CZ22: 16 | DA22: 0.2415273388 | DB22: 0.7584726612 | DC22: 0.2338635098 | DD22: -89.08749723 | DE22: -0.7828730625 | DG22: p Wert | DH22: =MAX(DH17:DH20) -> 0.1423790025
B23: 17 | C23: =IF(input!E21="","",input!E21) -> 73.994 | D23: =IF(input!F21="","",input!F21) -> 74.012 | E23: =IF(input!G21="","",input!G21) ->  | F23: =IF(input!H21="","",input!H21) ->  | G23: =IF(input!I21="","",input!I21) ->  | L23: 17 | M23: 73.994 | N23: 74.012 | S23: 0 | T23: 0 | U23: 0 | V23: 0 | W23: 0 | AA23: 74.003 | AB23: 0.009 | AC23: 0.018 | AE23: 17 | AF23: 73.99986111 | AG23: 74.003 | AH23: 74.02524111 | AI23: 73.97448111 | AJ23: 0.0135 | AK23: 0.018 | AL23: 0.044145 | AO23: 17 | AP23: 74.008 | AQ23: 0 | AR23: 0 | AU23: E13 | AV23: =IF($M$15="","",$M$15) -> 74.008 | AY23: =IF($N$12="","",$N$12) -> 73.994 | BA23: E9 | BB23: =IF($M$11="","",$M$11) -> 73.992 | BE23: =IF($N$10="","",$N$10) -> 73.996 | BW23: 17 | BX23: 17 | BY23: =IF(input!E21<>"",input!E21,BY22) -> 73.994 | BZ23: =IF(input!F21<>"",input!F21,BZ22) -> 74.012 | CA23: =IF(input!G21<>"",input!G21,CA22) ->  | CB23: =IF(input!H21<>"",input!H21,CB22) ->  | CC23: =IF(input!I21<>"",input!I21,CC22) ->  | CE23: 74.05 | CF23: 73.95 | CG23: 73.98865334 | CH23: 74.01106889 | CI23: 73.97744556 | CJ23: 74.02227666 | CK23: 73.96623778 | CL23: 74.03348444 | CM23: 73.99986111 | CQ23: Sollwert | CR23: =Sollwert -> 74 | CS23: 3 | CX23: 17 | CY23: 73.994 | CZ23: 17 | DA23: 0.3005043685 | DB23: 0.6994956315 | DC23: 0.2620759261 | DD23: -83.86666236 | DE23: -0.7366652126
B24: 18 | C24: =IF(input!E22="","",input!E22) -> 74.006 | D24: =IF(input!F22="","",input!F22) -> 74.01 | E24: =IF(input!G22="","",input!G22) ->  | F24: =IF(input!H22="","",input!H22) ->  | G24: =IF(input!I22="","",input!I22) ->  | L24: 18 | M24: 74.006 | N24: 74.01 | S24: 0 | T24: 0 | U24: 0 | V24: 0 | W24: 0 | AA24: 74.008 | AB24: 0.002 | AC24: 0.004 | AE24: 18 | AF24: 73.99986111 | AG24: 74.008 | AH24: 74.02524111 | AI24: 73.97448111 | AJ24: 0.0135 | AK24: 0.004 | AL24: 0.044145 | AO24: 18 | AP24: 73.995 | AQ24: 0 | AR24: 0 | AV24: =IF($N$15="","",$N$15) -> 73.995 | AY24: =IF($O$12="","",$O$12) ->  | BB24: =IF($N$11="","",$N$11) -> 74.007 | BE24: =IF($O$10="","",$O$10) ->  | BH24: Median z | BI24: =MEDIAN(xi) -> 74 | BW24: 18 | BX24: 18 | BY24: =IF(input!E22<>"",input!E22,BY23) -> 74.006 | BZ24: =IF(input!F22<>"",input!F22,BZ23) -> 74.01 | CA24: =IF(input!G22<>"",input!G22,CA23) ->  | CB24: =IF(input!H22<>"",input!H22,CB23) ->  | CC24: =IF(input!I22<>"",input!I22,CC23) ->  | CE24: 74.05 | CF24: 73.95 | CG24: =CG23 -> 73.98865334 | CH24: 74.01106889 | CI24: 73.97744556 | CJ24: 74.02227666 | CK24: 73.96623778 | CL24: 74.03348444 | CM24: 73.99986111 | CX24: 18 | CY24: 73.994 | CZ24: 18 | DA24: 0.3005043685 | DB24: 0.6994956315 | DC24: 0.2620759261 | DD24: -88.94949038 | DE24: -0.6919793833
B25: 19 | C25: =IF(input!E23="","",input!E23) -> 73.984 | D25: =IF(input!F23="","",input!F23) -> 74.002 | E25: =IF(input!G23="","",input!G23) ->  | F25: =IF(input!H23="","",input!H23) ->  | G25: =IF(input!I23="","",input!I23) ->  | L25: 19 | M25: 73.984 | N25: 74.002 | S25: 0 | T25: 0 | U25: 0 | V25: 0 | W25: 0 | AA25: 73.993 | AB25: 0.009 | AC25: 0.018 | AE25: 19 | AF25: 73.99986111 | AG25: 73.993 | AH25: 74.02524111 | AI25: 73.97448111 | AJ25: 0.0135 | AK25: 0.018 | AL25: 0.044145 | AO25: 19 | AP25: 73.998 | AQ25: 0 | AR25: 0 | AU25: E14 | AV25: =IF($M$16="","",$M$16) -> 73.998 | AX25: E11 | AY25: =IF($M$13="","",$M$13) -> 73.995 | BB25: =IF($O$11="","",$O$11) ->  | BE25: =IF($P$10="","",$P$10) ->  | BH25: Spannweite R | BI25: =Maximum-Minimum -> 0.063 | BW25: 19 | BX25: 19 | BY25: =IF(input!E23<>"",input!E23,BY24) -> 73.984 | BZ25: =IF(input!F23<>"",input!F23,BZ24) -> 74.002 | CA25: =IF(input!G23<>"",input!G23,CA24) ->  | CB25: =IF(input!H23<>"",input!H23,CB24) ->  | CC25: =IF(input!I23<>"",input!I23,CC24) ->  | CE25: 74.05 | CF25: 73.95 | CG25: 73.98865334 | CH25: 74.01106889 | CI25: 73.97744556 | CJ25: 74.02227666 | CK25: 73.96623778 | CL25: 74.03348444 | CM25: 73.99986111 | CX25: 19 | CY25: 73.994 | CZ25: 19 | DA25: 0.3005043685 | DB25: 0.6994956315 | DC25: 0.291937017 | DD25: -90.03987677 | DE25: -0.6486346002
B26: 20 | C26: =IF(input!E24="","",input!E24) -> 74 | D26: =IF(input!F24="","",input!F24) -> 74.01 | E26: =IF(input!G24="","",input!G24) ->  | F26: =IF(input!H24="","",input!H24) ->  | G26: =IF(input!I24="","",input!I24) ->  | L26: 20 | M26: 74 | N26: 74.01 | S26: 0 | T26: 0 | U26: 0 | V26: 0 | W26: 0 | AA26: 74.005 | AB26: 0.005 | AC26: 0.01 | AE26: 20 | AF26: 73.99986111 | AG26: 74.005 | AH26: 74.02524111 | AI26: 73.97448111 | AJ26: 0.0135 | AK26: 0.01 | AL26: 0.044145 | AO26: 20 | AP26: 74 | AQ26: 0 | AR26: 0 | AV26: =IF($N$16="","",$N$16) -> 74 | AY26: =IF($N$13="","",$N$13) -> 74.006 | BB26: =IF($P$11="","",$P$11) ->  | BE26: =IF($Q$10="","",$Q$10) ->  | BH26: Minimum | BI26: =MIN(xi) -> 73.967 | BW26: 20 | BX26: 20 | BY26: =IF(input!E24<>"",input!E24,BY25) -> 74 | BZ26: =IF(input!F24<>"",input!F24,BZ25) -> 74.01 | CA26: =IF(input!G24<>"",input!G24,CA25) ->  | CB26: =IF(input!H24<>"",input!H24,CB25) ->  | CC26: =IF(input!I24<>"",input!I24,CC25) ->  | CE26: 74.05 | CF26: 73.95 | CG26: 73.98865334 | CH26: 74.01106889 | CI26: 73.97744556 | CJ26: 74.02227666 | CK26: 73.96623778 | CL26: 74.03348444 | CM26: 73.99986111 | CX26: 20 | CY26: 73.994 | CZ26: 20 | DA26: 0.3005043685 | DB26: 0.6994956315 | DC26: 0.291937017 | DD26: -94.90689714 | DE26: -0.6064757283
B27: 21 | C27: =IF(input!E25="","",input!E25) -> 73.982 | D27: =IF(input!F25="","",input!F25) -> 74.001 | E27: =IF(input!G25="","",input!G25) ->  | F27: =IF(input!H25="","",input!H25) ->  | G27: =IF(input!I25="","",input!I25) ->  | L27: 21 | M27: 73.982 | N27: 74.001 | S27: 0 | T27: 0 | U27: 0 | V27: 0 | W27: 0 | AA27: 73.9915 | AB27: 0.0095 | AC27: 0.019 | AE27: 21 | AF27: 73.99986111 | AG27: 73.9915 | AH27: 74.02524111 | AI27: 73.97448111 | AJ27: 0.0135 | AK27: 0.019 | AL27: 0.044145 | AO27: 21 | AP27: 73.994 | AQ27: 0 | AR27: 0 | AU27: E15 | AV27: =IF($M$17="","",$M$17) -> 73.994 | AY27: =IF($O$13="","",$O$13) ->  | BA27: E10 | BB27: =IF($M$12="","",$M$12) -> 74.009 | BD27: E9 | BE27: =IF($M$11="","",$M$11) -> 73.992 | BH27: Maximum | BI27: =MAX(xi) -> 74.03 | BW27: 21 | BX27: 21 | BY27: =IF(input!E25<>"",input!E25,BY26) -> 73.982 | BZ27: =IF(input!F25<>"",input!F25,BZ26) -> 74.001 | CA27: =IF(input!G25<>"",input!G25,CA26) ->  | CB27: =IF(input!H25<>"",input!H25,CB26) ->  | CC27: =IF(input!I25<>"",input!I25,CC26) ->  | CE27: 74.05 | CF27: 73.95 | CG27: 73.98865334 | CH27: 74.01106889 | CI27: 73.97744556 | CJ27: 74.02227666 | CK27: 73.96623778 | CL27: 74.03348444 | CM27: 73.99986111 | CX27: 21 | CY27: 73.994 | CZ27: 21 | DA27: 0.3005043685 | DB27: 0.6994956315 | DC27: 0.291937017 | DD27: -99.7739175 | DE27: -0.5653684133
B28: 22 | C28: =IF(input!E26="","",input!E26) -> 74.004 | D28: =IF(input!F26="","",input!F26) -> 73.999 | E28: =IF(input!G26="","",input!G26) ->  | F28: =IF(input!H26="","",input!H26) ->  | G28: =IF(input!I26="","",input!I26) ->  | L28: 22 | M28: 74.004 | N28: 73.999 | S28: 0 | T28: 0 | U28: 0 | V28: 0 | W28: 0 | AA28: 74.0015 | AB28: 0.0025 | AC28: 0.005 | AE28: 22 | AF28: 73.99986111 | AG28: 74.0015 | AH28: 74.02524111 | AI28: 73.97448111 | AJ28: 0.0135 | AK28: 0.005 | AL28: 0.044145 | AO28: 22 | AP28: 73.998 | AQ28: 0 | AR28: 0 | AV28: =IF($N$17="","",$N$17) -> 73.998 | AX28: E12 | AY28: =IF($M$14="","",$M$14) -> 73.985 | BB28: =IF($N$12="","",$N$12) -> 73.994 | BE28: =IF($N$11="","",$N$11) -> 74.007 | BW28: 22 | BX28: 22 | BY28: =IF(input!E26<>"",input!E26,BY27) -> 74.004 | BZ28: =IF(input!F26<>"",input!F26,BZ27) -> 73.999 | CA28: =IF(input!G26<>"",input!G26,CA27) ->  | CB28: =IF(input!H26<>"",input!H26,CB27) ->  | CC28: =IF(input!I26<>"",input!I26,CC27) ->  | CE28: 74.05 | CF28: 73.95 | CG28: 73.98865334 | CH28: 74.01106889 | CI28: 73.97744556 | CJ28: 74.02227666 | CK28: 73.96623778 | CL28: 74.03348444 | CM28: 73.99986111 | CX28: 22 | CY28: 73.995 | CZ28: 22 | DA28: 0.3322434656 | DB28: 0.6677565344 | DC28: 0.291937017 | DD28: -100.3234911 | DE28: -0.5251951821
B29: 23 | C29: =IF(input!E27="","",input!E27) -> 74.01 | D29: =IF(input!F27="","",input!F27) -> 73.989 | E29: =IF(input!G27="","",input!G27) ->  | F29: =IF(input!H27="","",input!H27) ->  | G29: =IF(input!I27="","",input!I27) ->  | L29: 23 | M29: 74.01 | N29: 73.989 | S29: 0 | T29: 0 | U29: 0 | V29: 0 | W29: 0 | AA29: 73.9995 | AB29: 0.0105 | AC29: 0.021 | AE29: 23 | AF29: 73.99986111 | AG29: 73.9995 | AH29: 74.02524111 | AI29: 73.97448111 | AJ29: 0.0135 | AK29: 0.021 | AL29: 0.044145 | AO29: 23 | AP29: 74.004 | AQ29: 0 | AR29: 0 | AU29: E16 | AV29: =IF($M$18="","",$M$18) -> 74.004 | AY29: =IF($N$14="","",$N$14) -> 74.003 | BB29: =IF($O$12="","",$O$12) ->  | BE29: =IF($O$11="","",$O$11) ->  | BI29: Berechnete Leistung in ppm | BW29: 23 | BX29: 23 | BY29: =IF(input!E27<>"",input!E27,BY28) -> 74.01 | BZ29: =IF(input!F27<>"",input!F27,BZ28) -> 73.989 | CA29: =IF(input!G27<>"",input!G27,CA28) ->  | CB29: =IF(input!H27<>"",input!H27,CB28) ->  | CC29: =IF(input!I27<>"",input!I27,CC28) ->  | CE29: 74.05 | CF29: 73.95 | CG29: 73.98865334 | CH29: 74.01106889 | CI29: 73.97744556 | CJ29: 74.02227666 | CK29: 73.96623778 | CL29: 74.03348444 | CM29: 73.99986111 | CX29: 23 | CY29: 73.995 | CZ29: 23 | DA29: 0.3322434656 | DB29: 0.6677565344 | DC29: 0.3559568193 | DD29: -96.06748943 | DE29: -0.4858523943
B30: 24 | C30: =IF(input!E28="","",input!E28) -> 74.015 | D30: =IF(input!F28="","",input!F28) -> 74.008 | E30: =IF(input!G28="","",input!G28) ->  | F30: =IF(input!H28="","",input!H28) ->  | G30: =IF(input!I28="","",input!I28) ->  | L30: 24 | M30: 74.015 | N30: 74.008 | S30: 0 | T30: 0 | U30: 0 | V30: 0 | W30: 0 | AA30: 74.0115 | AB30: 0.0035 | AC30: 0.007 | AE30: 24 | AF30: 73.99986111 | AG30: 74.0115 | AH30: 74.02524111 | AI30: 73.97448111 | AJ30: 0.0135 | AK30: 0.007 | AL30: 0.044145 | AO30: 24 | AP30: 74 | AQ30: 0 | AR30: 0 | AV30: =IF($N$18="","",$N$18) -> 74 | AY30: =IF($O$14="","",$O$14) ->  | BB30: =IF($P$12="","",$P$12) ->  | BE30: =IF($P$11="","",$P$11) ->  | BH30: Überschreitungsanteil pUGW | BI30: =IF(BI11="",0,NORMDIST(UGW,Mittelwert,Standardabweichung,1)*1000000) -> 4.317644802 | BW30: 24 | BX30: 24 | BY30: =IF(input!E28<>"",input!E28,BY29) -> 74.015 | BZ30: =IF(input!F28<>"",input!F28,BZ29) -> 74.008 | CA30: =IF(input!G28<>"",input!G28,CA29) ->  | CB30: =IF(input!H28<>"",input!H28,CB29) ->  | CC30: =IF(input!I28<>"",input!I28,CC29) ->  | CE30: 74.05 | CF30: 73.95 | CG30: 73.98865334 | CH30: 74.01106889 | CI30: 73.97744556 | CJ30: 74.02227666 | CK30: 73.96623778 | CL30: 74.03348444 | CM30: 73.99986111 | CX30: 24 | CY30: 73.995 | CZ30: 24 | DA30: 0.3322434656 | DB30: 0.6677565344 | DC30: 0.3559568193 | DD30: -100.3371556 | DE30: -0.447247827
B31: 25 | C31: =IF(input!E29="","",input!E29) -> 73.982 | D31: =IF(input!F29="","",input!F29) -> 73.984 | E31: =IF(input!G29="","",input!G29) ->  | F31: =IF(input!H29="","",input!H29) ->  | G31: =IF(input!I29="","",input!I29) ->  | L31: 25 | M31: 73.982 | N31: 73.984 | S31: 0 | T31: 0 | U31: 0 | V31: 0 | W31: 0 | AA31: 73.983 | AB31: 0.001 | AC31: 0.002 | AE31: 25 | AF31: 73.99986111 | AG31: 73.983 | AH31: 74.02524111 | AI31: 73.97448111 | AJ31: 0.0135 | AK31: 0.002 | AL31: 0.044145 | AO31: 25 | AP31: 73.983 | AQ31: 0 | AR31: 0 | AU31: E17 | AV31: =IF($M$19="","",$M$19) -> 73.983 | AX31: E13 | AY31: =IF($M$15="","",$M$15) -> 74.008 | BA31: E11 | BB31: =IF($M$13="","",$M$13) -> 73.995 | BE31: =IF($Q$11="","",$Q$11) ->  | BH31: Überschreitungsanteil pOGW | BI31: =IF(BI12="",0,(1-NORMDIST(OGW,Mittelwert,Standardabweichung,1))*1000000) -> 3.84602726 | BW31: 25 | BX31: 25 | BY31: =IF(input!E29<>"",input!E29,BY30) -> 73.982 | BZ31: =IF(input!F29<>"",input!F29,BZ30) -> 73.984 | CA31: =IF(input!G29<>"",input!G29,CA30) ->  | CB31: =IF(input!H29<>"",input!H29,CB30) ->  | CC31: =IF(input!I29<>"",input!I29,CC30) ->  | CE31: 74.05 | CF31: 73.95 | CG31: 73.98865334 | CH31: 74.01106889 | CI31: 73.97744556 | CJ31: 74.02227666 | CK31: 73.96623778 | CL31: 74.03348444 | CM31: 73.99986111 | CX31: 25 | CY31: 73.995 | CZ31: 25 | DA31: 0.3322434656 | DB31: 0.6677565344 | DC31: 0.3897144058 | DD31: -100.1671891 | DE31: -0.4092987374
B32: 26 | C32: =IF(input!E30="","",input!E30) -> 74.03 | D32: =IF(input!F30="","",input!F30) -> 74.002 | E32: =IF(input!G30="","",input!G30) ->  | F32: =IF(input!H30="","",input!H30) ->  | G32: =IF(input!I30="","",input!I30) ->  | L32: 26 | M32: 74.03 | N32: 74.002 | S32: 0 | T32: 0 | U32: 0 | V32: 0 | W32: 0 | AA32: 74.016 | AB32: 0.014 | AC32: 0.028 | AE32: 26 | AF32: 73.99986111 | AG32: 74.016 | AH32: 74.02524111 | AI32: 73.97448111 | AJ32: 0.0135 | AK32: 0.028 | AL32: 0.044145 | AO32: 26 | AP32: 74.002 | AQ32: 0 | AR32: 0 | AV32: =IF($N$19="","",$N$19) -> 74.002 | AY32: =IF($N$15="","",$N$15) -> 73.995 | BB32: =IF($N$13="","",$N$13) -> 74.006 | BD32: E10 | BE32: =IF($M$12="","",$M$12) -> 74.009 | BH32: Überschreitungsanteil p | BI32: =BERPOGW+BERPUGW -> 8.163672062 | BW32: 26 | BX32: 26 | BY32: =IF(input!E30<>"",input!E30,BY31) -> 74.03 | BZ32: =IF(input!F30<>"",input!F30,BZ31) -> 74.002 | CA32: =IF(input!G30<>"",input!G30,CA31) ->  | CB32: =IF(input!H30<>"",input!H30,CB31) ->  | CC32: =IF(input!I30<>"",input!I30,CC31) ->  | CE32: 74.05 | CF32: 73.95 | CG32: 73.98865334 | CH32: 74.01106889 | CI32: 73.97744556 | CJ32: 74.02227666 | CK32: 73.96623778 | CL32: 74.03348444 | CM32: 73.99986111 | CX32: 26 | CY32: 73.995 | CZ32: 26 | DA32: 0.3322434656 | DB32: 0.6677565344 | DC32: 0.3897144058 | DD32: -104.2556458 | DE32: -0.3719302911
B33: 27 | C33: =IF(input!E31="","",input!E31) -> 73.995 | D33: =IF(input!F31="","",input!F31) -> 73.992 | E33: =IF(input!G31="","",input!G31) ->  | F33: =IF(input!H31="","",input!H31) ->  | G33: =IF(input!I31="","",input!I31) ->  | L33: 27 | M33: 73.995 | N33: 73.992 | S33: 0 | T33: 0 | U33: 0 | V33: 0 | W33: 0 | AA33: 73.9935 | AB33: 0.0015 | AC33: 0.003 | AE33: 27 | AF33: 73.99986111 | AG33: 73.9935 | AH33: 74.02524111 | AI33: 73.97448111 | AJ33: 0.0135 | AK33: 0.003 | AL33: 0.044145 | AO33: 27 | AP33: 74.006 | AQ33: 0 | AR33: 0 | AU33: E18 | AV33: =IF($M$20="","",$M$20) -> 74.006 | AY33: =IF($O$15="","",$O$15) ->  | BB33: =IF($O$13="","",$O$13) ->  | BE33: =IF($N$12="","",$N$12) -> 73.994 | BW33: 27 | BX33: 27 | BY33: =IF(input!E31<>"",input!E31,BY32) -> 73.995 | BZ33: =IF(input!F31<>"",input!F31,BZ32) -> 73.992 | CA33: =IF(input!G31<>"",input!G31,CA32) ->  | CB33: =IF(input!H31<>"",input!H31,CB32) ->  | CC33: =IF(input!I31<>"",input!I31,CC32) ->  | CE33: 74.05 | CF33: 73.95 | CG33: 73.98865334 | CH33: 74.01106889 | CI33: 73.97744556 | CJ33: 74.02227666 | CK33: 73.96623778 | CL33: 74.03348444 | CM33: 73.99986111 | CX33: 27 | CY33: 73.995 | CZ33: 27 | DA33: 0.3322434656 | DB33: 0.6677565344 | DC33: 0.4243255918 | DD33: -103.8344975 | DE33: -0.3350742711
B34: 28 | C34: =IF(input!E32="","",input!E32) -> 73.988 | D34: =IF(input!F32="","",input!F32) -> 74.024 | E34: =IF(input!G32="","",input!G32) ->  | F34: =IF(input!H32="","",input!H32) ->  | G34: =IF(input!I32="","",input!I32) ->  | L34: 28 | M34: 73.988 | N34: 74.024 | S34: 0 | T34: 0 | U34: 0 | V34: 0 | W34: 0 | AA34: 74.006 | AB34: 0.018 | AC34: 0.036 | AE34: 28 | AF34: 73.99986111 | AG34: 74.006 | AH34: 74.02524111 | AI34: 73.97448111 | AJ34: 0.0135 | AK34: 0.036 | AL34: 0.044145 | AO34: 28 | AP34: 73.967 | AQ34: 0 | AR34: 0 | AV34: =IF($N$20="","",$N$20) -> 73.967 | AX34: E14 | AY34: =IF($M$16="","",$M$16) -> 73.998 | BB34: =IF($P$13="","",$P$13) ->  | BE34: =IF($O$12="","",$O$12) ->  | BI34: Beobachtete Leistung in ppm | BW34: 28 | BX34: 28 | BY34: =IF(input!E32<>"",input!E32,BY33) -> 73.988 | BZ34: =IF(input!F32<>"",input!F32,BZ33) -> 74.024 | CA34: =IF(input!G32<>"",input!G32,CA33) ->  | CB34: =IF(input!H32<>"",input!H32,CB33) ->  | CC34: =IF(input!I32<>"",input!I32,CC33) ->  | CE34: 74.05 | CF34: 73.95 | CG34: 73.98865334 | CH34: 74.01106889 | CI34: 73.97744556 | CJ34: 74.02227666 | CK34: 73.96623778 | CL34: 74.03348444 | CM34: 73.99986111 | CX34: 28 | CY34: 73.996 | CZ34: 28 | DA34: 0.3652340543 | DB34: 0.6347659457 | DC34: 0.4243255918 | DD34: -102.5459105 | DE34: -0.298668007
B35: 29 | C35: =IF(input!E33="","",input!E33) -> 74.002 | D35: =IF(input!F33="","",input!F33) -> 73.996 | E35: =IF(input!G33="","",input!G33) ->  | F35: =IF(input!H33="","",input!H33) ->  | G35: =IF(input!I33="","",input!I33) ->  | L35: 29 | M35: 74.002 | N35: 73.996 | S35: 0 | T35: 0 | U35: 0 | V35: 0 | W35: 0 | AA35: 73.999 | AB35: 0.003 | AC35: 0.006 | AE35: 29 | AF35: 73.99986111 | AG35: 73.999 | AH35: 74.02524111 | AI35: 73.97448111 | AJ35: 0.0135 | AK35: 0.006 | AL35: 0.044145 | AO35: 29 | AP35: 74.012 | AQ35: 0 | AR35: 0 | AU35: E19 | AV35: =IF($M$21="","",$M$21) -> 74.012 | AY35: =IF($N$16="","",$N$16) -> 74 | BA35: E12 | BB35: =IF($M$14="","",$M$14) -> 73.985 | BE35: =IF($P$12="","",$P$12) ->  | BH35: Überschreitungsanteil pUGW | BI35: =IF(BI11="",0,AnzahlWertekleinerUGW/BI14*1000000) -> 0 | BW35: 29 | BX35: 29 | BY35: =IF(input!E33<>"",input!E33,BY34) -> 74.002 | BZ35: =IF(input!F33<>"",input!F33,BZ34) -> 73.996 | CA35: =IF(input!G33<>"",input!G33,CA34) ->  | CB35: =IF(input!H33<>"",input!H33,CB34) ->  | CC35: =IF(input!I33<>"",input!I33,CC34) ->  | CE35: 74.05 | CF35: 73.95 | CG35: 73.98865334 | CH35: 74.01106889 | CI35: 73.97744556 | CJ35: 74.02227666 | CK35: 73.96623778 | CL35: 74.03348444 | CM35: 73.99986111 | CX35: 29 | CY35: 73.996 | CZ35: 29 | DA35: 0.3652340543 | DB35: 0.6347659457 | DC35: 0.4243255918 | DD35: -106.2748527 | DE35: -0.262653475
B36: 30 | C36: =IF(input!E34="","",input!E34) -> 73.992 | D36: =IF(input!F34="","",input!F34) -> 74.007 | E36: =IF(input!G34="","",input!G34) ->  | F36: =IF(input!H34="","",input!H34) ->  | G36: =IF(input!I34="","",input!I34) ->  | L36: 30 | M36: 73.992 | N36: 74.007 | S36: 0 | T36: 0 | U36: 0 | V36: 0 | W36: 0 | AA36: 73.9995 | AB36: 0.0075 | AC36: 0.015 | AE36: 30 | AF36: 73.99986111 | AG36: 73.9995 | AH36: 74.02524111 | AI36: 73.97448111 | AJ36: 0.0135 | AK36: 0.015 | AL36: 0.044145 | AO36: 30 | AP36: 74.014 | AQ36: 0 | AR36: 0 | AV36: =IF($N$21="","",$N$21) -> 74.014 | AY36: =IF($O$16="","",$O$16) ->  | BB36: =IF($N$14="","",$N$14) -> 74.003 | BE36: =IF($Q$12="","",$Q$12) ->  | BH36: Überschreitungsanteil pOGW | BI36: =IF(BI12="",0,AnzahlWertegroesserOGW/BI14*1000000) -> 0 | BW36: 30 | BX36: 30 | BY36: =IF(input!E34<>"",input!E34,BY35) -> 73.992 | BZ36: =IF(input!F34<>"",input!F34,BZ35) -> 74.007 | CA36: =IF(input!G34<>"",input!G34,CA35) ->  | CB36: =IF(input!H34<>"",input!H34,CB35) ->  | CC36: =IF(input!I34<>"",input!I34,CC35) ->  | CE36: 74.05 | CF36: 73.95 | CG36: 73.98865334 | CH36: 74.01106889 | CI36: 73.97744556 | CJ36: 74.02227666 | CK36: 73.96623778 | CL36: 74.03348444 | CM36: 73.99986111 | CX36: 30 | CY36: 73.998 | CZ36: 30 | DA36: 0.4340566873 | DB36: 0.5659433127 | DC36: 0.4243255918 | DD36: -99.8182267 | DE36: -0.2269765342
B37: 31 | C37: =IF(input!E35="","",input!E35) -> 74.009 | D37: =IF(input!F35="","",input!F35) -> 73.994 | E37: =IF(input!G35="","",input!G35) ->  | F37: =IF(input!H35="","",input!H35) ->  | G37: =IF(input!I35="","",input!I35) ->  | L37: 31 | M37: 74.009 | N37: 73.994 | S37: 0 | T37: 0 | U37: 0 | V37: 0 | W37: 0 | AA37: 74.0015 | AB37: 0.0075 | AC37: 0.015 | AE37: 31 | AF37: 73.99986111 | AG37: 74.0015 | AH37: 74.02524111 | AI37: 73.97448111 | AJ37: 0.0135 | AK37: 0.015 | AL37: 0.044145 | AO37: 31 | AP37: 74 | AQ37: 0 | AR37: 0 | AU37: E20 | AV37: =IF($M$22="","",$M$22) -> 74 | AX37: E15 | AY37: =IF($M$17="","",$M$17) -> 73.994 | BB37: =IF($O$14="","",$O$14) ->  | BD37: E11 | BE37: =IF($M$13="","",$M$13) -> 73.995 | BH37: Überschreitungsanteil p | BI37: =BI36+BI35 -> 0 | BW37: 31 | BX37: 31 | BY37: =IF(input!E35<>"",input!E35,BY36) -> 74.009 | BZ37: =IF(input!F35<>"",input!F35,BZ36) -> 73.994 | CA37: =IF(input!G35<>"",input!G35,CA36) ->  | CB37: =IF(input!H35<>"",input!H35,CB36) ->  | CC37: =IF(input!I35<>"",input!I35,CC36) ->  | CE37: 74.05 | CF37: 73.95 | CG37: 73.98865334 | CH37: 74.01106889 | CI37: 73.97744556 | CJ37: 74.02227666 | CK37: 73.96623778 | CL37: 74.03348444 | CM37: 73.99986111 | CX37: 31 | CY37: 73.998 | CZ37: 31 | DA37: 0.4340566873 | DB37: 0.5659433127 | DC37: 0.4243255918 | DD37: -103.2018954 | DE37: -0.1915862699
B38: 32 | C38: =IF(input!E36="","",input!E36) -> 73.995 | D38: =IF(input!F36="","",input!F36) -> 74.006 | E38: =IF(input!G36="","",input!G36) ->  | F38: =IF(input!H36="","",input!H36) ->  | G38: =IF(input!I36="","",input!I36) ->  | L38: 32 | M38: 73.995 | N38: 74.006 | S38: 0 | T38: 0 | U38: 0 | V38: 0 | W38: 0 | AA38: 74.0005 | AB38: 0.0055 | AC38: 0.011 | AE38: 32 | AF38: 73.99986111 | AG38: 74.0005 | AH38: 74.02524111 | AI38: 73.97448111 | AJ38: 0.0135 | AK38: 0.011 | AL38: 0.044145 | AO38: 32 | AP38: 73.984 | AQ38: 0 | AR38: 0 | AV38: =IF($N$22="","",$N$22) -> 73.984 | AY38: =IF($N$17="","",$N$17) -> 73.998 | BB38: =IF($P$14="","",$P$14) ->  | BE38: =IF($N$13="","",$N$13) -> 74.006 | BW38: 32 | BX38: 32 | BY38: =IF(input!E36<>"",input!E36,BY37) -> 73.995 | BZ38: =IF(input!F36<>"",input!F36,BZ37) -> 74.006 | CA38: =IF(input!G36<>"",input!G36,CA37) ->  | CB38: =IF(input!H36<>"",input!H36,CB37) ->  | CC38: =IF(input!I36<>"",input!I36,CC37) ->  | CE38: 74.05 | CF38: 73.95 | CG38: 73.98865334 | CH38: 74.01106889 | CI38: 73.97744556 | CJ38: 74.02227666 | CK38: 73.96623778 | CL38: 74.03348444 | CM38: 73.99986111 | CX38: 32 | CY38: 73.998 | CZ38: 32 | DA38: 0.4340566873 | DB38: 0.5659433127 | DC38: 0.4243255918 | DD38: -106.5855641 | DE38: -0.1564344202
B39: 33 | C39: =IF(input!E37="","",input!E37) -> 73.985 | D39: =IF(input!F37="","",input!F37) -> 74.003 | E39: =IF(input!G37="","",input!G37) ->  | F39: =IF(input!H37="","",input!H37) ->  | G39: =IF(input!I37="","",input!I37) ->  | L39: 33 | M39: 73.985 | N39: 74.003 | S39: 0 | T39: 0 | U39: 0 | V39: 0 | W39: 0 | AA39: 73.994 | AB39: 0.009 | AC39: 0.018 | AE39: 33 | AF39: =IF(AA39="",NA(),xquerquer) -> 73.99986111 | AG39: =IF(AA39="",NA(),AA39) -> 73.994 | AH39: =IF(AA39="",NA(),xquerquer+(Azwei*Rquer)) -> 74.02524111 | AI39: =IF(AA39="",NA(),xquerquer-(Azwei*Rquer)) -> 73.97448111 | AJ39: =IF(AA39="",NA(),Rquer) -> 0.0135 | AK39: 0.018 | AL39: =IF(AA39="",NA(),Dvier*Rquer) -> 0.044145 | AO39: 33 | AP39: 73.994 | AQ39: 0 | AR39: 0 | AU39: E21 | AV39: =IF($M$23="","",$M$23) -> 73.994 | AY39: =IF($O$17="","",$O$17) ->  | BA39: E13 | BB39: =IF($M$15="","",$M$15) -> 74.008 | BE39: =IF($O$13="","",$O$13) ->  | BW39: 33 | BX39: =IF((AnzahlderStichproben>BW39),BW39,AnzahlderStichproben) -> 33 | BY39: =IF(input!E37<>"",input!E37,BY38) -> 73.985 | BZ39: =IF(input!F37<>"",input!F37,BZ38) -> 74.003 | CA39: =IF(input!G37<>"",input!G37,CA38) ->  | CB39: =IF(input!H37<>"",input!H37,CB38) ->  | CC39: =IF(input!I37<>"",input!I37,CC38) ->  | CE39: =IF($BI$12="",#N/A,IF(AP39<>"",OGW,CE38)) -> 74.05 | CF39: 73.95 | CG39: 73.98865334 | CH39: 74.01106889 | CI39: 73.97744556 | CJ39: 74.02227666 | CK39: 73.96623778 | CL39: 74.03348444 | CM39: 73.99986111 | CX39: 33 | CY39: 73.998 | CZ39: 33 | DA39: 0.4340566873 | DB39: =IF(AP39="","",1-DA39) -> 0.5659433127 | DC39: 0.4595307661 | DD39: =IF(AP39="","",(2*CZ39-1)*(LN(DC39)+LN(DA39))) -> -104.7884189 | DE39: -0.1214748713
B40: 34 | C40: =IF(input!E38="","",input!E38) -> 74.008 | D40: =IF(input!F38="","",input!F38) -> 73.995 | E40: =IF(input!G38="","",input!G38) ->  | F40: =IF(input!H38="","",input!H38) ->  | G40: =IF(input!I38="","",input!I38) ->  | L40: 34 | M40: 74.008 | N40: 73.995 | S40: 0 | T40: 0 | U40: 0 | V40: 0 | W40: 0 | AA40: 74.0015 | AB40: 0.0065 | AC40: 0.013 | AE40: 34 | AF40: 73.99986111 | AG40: 74.0015 | AH40: 74.02524111 | AI40: 73.97448111 | AJ40: 0.0135 | AK40: 0.013 | AL40: 0.044145 | AO40: 34 | AP40: 74.012 | AQ40: 0 | AR40: 0 | AV40: =IF($N$23="","",$N$23) -> 74.012 | AX40: E16 | AY40: =IF($M$18="","",$M$18) -> 74.004 | BB40: =IF($N$15="","",$N$15) -> 73.995 | BE40: =IF($P$13="","",$P$13) ->  | BH40: Umfang der Stichprobe neue Werte | BI40: =COUNT(calculation!C7:G7) -> 2 | BJ40: entsprechendes A2 | BK40: entsprechendes D4 | BL40: entsprechendes D2 | BW40: 34 | BX40: 34 | BY40: =IF(input!E38<>"",input!E38,BY39) -> 74.008 | BZ40: =IF(input!F38<>"",input!F38,BZ39) -> 73.995 | CA40: =IF(input!G38<>"",input!G38,CA39) ->  | CB40: =IF(input!H38<>"",input!H38,CB39) ->  | CC40: =IF(input!I38<>"",input!I38,CC39) ->  | CE40: 74.05 | CF40: 73.95 | CG40: =CG39 -> 73.98865334 | CH40: 74.01106889 | CI40: 73.97744556 | CJ40: 74.02227666 | CK40: 73.96623778 | CL40: 74.03348444 | CM40: 73.99986111 | CX40: 34 | CY40: 73.999 | CZ40: =IF(AP40="","",1+CZ39) -> 34 | DA40: 0.4693787546 | DB40: 0.5306212454 | DC40: 0.495056368 | DD40: -97.78173667 | DE40: -0.08666320245
B41: 35 | C41: =IF(input!E39="","",input!E39) -> 73.998 | D41: =IF(input!F39="","",input!F39) -> 74 | E41: =IF(input!G39="","",input!G39) ->  | F41: =IF(input!H39="","",input!H39) ->  | G41: =IF(input!I39="","",input!I39) ->  | L41: 35 | M41: 73.998 | N41: 74 | S41: 0 | T41: 0 | U41: 0 | V41: 0 | W41: 0 | AA41: 73.999 | AB41: 0.001 | AC41: 0.002 | AE41: 35 | AF41: 73.99986111 | AG41: 73.999 | AH41: 74.02524111 | AI41: 73.97448111 | AJ41: 0.0135 | AK41: 0.002 | AL41: 0.044145 | AO41: 35 | AP41: 74.006 | AQ41: 0 | AR41: 0 | AU41: E22 | AV41: =IF($M$24="","",$M$24) -> 74.006 | AY41: =IF($N$18="","",$N$18) -> 74 | BB41: =IF($O$15="","",$O$15) ->  | BE41: =IF($Q$13="","",$Q$13) ->  | BH41: Umfang der Stichprobe | BI41: =COUNT(calculation!M7:Q7) -> 2 | BJ41: =BL54 -> 1.88 | BK41: =BL56 -> 3.27 | BL41: =BL55 -> 1.128 | BW41: 35 | BX41: 35 | BY41: =IF(input!E39<>"",input!E39,BY40) -> 73.998 | BZ41: =IF(input!F39<>"",input!F39,BZ40) -> 74 | CA41: =IF(input!G39<>"",input!G39,CA40) ->  | CB41: =IF(input!H39<>"",input!H39,CB40) ->  | CC41: =IF(input!I39<>"",input!I39,CC40) ->  | CE41: 74.05 | CF41: 73.95 | CG41: 73.98865334 | CH41: 74.01106889 | CI41: 73.97744556 | CJ41: 74.02227666 | CK41: 73.96623778 | CL41: 74.03348444 | CM41: 73.99986111 | CX41: 35 | CY41: 74 | CZ41: 35 | DA41: 0.504943632 | DB41: 0.495056368 | DC41: 0.495056368 | DD41: -95.66105655 | DE41: -0.05195627238
B42: 36 | C42: =IF(input!E40="","",input!E40) -> 73.994 | D42: =IF(input!F40="","",input!F40) -> 73.998 | E42: =IF(input!G40="","",input!G40) ->  | F42: =IF(input!H40="","",input!H40) ->  | G42: =IF(input!I40="","",input!I40) ->  | L42: 36 | M42: 73.994 | N42: 73.998 | S42: 0 | T42: 0 | U42: 0 | V42: 0 | W42: 0 | AA42: 73.996 | AB42: 0.002 | AC42: 0.004 | AE42: 36 | AF42: 73.99986111 | AG42: 73.996 | AH42: 74.02524111 | AI42: 73.97448111 | AJ42: 0.0135 | AK42: 0.004 | AL42: 0.044145 | AO42: 36 | AP42: 74.01 | AQ42: 0 | AR42: 0 | AV42: =IF($N$24="","",$N$24) -> 74.01 | AY42: =IF($O$18="","",$O$18) ->  | BB42: =IF($P$15="","",$P$15) ->  | BD42: E12 | BE42: =IF($M$14="","",$M$14) -> 73.985 | BH42: Anzahl der Stichproben | BI42: =COUNT(M7:M56) -> 36 | BW42: 36 | BX42: 36 | BY42: =IF(input!E40<>"",input!E40,BY41) -> 73.994 | BZ42: =IF(input!F40<>"",input!F40,BZ41) -> 73.998 | CA42: =IF(input!G40<>"",input!G40,CA41) ->  | CB42: =IF(input!H40<>"",input!H40,CB41) ->  | CC42: =IF(input!I40<>"",input!I40,CC41) ->  | CE42: 74.05 | CF42: 73.95 | CG42: 73.98865334 | CH42: 74.01106889 | CI42: 73.97744556 | CJ42: 74.02227666 | CK42: 73.96623778 | CL42: 74.03348444 | CM42: 73.99986111 | CX42: 36 | CY42: 74 | CZ42: 36 | DA42: 0.504943632 | DB42: 0.495056368 | DC42: 0.495056368 | DD42: -98.4338408 | DE42: -0.01731183343
B43: 37 | C43: =IF(input!E41="","",input!E41) ->  | D43: =IF(input!F41="","",input!F41) ->  | E43: =IF(input!G41="","",input!G41) ->  | F43: =IF(input!H41="","",input!H41) ->  | G43: =IF(input!I41="","",input!I41) ->  | L43: 37 | S43: 0 | T43: 0 | U43: 0 | V43: 0 | W43: 0 | AE43: 36 | AO43: 37 | AP43: 73.984 | AQ43: 0 | AR43: 0 | AU43: E23 | AV43: =IF($M$25="","",$M$25) -> 73.984 | AX43: E17 | AY43: =IF($M$19="","",$M$19) -> 73.983 | BA43: E14 | BB43: =IF($M$16="","",$M$16) -> 73.998 | BE43: =IF($N$14="","",$N$14) -> 74.003 | BH43: Fähigkeitswerte innerhalb | BL43: userapiname | BN43: userapikey | BP43: anzahlstichprobe | BW43: 37 | BX43: 36 | BY43: =IF(input!E41<>"",input!E41,BY42) -> 73.994 | BZ43: =IF(input!F41<>"",input!F41,BZ42) -> 73.998 | CA43: =IF(input!G41<>"",input!G41,CA42) ->  | CB43: =IF(input!H41<>"",input!H41,CB42) ->  | CC43: =IF(input!I41<>"",input!I41,CC42) ->  | CE43: 74.05 | CF43: 73.95 | CG43: 73.98865334 | CH43: 74.01106889 | CI43: 73.97744556 | CJ43: 74.02227666 | CK43: 73.96623778 | CL43: 74.03348444 | CM43: 73.99986111 | CX43: 37 | CY43: 74 | CZ43: 37 | DA43: 0.504943632 | DB43: 0.495056368 | DC43: 0.495056368 | DD43: -101.206625 | DE43: 0.01731183343
B44: 38 | C44: =IF(input!E42="","",input!E42) ->  | D44: =IF(input!F42="","",input!F42) ->  | E44: =IF(input!G42="","",input!G42) ->  | F44: =IF(input!H42="","",input!H42) ->  | G44: =IF(input!I42="","",input!I42) ->  | L44: 38 | S44: 0 | T44: 0 | U44: 0 | V44: 0 | W44: 0 | AE44: 36 | AO44: 38 | AP44: 74.002 | AQ44: 0 | AR44: 0 | AV44: =IF($N$25="","",$N$25) -> 74.002 | AY44: =IF($N$19="","",$N$19) -> 74.002 | BB44: =IF($N$16="","",$N$16) -> 74 | BE44: =IF($O$14="","",$O$14) ->  | BH44: Standardabweichung innerhalb | BI44: =AVERAGE(Range) -> 0.0135 | BK44: "a":[" | BL44: =info_setup!C5 -> xx@sixsigmablackbelt.de | BM44: "," | BN44: =info_setup!C6 -> GFRDESX | BO44: "," | BP44: =BI40 -> 2 | BQ44: "] | BW44: 38 | BX44: 36 | BY44: =IF(input!E42<>"",input!E42,BY43) -> 73.994 | BZ44: =IF(input!F42<>"",input!F42,BZ43) -> 73.998 | CA44: =IF(input!G42<>"",input!G42,CA43) ->  | CB44: =IF(input!H42<>"",input!H42,CB43) ->  | CC44: =IF(input!I42<>"",input!I42,CC43) ->  | CE44: 74.05 | CF44: 73.95 | CG44: 73.98865334 | CH44: 74.01106889 | CI44: 73.97744556 | CJ44: 74.02227666 | CK44: 73.96623778 | CL44: 74.03348444 | CM44: 73.99986111 | CX44: 38 | CY44: 74 | CZ44: 38 | DA44: 0.504943632 | DB44: 0.495056368 | DC44: 0.495056368 | DD44: -103.9794093 | DE44: 0.05195627238
B45: 39 | C45: =IF(input!E43="","",input!E43) ->  | D45: =IF(input!F43="","",input!F43) ->  | E45: =IF(input!G43="","",input!G43) ->  | F45: =IF(input!H43="","",input!H43) ->  | G45: =IF(input!I43="","",input!I43) ->  | L45: 39 | S45: 0 | T45: 0 | U45: 0 | V45: 0 | W45: 0 | AE45: 36 | AO45: 39 | AP45: 74 | AQ45: 0 | AR45: 0 | AU45: E24 | AV45: =IF($M$26="","",$M$26) -> 74 | AY45: =IF($O$19="","",$O$19) ->  | BB45: =IF($O$16="","",$O$16) ->  | BE45: =IF($P$14="","",$P$14) ->  | BH45: entsprechendes d2 | BI45: =BL41 -> 1.128 | BW45: 39 | BX45: 36 | BY45: =IF(input!E43<>"",input!E43,BY44) -> 73.994 | BZ45: =IF(input!F43<>"",input!F43,BZ44) -> 73.998 | CA45: =IF(input!G43<>"",input!G43,CA44) ->  | CB45: =IF(input!H43<>"",input!H43,CB44) ->  | CC45: =IF(input!I43<>"",input!I43,CC44) ->  | CE45: 74.05 | CF45: 73.95 | CG45: 73.98865334 | CH45: 74.01106889 | CI45: 73.97744556 | CJ45: 74.02227666 | CK45: 73.96623778 | CL45: 74.03348444 | CM45: 73.99986111 | CX45: 39 | CY45: 74 | CZ45: 39 | DA45: 0.504943632 | DB45: 0.495056368 | DC45: 0.5306212454 | DD45: -101.4101761 | DE45: 0.08666320245
B46: 40 | C46: =IF(input!E44="","",input!E44) ->  | D46: =IF(input!F44="","",input!F44) ->  | E46: =IF(input!G44="","",input!G44) ->  | F46: =IF(input!H44="","",input!H44) ->  | G46: =IF(input!I44="","",input!I44) ->  | L46: 40 | S46: 0 | T46: 0 | U46: 0 | V46: 0 | W46: 0 | AE46: 36 | AO46: 40 | AP46: 74.01 | AQ46: 0 | AR46: 0 | AV46: =IF($N$26="","",$N$26) -> 74.01 | AX46: E18 | AY46: =IF($M$20="","",$M$20) -> 74.006 | BB46: =IF($P$16="","",$P$16) ->  | BE46: =IF($Q$14="","",$Q$14) ->  | BH46: Standardabweichung innerhalb | BI46: =BI44/BI45 -> 0.01196808511 | BK46: =BK44&BL44&BM44&BN44&BO44&BP44&BQ44 -> "a":["xx@sixsigmablackbelt.de","GFRDESX","2"] | BW46: 40 | BX46: 36 | BY46: =IF(input!E44<>"",input!E44,BY45) -> 73.994 | BZ46: =IF(input!F44<>"",input!F44,BZ45) -> 73.998 | CA46: =IF(input!G44<>"",input!G44,CA45) ->  | CB46: =IF(input!H44<>"",input!H44,CB45) ->  | CC46: =IF(input!I44<>"",input!I44,CC45) ->  | CE46: 74.05 | CF46: 73.95 | CG46: 73.98865334 | CH46: 74.01106889 | CI46: 73.97744556 | CJ46: 74.02227666 | CK46: 73.96623778 | CL46: 74.03348444 | CM46: 73.99986111 | CX46: 40 | CY46: 74.001 | CZ46: 40 | DA46: 0.5404692339 | DB46: 0.4595307661 | DC46: 0.5659433127 | DD46: -93.58173509 | DE46: 0.1214748713
B47: 41 | C47: =IF(input!E45="","",input!E45) ->  | D47: =IF(input!F45="","",input!F45) ->  | E47: =IF(input!G45="","",input!G45) ->  | F47: =IF(input!H45="","",input!H45) ->  | G47: =IF(input!I45="","",input!I45) ->  | L47: 41 | S47: 0 | T47: 0 | U47: 0 | V47: 0 | W47: 0 | AE47: 36 | AO47: 41 | AP47: 73.982 | AQ47: 0 | AR47: 0 | AU47: E25 | AV47: =IF($M$27="","",$M$27) -> 73.982 | AY47: =IF($N$20="","",$N$20) -> 73.967 | BA47: E15 | BB47: =IF($M$17="","",$M$17) -> 73.994 | BD47: E13 | BE47: =IF($M$15="","",$M$15) -> 74.008 | BW47: 41 | BX47: 36 | BY47: =IF(input!E45<>"",input!E45,BY46) -> 73.994 | BZ47: =IF(input!F45<>"",input!F45,BZ46) -> 73.998 | CA47: =IF(input!G45<>"",input!G45,CA46) ->  | CB47: =IF(input!H45<>"",input!H45,CB46) ->  | CC47: =IF(input!I45<>"",input!I45,CC46) ->  | CE47: 74.05 | CF47: 73.95 | CG47: 73.98865334 | CH47: 74.01106889 | CI47: 73.97744556 | CJ47: 74.02227666 | CK47: 73.96623778 | CL47: 74.03348444 | CM47: 73.99986111 | CX47: 41 | CY47: 74.002 | CZ47: 41 | DA47: 0.5756744082 | DB47: 0.4243255918 | DC47: 0.5659433127 | DD47: -90.83942654 | DE47: 0.1564344202
B48: 42 | C48: =IF(input!E46="","",input!E46) ->  | D48: =IF(input!F46="","",input!F46) ->  | E48: =IF(input!G46="","",input!G46) ->  | F48: =IF(input!H46="","",input!H46) ->  | G48: =IF(input!I46="","",input!I46) ->  | L48: 42 | S48: 0 | T48: 0 | U48: 0 | V48: 0 | W48: 0 | AE48: 36 | AO48: 42 | AP48: 74.001 | AQ48: 0 | AR48: 0 | AV48: =IF($N$27="","",$N$27) -> 74.001 | AY48: =IF($O$20="","",$O$20) ->  | BB48: =IF($N$17="","",$N$17) -> 73.998 | BE48: =IF($N$15="","",$N$15) -> 73.995 | BH48: Cp | BI48: =IF(OR(BI11="",BI12=""),"",(BI12-BI11)/(6*BI46)) -> 1.392592593 | BK48: ["{\"ergebnisuservalidieren\":[\"user xx@sixsigmablackbelt.de mit ppk in datensatz nicht vorhanden\"],\"ergebnisuservalidieren_status\":[\"nein\"],\"Lizenzdatum\":[\"\"],\"Notiz\":[\" \"],\"a2\":[\"1.88\"],\"d2\":[\"1.128\"],\"d4\":[\"3.27\"]}"] | BW48: 42 | BX48: 36 | BY48: =IF(input!E46<>"",input!E46,BY47) -> 73.994 | BZ48: =IF(input!F46<>"",input!F46,BZ47) -> 73.998 | CA48: =IF(input!G46<>"",input!G46,CA47) ->  | CB48: =IF(input!H46<>"",input!H46,CB47) ->  | CC48: =IF(input!I46<>"",input!I46,CC47) ->  | CE48: 74.05 | CF48: 73.95 | CG48: 73.98865334 | CH48: 74.01106889 | CI48: 73.97744556 | CJ48: 74.02227666 | CK48: 73.96623778 | CL48: 74.03348444 | CM48: 73.99986111 | CX48: 42 | CY48: 74.002 | CZ48: 42 | DA48: 0.5756744082 | DB48: 0.4243255918 | DC48: 0.5659433127 | DD48: -93.08237534 | DE48: 0.1915862699
B49: 43 | C49: =IF(input!E47="","",input!E47) ->  | D49: =IF(input!F47="","",input!F47) ->  | E49: =IF(input!G47="","",input!G47) ->  | F49: =IF(input!H47="","",input!H47) ->  | G49: =IF(input!I47="","",input!I47) ->  | L49: 43 | S49: 0 | T49: 0 | U49: 0 | V49: 0 | W49: 0 | AE49: 36 | AO49: 43 | AP49: 74.004 | AQ49: 0 | AR49: 0 | AU49: E26 | AV49: =IF($M$28="","",$M$28) -> 74.004 | AX49: E19 | AY49: =IF($M$21="","",$M$21) -> 74.012 | BB49: =IF($O$17="","",$O$17) ->  | BE49: =IF($O$15="","",$O$15) ->  | BH49: CPL | BI49: =IF(BI11<>"",(Mittelwert-BI11)/(3*BI46),"") -> 1.38872428 | BW49: 43 | BX49: 36 | BY49: =IF(input!E47<>"",input!E47,BY48) -> 73.994 | BZ49: =IF(input!F47<>"",input!F47,BZ48) -> 73.998 | CA49: =IF(input!G47<>"",input!G47,CA48) ->  | CB49: =IF(input!H47<>"",input!H47,CB48) ->  | CC49: =IF(input!I47<>"",input!I47,CC48) ->  | CE49: 74.05 | CF49: 73.95 | CG49: 73.98865334 | CH49: 74.01106889 | CI49: 73.97744556 | CJ49: 74.02227666 | CK49: 73.96623778 | CL49: 74.03348444 | CM49: 73.99986111 | CX49: 43 | CY49: 74.002 | CZ49: 43 | DA49: 0.5756744082 | DB49: 0.4243255918 | DC49: 0.5659433127 | DD49: -95.32532414 | DE49: 0.2269765342
B50: 44 | C50: =IF(input!E48="","",input!E48) ->  | D50: =IF(input!F48="","",input!F48) ->  | E50: =IF(input!G48="","",input!G48) ->  | F50: =IF(input!H48="","",input!H48) ->  | G50: =IF(input!I48="","",input!I48) ->  | L50: 44 | S50: 0 | T50: 0 | U50: 0 | V50: 0 | W50: 0 | AE50: 36 | AO50: 44 | AP50: 73.999 | AQ50: 0 | AR50: 0 | AV50: =IF($N$28="","",$N$28) -> 73.999 | AY50: =IF($N$21="","",$N$21) -> 74.014 | BB50: =IF($P$17="","",$P$17) ->  | BE50: =IF($P$15="","",$P$15) ->  | BH50: CPU | BI50: =IF(BI12<>"",(BI12-Mittelwert)/(3*BI46),"") -> 1.396460905 | BK50: ergebnisuservalidieren:user xx@sixsigmablackbelt.de mit ppk in datensatz nicht vorhanden | BW50: 44 | BX50: 36 | BY50: =IF(input!E48<>"",input!E48,BY49) -> 73.994 | BZ50: =IF(input!F48<>"",input!F48,BZ49) -> 73.998 | CA50: =IF(input!G48<>"",input!G48,CA49) ->  | CB50: =IF(input!H48<>"",input!H48,CB49) ->  | CC50: =IF(input!I48<>"",input!I48,CC49) ->  | CE50: 74.05 | CF50: 73.95 | CG50: 73.98865334 | CH50: 74.01106889 | CI50: 73.97744556 | CJ50: 74.02227666 | CK50: 73.96623778 | CL50: 74.03348444 | CM50: 73.99986111 | CX50: 44 | CY50: 74.002 | CZ50: 44 | DA50: 0.5756744082 | DB50: 0.4243255918 | DC50: 0.6347659457 | DD50: -87.58394217 | DE50: 0.262653475
B51: 45 | C51: =IF(input!E49="","",input!E49) ->  | D51: =IF(input!F49="","",input!F49) ->  | E51: =IF(input!G49="","",input!G49) ->  | F51: =IF(input!H49="","",input!H49) ->  | G51: =IF(input!I49="","",input!I49) ->  | L51: 45 | S51: 0 | T51: 0 | U51: 0 | V51: 0 | W51: 0 | AE51: 36 | AO51: 45 | AP51: 74.01 | AQ51: 0 | AR51: 0 | AU51: E27 | AV51: =IF($M$29="","",$M$29) -> 74.01 | AY51: =IF($O$21="","",$O$21) ->  | BA51: E16 | BB51: =IF($M$18="","",$M$18) -> 74.004 | BE51: =IF($Q$15="","",$Q$15) ->  | BH51: CPK | BI51: =MIN(BI49:BI50) -> 1.38872428 | BK51: nein | BW51: 45 | BX51: 36 | BY51: =IF(input!E49<>"",input!E49,BY50) -> 73.994 | BZ51: =IF(input!F49<>"",input!F49,BZ50) -> 73.998 | CA51: =IF(input!G49<>"",input!G49,CA50) ->  | CB51: =IF(input!H49<>"",input!H49,CB50) ->  | CC51: =IF(input!I49<>"",input!I49,CC50) ->  | CE51: 74.05 | CF51: 73.95 | CG51: 73.98865334 | CH51: 74.01106889 | CI51: 73.97744556 | CJ51: 74.02227666 | CK51: 73.96623778 | CL51: 74.03348444 | CM51: 73.99986111 | CX51: 45 | CY51: 74.002 | CZ51: 45 | DA51: 0.5756744082 | DB51: 0.4243255918 | DC51: 0.6347659457 | DD51: -89.59736613 | DE51: 0.298668007
B52: 46 | C52: =IF(input!E50="","",input!E50) ->  | D52: =IF(input!F50="","",input!F50) ->  | E52: =IF(input!G50="","",input!G50) ->  | F52: =IF(input!H50="","",input!H50) ->  | G52: =IF(input!I50="","",input!I50) ->  | L52: 46 | S52: 0 | T52: 0 | U52: 0 | V52: 0 | W52: 0 | AE52: 36 | AO52: 46 | AP52: 73.989 | AQ52: 0 | AR52: 0 | AV52: =IF($N$29="","",$N$29) -> 73.989 | AX52: E20 | AY52: =IF($M$22="","",$M$22) -> 74 | BB52: =IF($N$18="","",$N$18) -> 74 | BD52: E14 | BE52: =IF($M$16="","",$M$16) -> 73.998 | BW52: 46 | BX52: 36 | BY52: =IF(input!E50<>"",input!E50,BY51) -> 73.994 | BZ52: =IF(input!F50<>"",input!F50,BZ51) -> 73.998 | CA52: =IF(input!G50<>"",input!G50,CA51) ->  | CB52: =IF(input!H50<>"",input!H50,CB51) ->  | CC52: =IF(input!I50<>"",input!I50,CC51) ->  | CE52: 74.05 | CF52: 73.95 | CG52: 73.98865334 | CH52: 74.01106889 | CI52: 73.97744556 | CJ52: 74.02227666 | CK52: 73.96623778 | CL52: 74.03348444 | CM52: 73.99986111 | CX52: 46 | CY52: 74.002 | CZ52: 46 | DA52: 0.5756744082 | DB52: 0.4243255918 | DC52: 0.6677565344 | DD52: -87.00006614 | DE52: 0.3350742711
B53: 47 | C53: =IF(input!E51="","",input!E51) ->  | D53: =IF(input!F51="","",input!F51) ->  | E53: =IF(input!G51="","",input!G51) ->  | F53: =IF(input!H51="","",input!H51) ->  | G53: =IF(input!I51="","",input!I51) ->  | L53: 47 | S53: 0 | T53: 0 | U53: 0 | V53: 0 | W53: 0 | AE53: 36 | AO53: 47 | AP53: 74.015 | AQ53: 0 | AR53: 0 | AU53: E28 | AV53: =IF($M$30="","",$M$30) -> 74.015 | AY53: =IF($N$22="","",$N$22) -> 73.984 | BB53: =IF($O$18="","",$O$18) ->  | BE53: =IF($N$16="","",$N$16) -> 74 | BL53: kostenlos | BW53: 47 | BX53: 36 | BY53: =IF(input!E51<>"",input!E51,BY52) -> 73.994 | BZ53: =IF(input!F51<>"",input!F51,BZ52) -> 73.998 | CA53: =IF(input!G51<>"",input!G51,CA52) ->  | CB53: =IF(input!H51<>"",input!H51,CB52) ->  | CC53: =IF(input!I51<>"",input!I51,CC52) ->  | CE53: 74.05 | CF53: 73.95 | CG53: 73.98865334 | CH53: 74.01106889 | CI53: 73.97744556 | CJ53: 74.02227666 | CK53: 73.96623778 | CL53: 74.03348444 | CM53: 73.99986111 | CX53: 47 | CY53: 74.003 | CZ53: 47 | DA53: 0.6102855942 | DB53: 0.3897144058 | DC53: 0.6677565344 | DD53: -83.48236935 | DE53: 0.3719302911
B54: 48 | C54: =IF(input!E52="","",input!E52) ->  | D54: =IF(input!F52="","",input!F52) ->  | E54: =IF(input!G52="","",input!G52) ->  | F54: =IF(input!H52="","",input!H52) ->  | G54: =IF(input!I52="","",input!I52) ->  | L54: 48 | S54: 0 | T54: 0 | U54: 0 | V54: 0 | W54: 0 | AE54: 36 | AO54: 48 | AP54: 74.008 | AQ54: 0 | AR54: 0 | AV54: =IF($N$30="","",$N$30) -> 74.008 | AY54: =IF($O$22="","",$O$22) ->  | BB54: =IF($P$18="","",$P$18) ->  | BE54: =IF($O$16="","",$O$16) ->  | BK54: 1.88 | BL54: 1.88 | BW54: 48 | BX54: 36 | BY54: =IF(input!E52<>"",input!E52,BY53) -> 73.994 | BZ54: =IF(input!F52<>"",input!F52,BZ53) -> 73.998 | CA54: =IF(input!G52<>"",input!G52,CA53) ->  | CB54: =IF(input!H52<>"",input!H52,CB53) ->  | CC54: =IF(input!I52<>"",input!I52,CC53) ->  | CE54: 74.05 | CF54: 73.95 | CG54: 73.98865334 | CH54: 74.01106889 | CI54: 73.97744556 | CJ54: 74.02227666 | CK54: 73.96623778 | CL54: 74.03348444 | CM54: 73.99986111 | CX54: 48 | CY54: 74.003 | CZ54: 48 | DA54: 0.6102855942 | DB54: 0.3897144058 | DC54: 0.6677565344 | DD54: -85.27768912 | DE54: 0.4092987374
B55: 49 | C55: =IF(input!E53="","",input!E53) ->  | D55: =IF(input!F53="","",input!F53) ->  | E55: =IF(input!G53="","",input!G53) ->  | F55: =IF(input!H53="","",input!H53) ->  | G55: =IF(input!I53="","",input!I53) ->  | L55: 49 | S55: 0 | T55: 0 | U55: 0 | V55: 0 | W55: 0 | AE55: 36 | AO55: 49 | AP55: 73.982 | AQ55: 0 | AR55: 0 | AU55: E29 | AV55: =IF($M$31="","",$M$31) -> 73.982 | AX55: E21 | AY55: =IF($M$23="","",$M$23) -> 73.994 | BA55: E17 | BB55: =IF($M$19="","",$M$19) -> 73.983 | BE55: =IF($P$16="","",$P$16) ->  | BK55: 1.128 | BL55: 1.128 | BW55: 49 | BX55: 36 | BY55: =IF(input!E53<>"",input!E53,BY54) -> 73.994 | BZ55: =IF(input!F53<>"",input!F53,BZ54) -> 73.998 | CA55: =IF(input!G53<>"",input!G53,CA54) ->  | CB55: =IF(input!H53<>"",input!H53,CB54) ->  | CC55: =IF(input!I53<>"",input!I53,CC54) ->  | CE55: 74.05 | CF55: 73.95 | CG55: 73.98865334 | CH55: 74.01106889 | CI55: 73.97744556 | CJ55: 74.02227666 | CK55: 73.96623778 | CL55: 74.03348444 | CM55: 73.99986111 | CX55: 49 | CY55: 74.004 | CZ55: 49 | DA55: 0.6440431807 | DB55: 0.3559568193 | DC55: 0.6677565344 | DD55: -81.85065113 | DE55: 0.447247827
B56: 50 | C56: =IF(input!E54="","",input!E54) ->  | D56: =IF(input!F54="","",input!F54) ->  | E56: =IF(input!G54="","",input!G54) ->  | F56: =IF(input!H54="","",input!H54) ->  | G56: =IF(input!I54="","",input!I54) ->  | L56: 50 | S56: 0 | T56: 0 | U56: 0 | V56: 0 | W56: 0 | AE56: 36 | AO56: 50 | AP56: 73.984 | AQ56: 0 | AR56: 0 | AV56: =IF($N$31="","",$N$31) -> 73.984 | AY56: =IF($N$23="","",$N$23) -> 74.012 | BB56: =IF($N$19="","",$N$19) -> 74.002 | BE56: =IF($Q$16="","",$Q$16) ->  | BK56: 3.27 | BL56: 3.27 | BW56: 50 | BX56: 36 | BY56: =IF(input!E54<>"",input!E54,BY55) -> 73.994 | BZ56: =IF(input!F54<>"",input!F54,BZ55) -> 73.998 | CA56: =IF(input!G54<>"",input!G54,CA55) ->  | CB56: =IF(input!H54<>"",input!H54,CB55) ->  | CC56: =IF(input!I54<>"",input!I54,CC55) ->  | CE56: 74.05 | CF56: 73.95 | CG56: =CG55 -> 73.98865334 | CH56: 74.01106889 | CI56: 73.97744556 | CJ56: 74.02227666 | CK56: 73.96623778 | CL56: 74.03348444 | CM56: 73.99986111 | CX56: 50 | CY56: 74.004 | CZ56: 50 | DA56: 0.6440431807 | DB56: 0.3559568193 | DC56: 0.6677565344 | DD56: -83.53829342 | DE56: 0.4858523943
M57: =IF(input!E55="","",input!E55) ->  | N57: =IF(input!F55="","",input!F55) ->  | O57: =IF(input!G55="","",input!G55) ->  | P57: =IF(input!H55="","",input!H55) ->  | Q57: Mittelwert | V57: Summe | W57: =SUM(S2:W56) -> 0 | AA57: =AVERAGE(AA7:AA56) -> 73.99986111 | AB57: =AVERAGE(AB7:AB56) -> 0.00675 | AC57: =AVERAGE(AC7:AC56) -> 0.0135 | AO57: 51 | AP57: 74.03 | AQ57: 0 | AR57: 0 | AU57: E30 | AV57: =IF($M$32="","",$M$32) -> 74.03 | AY57: =IF($O$23="","",$O$23) ->  | BB57: =IF($O$19="","",$O$19) ->  | BD57: E15 | BE57: =IF($M$17="","",$M$17) -> 73.994 | CX57: 51 | CY57: 74.006 | CZ57: 51 | DA57: 0.708062983 | DB57: 0.291937017 | DC57: 0.6677565344 | DD57: -75.65444103 | DE57: 0.5251951821
M58: =IF(input!E56="","",input!E56) ->  | N58: =IF(input!F56="","",input!F56) ->  | O58: =IF(input!G56="","",input!G56) ->  | P58: =IF(input!H56="","",input!H56) ->  | Q58: =IF(input!I56="","",input!I56) ->  | AA58: Mittelwert | AB58: Standardabweichung | AC58: Range | AO58: 52 | AP58: 74.002 | AQ58: 0 | AR58: 0 | AV58: =IF($N$32="","",$N$32) -> 74.002 | AX58: E22 | AY58: =IF($M$24="","",$M$24) -> 74.006 | BB58: =IF($P$19="","",$P$19) ->  | BE58: =IF($N$17="","",$N$17) -> 73.998 | CX58: 52 | CY58: 74.006 | CZ58: 52 | DA58: 0.708062983 | DB58: 0.291937017 | DC58: 0.6994956315 | DD58: -72.3696499 | DE58: 0.5653684133
M59: =IF(input!E57="","",input!E57) ->  | N59: =IF(input!F57="","",input!F57) ->  | O59: =IF(input!G57="","",input!G57) ->  | P59: =IF(input!H57="","",input!H57) ->  | Q59: =IF(input!I57="","",input!I57) ->  | AO59: 53 | AP59: 73.995 | AQ59: 0 | AR59: 0 | AU59: E31 | AV59: =IF($M$33="","",$M$33) -> 73.995 | AY59: =IF($N$24="","",$N$24) -> 74.01 | BA59: E18 | BB59: =IF($M$20="","",$M$20) -> 74.006 | BE59: =IF($O$17="","",$O$17) ->  | CX59: 53 | CY59: 74.006 | CZ59: 53 | DA59: 0.708062983 | DB59: 0.291937017 | DC59: 0.6994956315 | DD59: -73.77488582 | DE59: 0.6064757283
AO60: 54 | AP60: 73.992 | AQ60: 0 | AR60: 0 | AV60: =IF($N$33="","",$N$33) -> 73.992 | AY60: =IF($O$24="","",$O$24) ->  | BB60: =IF($N$20="","",$N$20) -> 73.967 | BE60: =IF($P$17="","",$P$17) ->  | BI60: Histogramm Messwerte | CX60: 54 | CY60: 74.006 | CZ60: 54 | DA60: 0.708062983 | DB60: 0.291937017 | DC60: 0.6994956315 | DD60: -75.18012175 | DE60: 0.6486346002
AO61: 55 | AP61: 73.988 | AQ61: 0 | AR61: 0 | AU61: E32 | AV61: =IF($M$34="","",$M$34) -> 73.988 | AX61: E23 | AY61: =IF($M$25="","",$M$25) -> 73.984 | BB61: =IF($O$20="","",$O$20) ->  | BE61: =IF($Q$17="","",$Q$17) ->  | BI61: Anzahl Klassen Histogramm | BL61: =AnzahlKlassenHistogramm -> 20 | CX61: 55 | CY61: 74.007 | CZ61: 55 | DA61: 0.7379240739 | DB61: 0.2620759261 | DC61: 0.6994956315 | DD61: -72.08279769 | DE61: 0.6919793833
AO62: 56 | AP62: 74.024 | AQ62: 0 | AR62: 0 | AV62: =IF($N$34="","",$N$34) -> 74.024 | AY62: =IF($N$25="","",$N$25) -> 74.002 | BB62: =IF($P$20="","",$P$20) ->  | BD62: E16 | BE62: =IF($M$18="","",$M$18) -> 74.004 | BI62: Nummer | BJ62: Untere | BK62: Obere | BN62: Absolute | BO62: Relative | BR62: Häufig- | CX62: 56 | CY62: 74.007 | CZ62: 56 | DA62: 0.7379240739 | DB62: 0.2620759261 | DC62: 0.6994956315 | DD62: -73.40541783 | DE62: 0.7366652126
AO63: 57 | AP63: 74.002 | AQ63: 0 | AR63: 0 | AU63: E33 | AV63: =IF($M$35="","",$M$35) -> 74.002 | AY63: =IF($O$25="","",$O$25) ->  | BA63: E19 | BB63: =IF($M$21="","",$M$21) -> 74.012 | BE63: =IF($N$18="","",$N$18) -> 74 | BI63: der | BJ63: Klassen- | BK63: Klassen- | BL63: Klassen- | BM63: Klassen- | BN63: Summen- | BO63: Summen- | BP63: Absolute | BQ63: Relative | BR63: keits- | CX63: 57 | CY63: 74.008 | CZ63: 57 | DA63: 0.7661364902 | DB63: 0.2338635098 | DC63: 0.7584726612 | DD63: -61.34131139 | DE63: 0.7828730625
AO64: 58 | AP64: 73.996 | AQ64: 0 | AR64: 0 | AV64: =IF($N$35="","",$N$35) -> 73.996 | AX64: E24 | AY64: =IF($M$26="","",$M$26) -> 74 | BB64: =IF($N$21="","",$N$21) -> 74.014 | BE64: =IF($O$18="","",$O$18) ->  | BI64: Klasse | BJ64: grenze | BK64: grenze | BL64: mitte | BM64: breite | BN64: häufigkeit | BO64: häufigkeit | BP64: Häufigkeit | BQ64: Häufigkeit | BR64: dichte | CX64: 58 | CY64: 74.008 | CZ64: 58 | DA64: 0.7661364902 | DB64: 0.2338635098 | DC64: 0.7584726612 | DD64: -62.42699832 | DE64: 0.8308164149
AO65: 59 | AP65: 73.992 | AQ65: 0 | AR65: 0 | AU65: E34 | AV65: =IF($M$36="","",$M$36) -> 73.992 | AY65: =IF($N$26="","",$N$26) -> 74.01 | BB65: =IF($O$21="","",$O$21) ->  | BE65: =IF($P$18="","",$P$18) ->  | BI65: j | BJ65: UKGj | BK65: OKGj | BL65: xj´ | BM65: wj | BN65: G(OKGj) | BO65: H(OKGj) | BP65: nj | BQ65: hj | BR65: h(x) | CX65: 59 | CY65: 74.008 | CZ65: 59 | DA65: 0.7661364902 | DB65: 0.2338635098 | DC65: 0.7584726612 | DD65: -63.51268524 | DE65: 0.8807502014
AO66: 60 | AP66: 74.007 | AQ66: 0 | AR66: 0 | AV66: =IF($N$36="","",$N$36) -> 74.007 | AY66: =IF($O$26="","",$O$26) ->  | BB66: =IF($P$21="","",$P$21) ->  | BE66: =IF($Q$18="","",$Q$18) ->  | BI66: 1 | BJ66: =Minimum -> 73.967 | BK66: =BJ66+BM66 -> 73.97015 | BL66: =(BK66+BJ66)/2 -> 73.968575 | BM66: =Spannweite/AnzahlKlassenHistogramm -> 0.00315 | BN66: =FREQUENCY(xi,BK66) -> 1 | BO66: =$BN66/Anzahl -> 0.01388888889 | BP66: =BN66 -> 1 | BQ66: =BP66/Anzahl -> 0.01388888889 | BR66: =BQ66/BM66 -> 4.409171076 | CX66: 60 | CY66: 74.009 | CZ66: 60 | DA66: 0.7925800441 | DB66: 0.2074199559 | DC66: 0.7584726612 | DD66: -60.56032576 | DE66: 0.932983032
AO67: 61 | AP67: 74.009 | AQ67: 0 | AR67: 0 | AU67: E35 | AV67: =IF($M$37="","",$M$37) -> 74.009 | AX67: E25 | AY67: =IF($M$27="","",$M$27) -> 73.982 | BA67: E20 | BB67: =IF($M$22="","",$M$22) -> 74 | BD67: E17 | BE67: =IF($M$19="","",$M$19) -> 73.983 | BI67: 2 | BJ67: =IF(AnzahlKlassenHistogramm<BI67,BJ66,BJ66+BM67+0.00000001) -> 73.97015001 | BK67: =BJ67+BM67 -> 73.97330001 | BL67: =(BK67+BJ67)/2 -> 73.97172501 | BM67: 0.00315 | BN67: 1 | BO67: 0.01388888889 | BP67: =BN67-BN66 -> 0 | BQ67: 0 | BR67: =BQ67/BM67 -> 0 | CX67: 61 | CY67: 74.009 | CZ67: 61 | DA67: 0.7925800441 | DB67: 0.2074199559 | DC67: 0.833744693 | DD67: -50.12906862 | DE67: 0.9878942947
AO68: 62 | AP68: 73.994 | AQ68: 0 | AR68: 0 | AV68: =IF($N$37="","",$N$37) -> 73.994 | AY68: =IF($N$27="","",$N$27) -> 74.001 | BB68: =IF($N$22="","",$N$22) -> 73.984 | BE68: =IF($N$19="","",$N$19) -> 74.002 | BI68: 3 | BJ68: 73.97330002 | BK68: =BJ68+BM68 -> 73.97645002 | BL68: =(BK68+BJ68)/2 -> 73.97487502 | BM68: 0.00315 | BN68: 1 | BO68: 0.01388888889 | BP68: =BN68-BN67 -> 0 | BQ68: 0 | BR68: =BQ68/BM68 -> 0 | CX68: 62 | CY68: 74.01 | CZ68: 62 | DA68: 0.8171692377 | DB68: 0.1828307623 | DC68: 0.8550390747 | DD68: -44.0976119 | DE68: 1.045958679
AO69: 63 | AP69: 73.995 | AQ69: 0 | AR69: 0 | AU69: E36 | AV69: =IF($M$38="","",$M$38) -> 73.995 | AY69: =IF($O$27="","",$O$27) ->  | BB69: =IF($O$22="","",$O$22) ->  | BE69: =IF($O$19="","",$O$19) ->  | BI69: 4 | BJ69: 73.97645003 | BK69: 73.97960003 | BL69: 73.97802503 | BM69: 0.00315 | BN69: 1 | BO69: 0.01388888889 | BP69: 0 | BQ69: 0 | BR69: 0 | CX69: 63 | CY69: 74.01 | CZ69: 63 | DA69: 0.8171692377 | DB69: 0.1828307623 | DC69: 0.8550390747 | DD69: -44.81464624 | DE69: 1.107782404
AO70: 64 | AP70: 74.006 | AQ70: 0 | AR70: 0 | AV70: =IF($N$38="","",$N$38) -> 74.006 | AX70: E26 | AY70: =IF($M$28="","",$M$28) -> 74.004 | BB70: =IF($P$22="","",$P$22) ->  | BE70: =IF($P$19="","",$P$19) ->  | BI70: 5 | BJ70: 73.97960004 | BK70: 73.98275004 | BL70: 73.98117504 | BM70: 0.00315 | BN70: 3 | BO70: 0.04166666667 | BP70: 2 | BQ70: 0.02777777778 | BR70: 8.818342152 | CX70: 64 | CY70: 74.01 | CZ70: 64 | DA70: 0.8171692377 | DB70: 0.1828307623 | DC70: 0.907574254 | DD70: -37.95889714 | DE70: 1.174158633
AO71: 65 | AP71: 73.985 | AQ71: =IF(AP71<>"",IF(AP71<UGW,1,0),"") -> 0 | AR71: =IF(AP71<>"",IF(AP71>OGW,1,0),"") -> 0 | AU71: E37 | AV71: =IF($M$39="","",$M$39) -> 73.985 | AY71: =IF($N$28="","",$N$28) -> 73.999 | BA71: E21 | BB71: =IF($M$23="","",$M$23) -> 73.994 | BE71: =IF($Q$19="","",$Q$19) ->  | BI71: 6 | BJ71: 73.98275005 | BK71: 73.98590005 | BL71: 73.98432505 | BM71: 0.00315 | BN71: 9 | BO71: 0.125 | BP71: 6 | BQ71: 0.08333333333 | BR71: 26.45502646 | CX71: 65 | CY71: =IF(AP71="",NA(),SMALL(xi,CZ71)) -> 74.012 | CZ71: 65 | DA71: =IF(AP71="","",NORMSDIST((CY71-Mittelwert)/Standardabweichung)-0.00000001) -> 0.8606129571 | DB71: =IF(AP71="","",1-DA71) -> 0.1393870429 | DC71: =IF(AP71="","",SMALL(BG,CZ71)) -> 0.907574254 | DD71: =IF(AP71="","",(2*CZ71-1)*(LN(DC71)+LN(DA71))) -> -31.87464824 | DE71: =IF(AP71="",NA(),NORMSINV((CZ71-0.3)/(Anzahl+0.4))) -> 1.246155855
AO72: 66 | AP72: =IF($BI$41=2,IF(AV72<>"",AV72,""),(IF($BI$41=3,IF(AY72<>"",AY72,""),(IF($BI$41=4,IF(BB72<>"",BB72,""),IF(BE72<>"",BE72,"")))))) -> 74.003 | AQ72: 0 | AR72: 0 | AV72: =IF($N$39="","",$N$39) -> 74.003 | AY72: =IF($O$28="","",$O$28) ->  | BB72: =IF($N$23="","",$N$23) -> 74.012 | BD72: E18 | BE72: =IF($M$20="","",$M$20) -> 74.006 | BI72: 7 | BJ72: 73.98590006 | BK72: 73.98905006 | BL72: 73.98747506 | BM72: 0.00315 | BN72: 12 | BO72: 0.1666666667 | BP72: 3 | BQ72: 0.04166666667 | BR72: 13.22751323 | CX72: 66 | CY72: 74.012 | CZ72: =IF(AP72="","",1+CZ71) -> 66 | DA72: 0.8606129571 | DB72: 0.1393870429 | DC72: 0.9214933338 | DD72: -30.37498819 | DE72: 1.325266207
AO73: 67 | AP73: 74.008 | AQ73: 0 | AR73: 0 | AU73: E38 | AV73: =IF($M$40="","",$M$40) -> 74.008 | AX73: E27 | AY73: =IF($M$29="","",$M$29) -> 74.01 | BB73: =IF($O$23="","",$O$23) ->  | BE73: =IF($N$20="","",$N$20) -> 73.967 | BI73: 8 | BJ73: 73.98905007 | BK73: 73.99220007 | BL73: 73.99062507 | BM73: 0.00315 | BN73: 16 | BO73: 0.2222222222 | BP73: 4 | BQ73: 0.05555555556 | BR73: 17.6366843 | CX73: 67 | CY73: 74.014 | CZ73: 67 | DA73: 0.8964401007 | DB73: 0.1035598993 | DC73: 0.9214933338 | DD73: -25.41411067 | DE73: 1.413670865
AO74: 68 | AP74: 73.995 | AQ74: 0 | AR74: 0 | AV74: =IF($N$40="","",$N$40) -> 73.995 | AY74: =IF($N$29="","",$N$29) -> 73.989 | BB74: =IF($P$23="","",$P$23) ->  | BE74: =IF($O$20="","",$O$20) ->  | BI74: 9 | BJ74: 73.99220008 | BK74: 73.99535008 | BL74: 73.99377508 | BM74: 0.00315 | BN74: 27 | BO74: 0.375 | BP74: 11 | BQ74: 0.1527777778 | BR74: 48.50088183 | CX74: 68 | CY74: 74.015 | CZ74: 68 | DA74: 0.9116120189 | DB74: 0.08838798112 | DC74: 0.9214933338 | DD74: -23.530572 | DE74: 1.514755814
AO75: 69 | AP75: 73.998 | AQ75: 0 | AR75: 0 | AU75: E39 | AV75: =IF($M$41="","",$M$41) -> 73.998 | AY75: =IF($O$29="","",$O$29) ->  | BA75: E22 | BB75: =IF($M$24="","",$M$24) -> 74.006 | BE75: =IF($P$20="","",$P$20) ->  | BI75: 10 | BJ75: 73.99535009 | BK75: 73.99850009 | BL75: 73.99692509 | BM75: 0.00315 | BN75: 33 | BO75: 0.4583333333 | BP75: 6 | BQ75: 0.08333333333 | BR75: 26.45502646 | CX75: 69 | CY75: 74.024 | CZ75: 69 | DA75: 0.984370594 | DB75: 0.01562940603 | DC75: 0.9337623349 | DD75: -11.54720467 | DE75: 1.634232958
AO76: 70 | AP76: 74 | AQ76: 0 | AR76: 0 | AV76: =IF($N$41="","",$N$41) -> 74 | AX76: E28 | AY76: =IF($M$30="","",$M$30) -> 74.015 | BB76: =IF($N$24="","",$N$24) -> 74.01 | BE76: =IF($Q$20="","",$Q$20) ->  | BI76: 11 | BJ76: 73.9985001 | BK76: 74.0016501 | BL76: 74.0000751 | BM76: 0.00315 | BN76: 40 | BO76: 0.5555555556 | BP76: 7 | BQ76: 0.09722222222 | BR76: 30.86419753 | CX76: 70 | CY76: 74.024 | CZ76: 70 | DA76: 0.984370594 | DB76: 0.01562940603 | DC76: 0.9444911761 | DD76: -10.12778567 | DE76: 1.783004103
AO77: 71 | AP77: 73.994 | AQ77: 0 | AR77: 0 | AU77: E40 | AV77: =IF($M$42="","",$M$42) -> 73.994 | AY77: =IF($N$30="","",$N$30) -> 74.008 | BB77: =IF($O$24="","",$O$24) ->  | BD77: E19 | BE77: =IF($M$21="","",$M$21) -> 74.012 | BI77: 12 | BJ77: 74.00165011 | BK77: 74.00480011 | BL77: 74.00322511 | BM77: 0.00315 | BN77: 50 | BO77: 0.6944444444 | BP77: 10 | BQ77: 0.1388888889 | BR77: 44.09171076 | CX77: 71 | CY77: 74.03 | CZ77: 71 | DA77: 0.9964177985 | DB77: 0.003582201484 | DC77: 0.9444911761 | DD77: -8.558357004 | DE77: 1.98664883
AO78: 72 | AP78: 73.998 | AQ78: 0 | AR78: 0 | AV78: =IF($N$42="","",$N$42) -> 73.998 | AY78: =IF($O$30="","",$O$30) ->  | BB78: =IF($P$24="","",$P$24) ->  | BE78: =IF($N$21="","",$N$21) -> 74.014 | BI78: 13 | BJ78: 74.00480012 | BK78: 74.00795012 | BL78: 74.00637512 | BM78: 0.00315 | BN78: 56 | BO78: 0.7777777778 | BP78: 6 | BQ78: 0.08333333333 | BR78: 26.45502646 | CX78: 72 | CY78: 74.03 | CZ78: 72 | DA78: 0.9964177985 | DB78: 0.003582201484 | DC78: 0.9983160338 | DD78: -0.7541846663 | DE78: 2.338969413
AO79: 73 | AU79: E41 | AV79: =IF($M$43="","",$M$43) ->  | AX79: E29 | AY79: =IF($M$31="","",$M$31) -> 73.982 | BA79: E23 | BB79: =IF($M$25="","",$M$25) -> 73.984 | BE79: =IF($O$21="","",$O$21) ->  | BI79: 14 | BJ79: 74.00795013 | BK79: 74.01110013 | BL79: 74.00952513 | BM79: 0.00315 | BN79: 64 | BO79: 0.8888888889 | BP79: 8 | BQ79: 0.1111111111 | BR79: 35.27336861 | CX79: 73
AO80: 74 | AV80: =IF($N$43="","",$N$43) ->  | AY80: =IF($N$31="","",$N$31) -> 73.984 | BB80: =IF($N$25="","",$N$25) -> 74.002 | BE80: =IF($P$21="","",$P$21) ->  | BI80: 15 | BJ80: 74.01110014 | BK80: 74.01425014 | BL80: 74.01267514 | BM80: 0.00315 | BN80: 67 | BO80: 0.9305555556 | BP80: 3 | BQ80: 0.04166666667 | BR80: 13.22751323 | CX80: 74
AO81: 75 | AU81: E42 | AV81: =IF($M$44="","",$M$44) ->  | AY81: =IF($O$31="","",$O$31) ->  | BB81: =IF($O$25="","",$O$25) ->  | BE81: =IF($Q$21="","",$Q$21) ->  | BI81: 16 | BJ81: 74.01425015 | BK81: 74.01740015 | BL81: 74.01582515 | BM81: 0.00315 | BN81: 68 | BO81: 0.9444444444 | BP81: 1 | BQ81: 0.01388888889 | BR81: 4.409171076 | CX81: 75
AO82: 76 | AV82: =IF($N$44="","",$N$44) ->  | AX82: E30 | AY82: =IF($M$32="","",$M$32) -> 74.03 | BB82: =IF($P$25="","",$P$25) ->  | BD82: E20 | BE82: =IF($M$22="","",$M$22) -> 74 | BI82: 17 | BJ82: 74.01740016 | BK82: 74.02055016 | BL82: 74.01897516 | BM82: 0.00315 | BN82: 68 | BO82: 0.9444444444 | BP82: 0 | BQ82: 0 | BR82: 0 | CX82: 76
AO83: 77 | AU83: E43 | AV83: =IF($M$45="","",$M$45) ->  | AY83: =IF($N$32="","",$N$32) -> 74.002 | BA83: E24 | BB83: =IF($M$26="","",$M$26) -> 74 | BE83: =IF($N$22="","",$N$22) -> 73.984 | BI83: 18 | BJ83: 74.02055017 | BK83: 74.02370017 | BL83: 74.02212517 | BM83: 0.00315 | BN83: 68 | BO83: 0.9444444444 | BP83: 0 | BQ83: 0 | BR83: 0 | CX83: 77
AO84: 78 | AV84: =IF($N$45="","",$N$45) ->  | AY84: =IF($O$32="","",$O$32) ->  | BB84: =IF($N$26="","",$N$26) -> 74.01 | BE84: =IF($O$22="","",$O$22) ->  | BI84: 19 | BJ84: 74.02370018 | BK84: 74.02685018 | BL84: 74.02527518 | BM84: 0.00315 | BN84: 70 | BO84: 0.9722222222 | BP84: 2 | BQ84: 0.02777777778 | BR84: 8.818342152 | CX84: 78
AO85: 79 | AU85: E44 | AV85: =IF($M$46="","",$M$46) ->  | AX85: E31 | AY85: =IF($M$33="","",$M$33) -> 73.995 | BB85: =IF($O$26="","",$O$26) ->  | BE85: =IF($P$22="","",$P$22) ->  | BI85: 20 | BJ85: 74.02685019 | BK85: 74.03000019 | BL85: 74.02842519 | BM85: 0.00315 | BN85: 72 | BO85: 1 | BP85: 2 | BQ85: 0.02777777778 | BR85: 8.818342152 | CX85: 79
AO86: 80 | AV86: =IF($N$46="","",$N$46) ->  | AY86: =IF($N$33="","",$N$33) -> 73.992 | BB86: =IF($P$26="","",$P$26) ->  | BE86: =IF($Q$22="","",$Q$22) ->  | CX86: 80
AO87: 81 | AU87: E45 | AV87: =IF($M$47="","",$M$47) ->  | AY87: =IF($O$33="","",$O$33) ->  | BA87: E25 | BB87: =IF($M$27="","",$M$27) -> 73.982 | BD87: E21 | BE87: =IF($M$23="","",$M$23) -> 73.994 | CX87: 81
AO88: 82 | AV88: =IF($N$47="","",$N$47) ->  | AX88: E32 | AY88: =IF($M$34="","",$M$34) -> 73.988 | BB88: =IF($N$27="","",$N$27) -> 74.001 | BE88: =IF($N$23="","",$N$23) -> 74.012 | BI88: Histogramm Normalverteilung | CX88: 82
AO89: 83 | AU89: E46 | AV89: =IF($M$48="","",$M$48) ->  | AY89: =IF($N$34="","",$N$34) -> 74.024 | BB89: =IF($O$27="","",$O$27) ->  | BE89: =IF($O$23="","",$O$23) ->  | BJ89: 1.1 | BK89: =BK90-(BJ89*Standardabweichung) -> 73.92588979 | BL89: =NORMDIST(BK89,Mittelwert,Standardabweichung,0) -> 1.237248143e-08 | BN89: OGW | BO89: =IF(BI12="",#N/A,BI12) -> 74.05 | BP89: =MAX(Häufigkeitsdichte)*1.05 -> 50.92592593 | CX89: 83
AO90: 84 | AV90: =IF($N$48="","",$N$48) ->  | AY90: =IF($O$34="","",$O$34) ->  | BB90: =IF($P$27="","",$P$27) ->  | BE90: =IF($P$23="","",$P$23) ->  | BJ90: 1 | BK90: 73.93821834 | BL90: 9.609185732e-06 | BN90: UGW | BO90: =IF(BI11="",#N/A,BI11) -> 73.95 | BP90: 50.92592593 | CX90: 84
AO91: 85 | AU91: E47 | AV91: =IF($M$49="","",$M$49) ->  | AX91: E33 | AY91: =IF($M$35="","",$M$35) -> 74.002 | BA91: E26 | BB91: =IF($M$28="","",$M$28) -> 74.004 | BE91: =IF($Q$23="","",$Q$23) ->  | BJ91: 0.9 | BK91: 73.94942612 | BL91: 0.001426129611 | BN91: ="+ 3 Sigma" -> + 3 Sigma | BO91: =Mittelwert+3*Standardabweichung -> 74.03348444 | BP91: 50.92592593 | CX91: 85
AO92: 86 | AV92: =IF($N$49="","",$N$49) ->  | AY92: =IF($N$35="","",$N$35) -> 73.996 | BB92: =IF($N$28="","",$N$28) -> 73.999 | BD92: E22 | BE92: =IF($M$24="","",$M$24) -> 74.006 | BJ92: 0.8 | BK92: 73.95951312 | BL92: 0.05459619595 | BN92: ="- 3 Sigma" -> - 3 Sigma | BO92: =Mittelwert-3*Standardabweichung -> 73.96623778 | BP92: 50.92592593 | CX92: 86
AO93: 87 | AU93: E48 | AV93: =IF($M$50="","",$M$50) ->  | AY93: =IF($O$35="","",$O$35) ->  | BB93: =IF($O$28="","",$O$28) ->  | BE93: =IF($N$24="","",$N$24) -> 74.01 | BJ93: 0.7 | BK93: 73.96847934 | BL93: 0.7062464169 | BN93: Mittelwert | BO93: =Mittelwert -> 73.99986111 | BP93: 50.92592593 | CX93: 87
AO94: 88 | AV94: =IF($N$50="","",$N$50) ->  | AX94: E34 | AY94: =IF($M$36="","",$M$36) -> 73.992 | BB94: =IF($P$28="","",$P$28) ->  | BE94: =IF($O$24="","",$O$24) ->  | BJ94: 0.6 | BK94: 73.97632478 | BL94: 3.924382171 | BN94: Nominalwert | BO94: =Sollwert -> 74 | BP94: 50.92592593 | CX94: 88
AO95: 89 | AU95: E49 | AV95: =IF($M$51="","",$M$51) ->  | AY95: =IF($N$36="","",$N$36) -> 74.007 | BA95: E27 | BB95: =IF($M$29="","",$M$29) -> 74.01 | BE95: =IF($P$24="","",$P$24) ->  | BJ95: 0.5 | BK95: 73.98304945 | BL95: 11.55604793 | CX95: 89
AO96: 90 | AV96: =IF($N$51="","",$N$51) ->  | AY96: =IF($O$36="","",$O$36) ->  | BB96: =IF($N$29="","",$N$29) -> 73.989 | BE96: =IF($Q$24="","",$Q$24) ->  | BJ96: 0.4 | BK96: 73.98865334 | BL96: 21.58953983 | CX96: 90
AO97: 91 | AU97: E50 | AV97: =IF($M$52="","",$M$52) ->  | AX97: E35 | AY97: =IF($M$37="","",$M$37) -> 74.009 | BB97: =IF($O$29="","",$O$29) ->  | BD97: E23 | BE97: =IF($M$25="","",$M$25) -> 73.984 | BJ97: 0.3 | BK97: 73.99313645 | BL97: 29.73155471 | CX97: 91
AO98: 92 | AV98: =IF($N$52="","",$N$52) ->  | AY98: =IF($N$37="","",$N$37) -> 73.994 | BB98: =IF($P$29="","",$P$29) ->  | BE98: =IF($N$25="","",$N$25) -> 74.002 | BJ98: 0.2 | BK98: 73.99649878 | BL98: 34.02885803 | CX98: 92
AO99: 93 | AU99: E51 | AV99: =IF($M$53="","",$M$53) ->  | AY99: =IF($O$37="","",$O$37) ->  | BA99: E28 | BB99: =IF($M$30="","",$M$30) -> 74.015 | BE99: =IF($O$25="","",$O$25) ->  | BJ99: 0.1 | BK99: 73.99874033 | BL99: 35.41760207 | CX99: 93
AO100: 94 | AV100: =IF($N$53="","",$N$53) ->  | AX100: E36 | AY100: =IF($M$38="","",$M$38) -> 73.995 | BB100: =IF($N$30="","",$N$30) -> 74.008 | BE100: =IF($P$25="","",$P$25) ->  | BJ100: 0 | BK100: =Mittelwert -> 73.99986111 | BL100: 35.59513354 | CX100: 94
AO101: 95 | AU101: E52 | AV101: =IF($M$54="","",$M$54) ->  | AY101: =IF($N$38="","",$N$38) -> 74.006 | BB101: =IF($O$30="","",$O$30) ->  | BE101: =IF($Q$25="","",$Q$25) ->  | BJ101: 0.1 | BK101: =BK100+(BJ101*Standardabweichung) -> 74.00098189 | BL101: 35.41760207 | CX101: 95
AO102: 96 | AV102: =IF($N$54="","",$N$54) ->  | AY102: =IF($O$38="","",$O$38) ->  | BB102: =IF($P$30="","",$P$30) ->  | BD102: E24 | BE102: =IF($M$26="","",$M$26) -> 74 | BJ102: 0.2 | BK102: 74.00322344 | BL102: 34.02885803 | CX102: 96
AO103: 97 | AU103: E53 | AV103: =IF($M$55="","",$M$55) ->  | AX103: E37 | AY103: =IF($M$39="","",$M$39) -> 73.985 | BA103: E29 | BB103: =IF($M$31="","",$M$31) -> 73.982 | BE103: =IF($N$26="","",$N$26) -> 74.01 | BJ103: 0.3 | BK103: 74.00658578 | BL103: 29.73155471 | CX103: 97 | DB103: =IF(AP103="","",1-DA103) ->  | DD103: =IF(AP103="","",(2*CZ103-1)*(LN(DC103)+LN(DA103))) -> 
AO104: 98 | AV104: =IF($N$55="","",$N$55) ->  | AY104: =IF($N$39="","",$N$39) -> 74.003 | BB104: =IF($N$31="","",$N$31) -> 73.984 | BE104: =IF($O$26="","",$O$26) ->  | BJ104: 0.4 | BK104: 74.01106889 | BL104: 21.58953983 | CX104: 98 | CZ104: =IF(AP104="","",1+CZ103) -> 
AO105: 99 | AU105: E54 | AV105: =IF($M$56="","",$M$56) ->  | AY105: =IF($O$39="","",$O$39) ->  | BB105: =IF($O$31="","",$O$31) ->  | BE105: =IF($P$26="","",$P$26) ->  | BJ105: 0.5 | BK105: 74.01667277 | BL105: 11.55604793 | CX105: 99
AO106: 100 | AV106: =IF($N$56="","",$N$56) ->  | AX106: E38 | AY106: =IF($M$40="","",$M$40) -> 74.008 | BB106: =IF($P$31="","",$P$31) ->  | BE106: =IF($Q$26="","",$Q$26) ->  | BJ106: 0.6 | BK106: 74.02339744 | BL106: 3.924382171 | CX106: 100
AO107: 101 | AY107: =IF($N$40="","",$N$40) -> 73.995 | BA107: E30 | BB107: =IF($M$32="","",$M$32) -> 74.03 | BD107: E25 | BE107: =IF($M$27="","",$M$27) -> 73.982 | BJ107: 0.7 | BK107: 74.03124288 | BL107: 0.7062464169 | CX107: 101
AO108: 102 | AY108: =IF($O$40="","",$O$40) ->  | BB108: =IF($N$32="","",$N$32) -> 74.002 | BE108: =IF($N$27="","",$N$27) -> 74.001 | BJ108: 0.8 | BK108: 74.0402091 | BL108: 0.05459619595 | CX108: 102
AO109: 103 | AX109: E39 | AY109: =IF($M$41="","",$M$41) -> 73.998 | BB109: =IF($O$32="","",$O$32) ->  | BE109: =IF($O$27="","",$O$27) ->  | BJ109: 0.9 | BK109: 74.0502961 | BL109: 0.001426129611 | CX109: 103
AO110: 104 | AY110: =IF($N$41="","",$N$41) -> 74 | BB110: =IF($P$32="","",$P$32) ->  | BE110: =IF($P$27="","",$P$27) ->  | BJ110: 1 | BK110: 74.06150388 | BL110: 9.609185732e-06 | CX110: 104
AO111: 105 | AY111: =IF($O$41="","",$O$41) ->  | BA111: E31 | BB111: =IF($M$33="","",$M$33) -> 73.995 | BE111: =IF($Q$27="","",$Q$27) ->  | BJ111: 1.1 | BK111: 74.07383243 | BL111: 1.237248143e-08 | CX111: 105
AO112: 106 | AX112: E40 | AY112: =IF($M$42="","",$M$42) -> 73.994 | BB112: =IF($N$33="","",$N$33) -> 73.992 | BD112: E26 | BE112: =IF($M$28="","",$M$28) -> 74.004 | CX112: 106
AO113: 107 | AY113: =IF($N$42="","",$N$42) -> 73.998 | BB113: =IF($O$33="","",$O$33) ->  | BE113: =IF($N$28="","",$N$28) -> 73.999 | CX113: 107
AO114: 108 | AY114: =IF($O$42="","",$O$42) ->  | BB114: =IF($P$33="","",$P$33) ->  | BE114: =IF($O$28="","",$O$28) ->  | CX114: 108
AO115: 109 | AX115: E41 | AY115: =IF($M$43="","",$M$43) ->  | BA115: E32 | BB115: =IF($M$34="","",$M$34) -> 73.988 | BE115: =IF($P$28="","",$P$28) ->  | CX115: 109
AO116: 110 | AY116: =IF($N$43="","",$N$43) ->  | BB116: =IF($N$34="","",$N$34) -> 74.024 | BE116: =IF($Q$28="","",$Q$28) ->  | CX116: 110
AO117: 111 | AY117: =IF($O$43="","",$O$43) ->  | BB117: =IF($O$34="","",$O$34) ->  | BD117: E27 | BE117: =IF($M$29="","",$M$29) -> 74.01 | CX117: 111
AO118: 112 | AX118: E42 | AY118: =IF($M$44="","",$M$44) ->  | BB118: =IF($P$34="","",$P$34) ->  | BE118: =IF($N$29="","",$N$29) -> 73.989 | CX118: 112
AO119: 113 | AY119: =IF($N$44="","",$N$44) ->  | BA119: E33 | BB119: =IF($M$35="","",$M$35) -> 74.002 | BE119: =IF($O$29="","",$O$29) ->  | CX119: 113
AO120: 114 | AY120: =IF($O$44="","",$O$44) ->  | BB120: =IF($N$35="","",$N$35) -> 73.996 | BE120: =IF($P$29="","",$P$29) ->  | CX120: 114
AO121: 115 | AX121: E43 | AY121: =IF($M$45="","",$M$45) ->  | BB121: =IF($O$35="","",$O$35) ->  | BE121: =IF($Q$29="","",$Q$29) ->  | CX121: 115
AO122: 116 | AY122: =IF($N$45="","",$N$45) ->  | BB122: =IF($P$35="","",$P$35) ->  | BD122: E28 | BE122: =IF($M$30="","",$M$30) -> 74.015 | CX122: 116
AO123: 117 | AY123: =IF($O$45="","",$O$45) ->  | BA123: E34 | BB123: =IF($M$36="","",$M$36) -> 73.992 | BE123: =IF($N$30="","",$N$30) -> 74.008 | CX123: 117
AO124: 118 | AX124: E44 | AY124: =IF($M$46="","",$M$46) ->  | BB124: =IF($N$36="","",$N$36) -> 74.007 | BE124: =IF($O$30="","",$O$30) ->  | CX124: 118
AO125: 119 | AY125: =IF($N$46="","",$N$46) ->  | BB125: =IF($O$36="","",$O$36) ->  | BE125: =IF($P$30="","",$P$30) ->  | CX125: 119
AO126: 120 | AY126: =IF($O$46="","",$O$46) ->  | BB126: =IF($P$36="","",$P$36) ->  | BE126: =IF($Q$30="","",$Q$30) ->  | CX126: 120
AO127: 121 | AX127: E45 | AY127: =IF($M$47="","",$M$47) ->  | BA127: E35 | BB127: =IF($M$37="","",$M$37) -> 74.009 | BD127: E29 | BE127: =IF($M$31="","",$M$31) -> 73.982 | CX127: 121
AO128: 122 | AY128: =IF($N$47="","",$N$47) ->  | BB128: =IF($N$37="","",$N$37) -> 73.994 | BE128: =IF($N$31="","",$N$31) -> 73.984 | CX128: 122
AO129: 123 | AY129: =IF($O$47="","",$O$47) ->  | BB129: =IF($O$37="","",$O$37) ->  | BE129: =IF($O$31="","",$O$31) ->  | CX129: 123
AO130: 124 | AX130: E46 | AY130: =IF($M$48="","",$M$48) ->  | BB130: =IF($P$37="","",$P$37) ->  | BE130: =IF($P$31="","",$P$31) ->  | CX130: 124
AO131: 125 | AY131: =IF($N$48="","",$N$48) ->  | BA131: E36 | BB131: =IF($M$38="","",$M$38) -> 73.995 | BE131: =IF($Q$31="","",$Q$31) ->  | CX131: 125
AO132: 126 | AY132: =IF($O$48="","",$O$48) ->  | BB132: =IF($N$38="","",$N$38) -> 74.006 | BD132: E30 | BE132: =IF($M$32="","",$M$32) -> 74.03 | CX132: 126
AO133: 127 | AX133: E47 | AY133: =IF($M$49="","",$M$49) ->  | BB133: =IF($O$38="","",$O$38) ->  | BE133: =IF($N$32="","",$N$32) -> 74.002 | CX133: 127
AO134: 128 | AY134: =IF($N$49="","",$N$49) ->  | BB134: =IF($P$38="","",$P$38) ->  | BE134: =IF($O$32="","",$O$32) ->  | CX134: 128
AO135: 129 | AQ135: =IF(AP135<>"",IF(AP135<UGW,1,0),"") ->  | AR135: =IF(AP135<>"",IF(AP135>OGW,1,0),"") ->  | AY135: =IF($O$49="","",$O$49) ->  | BA135: E37 | BB135: =IF($M$39="","",$M$39) -> 73.985 | BE135: =IF($P$32="","",$P$32) ->  | CX135: 129 | CY135: =IF(AP135="",NA(),SMALL(xi,CZ135)) ->  | DA135: =IF(AP135="","",NORMSDIST((CY135-Mittelwert)/Standardabweichung)-0.00000001) ->  | DB135: =IF(AP135="","",1-DA135) ->  | DC135: =IF(AP135="","",SMALL(BG,CZ135)) ->  | DD135: =IF(AP135="","",(2*CZ135-1)*(LN(DC135)+LN(DA135))) ->  | DE135: =IF(AP135="",NA(),NORMSINV((CZ135-0.3)/(Anzahl+0.4))) -> 
AO136: 130 | AP136: =IF($BI$41=2,IF(AV136<>"",AV136,""),(IF($BI$41=3,IF(AY136<>"",AY136,""),(IF($BI$41=4,IF(BB136<>"",BB136,""),IF(BE136<>"",BE136,"")))))) ->  | AX136: E48 | AY136: =IF($M$50="","",$M$50) ->  | BB136: =IF($N$39="","",$N$39) -> 74.003 | BE136: =IF($Q$32="","",$Q$32) ->  | CX136: 130 | CZ136: =IF(AP136="","",1+CZ135) -> 
AO137: 131 | AY137: =IF($N$50="","",$N$50) ->  | BB137: =IF($O$39="","",$O$39) ->  | BD137: E31 | BE137: =IF($M$33="","",$M$33) -> 73.995 | CX137: 131
AO138: 132 | AY138: =IF($O$50="","",$O$50) ->  | BB138: =IF($P$39="","",$P$39) ->  | BE138: =IF($N$33="","",$N$33) -> 73.992 | CX138: 132
AO139: 133 | AX139: E49 | AY139: =IF($M$51="","",$M$51) ->  | BA139: E38 | BB139: =IF($M$40="","",$M$40) -> 74.008 | BE139: =IF($O$33="","",$O$33) ->  | CX139: 133
AO140: 134 | AY140: =IF($N$51="","",$N$51) ->  | BB140: =IF($N$40="","",$N$40) -> 73.995 | BE140: =IF($P$33="","",$P$33) ->  | CX140: 134
AO141: 135 | AY141: =IF($O$51="","",$O$51) ->  | BB141: =IF($O$40="","",$O$40) ->  | BE141: =IF($Q$33="","",$Q$33) ->  | CX141: 135
AO142: 136 | AX142: E50 | AY142: =IF($M$52="","",$M$52) ->  | BB142: =IF($P$40="","",$P$40) ->  | BD142: E32 | BE142: =IF($M$34="","",$M$34) -> 73.988 | CX142: 136
AO143: 137 | AY143: =IF($N$52="","",$N$52) ->  | BA143: E39 | BB143: =IF($M$41="","",$M$41) -> 73.998 | BE143: =IF($N$34="","",$N$34) -> 74.024 | CX143: 137
AO144: 138 | AY144: =IF($O$52="","",$O$52) ->  | BB144: =IF($N$41="","",$N$41) -> 74 | BE144: =IF($O$34="","",$O$34) ->  | CX144: 138
AO145: 139 | AX145: E51 | AY145: =IF($M$53="","",$M$53) ->  | BB145: =IF($O$41="","",$O$41) ->  | BE145: =IF($P$34="","",$P$34) ->  | CX145: 139
AO146: 140 | AY146: =IF($N$53="","",$N$53) ->  | BB146: =IF($P$41="","",$P$41) ->  | BE146: =IF($Q$34="","",$Q$34) ->  | CX146: 140
AO147: 141 | AY147: =IF($O$53="","",$O$53) ->  | BA147: E40 | BB147: =IF($M$42="","",$M$42) -> 73.994 | BD147: E33 | BE147: =IF($M$35="","",$M$35) -> 74.002 | CX147: 141
AO148: 142 | AX148: E52 | AY148: =IF($M$54="","",$M$54) ->  | BB148: =IF($N$42="","",$N$42) -> 73.998 | BE148: =IF($N$35="","",$N$35) -> 73.996 | CX148: 142
AO149: 143 | AY149: =IF($N$54="","",$N$54) ->  | BB149: =IF($O$42="","",$O$42) ->  | BE149: =IF($O$35="","",$O$35) ->  | CX149: 143
AO150: 144 | AY150: =IF($O$54="","",$O$54) ->  | BB150: =IF($P$42="","",$P$42) ->  | BE150: =IF($P$35="","",$P$35) ->  | CX150: 144
AO151: 145 | AX151: E53 | AY151: =IF($M$55="","",$M$55) ->  | BA151: E41 | BB151: =IF($M$43="","",$M$43) ->  | BE151: =IF($Q$35="","",$Q$35) ->  | CX151: 145
AO152: 146 | AY152: =IF($N$55="","",$N$55) ->  | BB152: =IF($N$43="","",$N$43) ->  | BD152: E34 | BE152: =IF($M$36="","",$M$36) -> 73.992 | CX152: 146
AO153: 147 | AY153: =IF($O$55="","",$O$55) ->  | BB153: =IF($O$43="","",$O$43) ->  | BE153: =IF($N$36="","",$N$36) -> 74.007 | CX153: 147
AO154: 148 | AX154: E54 | AY154: =IF($M$56="","",$M$56) ->  | BB154: =IF($P$43="","",$P$43) ->  | BE154: =IF($O$36="","",$O$36) ->  | CX154: 148
AO155: 149 | AY155: =IF($N$56="","",$N$56) ->  | BA155: E42 | BB155: =IF($M$44="","",$M$44) ->  | BE155: =IF($P$36="","",$P$36) ->  | CX155: 149
AO156: 150 | AY156: =IF($O$56="","",$O$56) ->  | BB156: =IF($N$44="","",$N$44) ->  | BE156: =IF($Q$36="","",$Q$36) ->  | CX156: 150
AO157: 151 | BB157: =IF($O$44="","",$O$44) ->  | BD157: E35 | BE157: =IF($M$37="","",$M$37) -> 74.009 | CX157: 151
AO158: 152 | BB158: =IF($P$44="","",$P$44) ->  | BE158: =IF($N$37="","",$N$37) -> 73.994 | CX158: 152
AO159: 153 | BA159: E43 | BB159: =IF($M$45="","",$M$45) ->  | BE159: =IF($O$37="","",$O$37) ->  | CX159: 153
AO160: 154 | BB160: =IF($N$45="","",$N$45) ->  | BE160: =IF($P$37="","",$P$37) ->  | CX160: 154
AO161: 155 | BB161: =IF($O$45="","",$O$45) ->  | BE161: =IF($Q$37="","",$Q$37) ->  | CX161: 155
AO162: 156 | BB162: =IF($P$45="","",$P$45) ->  | BD162: E36 | BE162: =IF($M$38="","",$M$38) -> 73.995 | CX162: 156
AO163: 157 | BA163: E44 | BB163: =IF($M$46="","",$M$46) ->  | BE163: =IF($N$38="","",$N$38) -> 74.006 | CX163: 157
AO164: 158 | BB164: =IF($N$46="","",$N$46) ->  | BE164: =IF($O$38="","",$O$38) ->  | CX164: 158
AO165: 159 | BB165: =IF($O$46="","",$O$46) ->  | BE165: =IF($P$38="","",$P$38) ->  | CX165: 159
AO166: 160 | BB166: =IF($P$46="","",$P$46) ->  | BE166: =IF($Q$38="","",$Q$38) ->  | CX166: 160
AO167: 161 | BA167: E45 | BB167: =IF($M$47="","",$M$47) ->  | BD167: E37 | BE167: =IF($M$39="","",$M$39) -> 73.985 | CX167: 161 | DB167: =IF(AP167="","",1-DA167) ->  | DD167: =IF(AP167="","",(2*CZ167-1)*(LN(DC167)+LN(DA167))) -> 
AO168: 162 | BB168: =IF($N$47="","",$N$47) ->  | BE168: =IF($N$39="","",$N$39) -> 74.003 | CX168: 162 | CZ168: =IF(AP168="","",1+CZ167) -> 
AO169: 163 | BB169: =IF($O$47="","",$O$47) ->  | BE169: =IF($O$39="","",$O$39) ->  | CX169: 163
AO170: 164 | BB170: =IF($P$47="","",$P$47) ->  | BE170: =IF($P$39="","",$P$39) ->  | CX170: 164
AO171: 165 | BA171: E46 | BB171: =IF($M$48="","",$M$48) ->  | BE171: =IF($Q$39="","",$Q$39) ->  | CX171: 165
AO172: 166 | BB172: =IF($N$48="","",$N$48) ->  | BD172: E38 | BE172: =IF($M$40="","",$M$40) -> 74.008 | CX172: 166
AO173: 167 | BB173: =IF($O$48="","",$O$48) ->  | BE173: =IF($N$40="","",$N$40) -> 73.995 | CX173: 167
AO174: 168 | BB174: =IF($P$48="","",$P$48) ->  | BE174: =IF($O$40="","",$O$40) ->  | CX174: 168
AO175: 169 | BA175: E47 | BB175: =IF($M$49="","",$M$49) ->  | BE175: =IF($P$40="","",$P$40) ->  | CX175: 169
AO176: 170 | BB176: =IF($N$49="","",$N$49) ->  | BE176: =IF($Q$40="","",$Q$40) ->  | CX176: 170
AO177: 171 | BB177: =IF($O$49="","",$O$49) ->  | BD177: E39 | BE177: =IF($M$41="","",$M$41) -> 73.998 | CX177: 171
AO178: 172 | BB178: =IF($P$49="","",$P$49) ->  | BE178: =IF($N$41="","",$N$41) -> 74 | CX178: 172
AO179: 173 | BA179: E48 | BB179: =IF($M$50="","",$M$50) ->  | BE179: =IF($O$41="","",$O$41) ->  | CX179: 173
AO180: 174 | BB180: =IF($N$50="","",$N$50) ->  | BE180: =IF($P$41="","",$P$41) ->  | CX180: 174
AO181: 175 | BB181: =IF($O$50="","",$O$50) ->  | BE181: =IF($Q$41="","",$Q$41) ->  | CX181: 175
AO182: 176 | BB182: =IF($P$50="","",$P$50) ->  | BD182: E40 | BE182: =IF($M$42="","",$M$42) -> 73.994 | CX182: 176
AO183: 177 | BA183: E49 | BB183: =IF($M$51="","",$M$51) ->  | BE183: =IF($N$42="","",$N$42) -> 73.998 | CX183: 177
AO184: 178 | BB184: =IF($N$51="","",$N$51) ->  | BE184: =IF($O$42="","",$O$42) ->  | CX184: 178
AO185: 179 | BB185: =IF($O$51="","",$O$51) ->  | BE185: =IF($P$42="","",$P$42) ->  | CX185: 179
AO186: 180 | BB186: =IF($P$51="","",$P$51) ->  | BE186: =IF($Q$42="","",$Q$42) ->  | CX186: 180
AO187: 181 | BA187: E50 | BB187: =IF($M$52="","",$M$52) ->  | BD187: E41 | BE187: =IF($M$43="","",$M$43) ->  | CX187: 181
AO188: 182 | BB188: =IF($N$52="","",$N$52) ->  | BE188: =IF($N$43="","",$N$43) ->  | CX188: 182
AO189: 183 | BB189: =IF($O$52="","",$O$52) ->  | BE189: =IF($O$43="","",$O$43) ->  | CX189: 183
AO190: 184 | BB190: =IF($P$52="","",$P$52) ->  | BE190: =IF($P$43="","",$P$43) ->  | CX190: 184
AO191: 185 | BA191: E51 | BB191: =IF($M$53="","",$M$53) ->  | BE191: =IF($Q$43="","",$Q$43) ->  | CX191: 185
AO192: 186 | BB192: =IF($N$53="","",$N$53) ->  | BD192: E42 | BE192: =IF($M$44="","",$M$44) ->  | CX192: 186
AO193: 187 | BB193: =IF($O$53="","",$O$53) ->  | BE193: =IF($N$44="","",$N$44) ->  | CX193: 187
AO194: 188 | BB194: =IF($P$53="","",$P$53) ->  | BE194: =IF($O$44="","",$O$44) ->  | CX194: 188
AO195: 189 | BA195: E52 | BB195: =IF($M$54="","",$M$54) ->  | BE195: =IF($P$44="","",$P$44) ->  | CX195: 189
AO196: 190 | BB196: =IF($N$54="","",$N$54) ->  | BE196: =IF($Q$44="","",$Q$44) ->  | CX196: 190
AO197: 191 | BB197: =IF($O$54="","",$O$54) ->  | BD197: E43 | BE197: =IF($M$45="","",$M$45) ->  | CX197: 191
AO198: 192 | BB198: =IF($P$54="","",$P$54) ->  | BE198: =IF($N$45="","",$N$45) ->  | CX198: 192
AO199: 193 | AQ199: =IF(AP199<>"",IF(AP199<UGW,1,0),"") ->  | AR199: =IF(AP199<>"",IF(AP199>OGW,1,0),"") ->  | BA199: E53 | BB199: =IF($M$55="","",$M$55) ->  | BE199: =IF($O$45="","",$O$45) ->  | CX199: 193 | CY199: =IF(AP199="",NA(),SMALL(xi,CZ199)) ->  | DA199: =IF(AP199="","",NORMSDIST((CY199-Mittelwert)/Standardabweichung)-0.00000001) ->  | DB199: =IF(AP199="","",1-DA199) ->  | DC199: =IF(AP199="","",SMALL(BG,CZ199)) ->  | DD199: =IF(AP199="","",(2*CZ199-1)*(LN(DC199)+LN(DA199))) ->  | DE199: =IF(AP199="",NA(),NORMSINV((CZ199-0.3)/(Anzahl+0.4))) -> 
AO200: 194 | AP200: =IF($BI$41=2,IF(AV200<>"",AV200,""),(IF($BI$41=3,IF(AY200<>"",AY200,""),(IF($BI$41=4,IF(BB200<>"",BB200,""),IF(BE200<>"",BE200,"")))))) ->  | BB200: =IF($N$55="","",$N$55) ->  | BE200: =IF($P$45="","",$P$45) ->  | CX200: 194 | CZ200: =IF(AP200="","",1+CZ199) -> 
AO201: 195 | BB201: =IF($O$55="","",$O$55) ->  | BE201: =IF($Q$45="","",$Q$45) ->  | CX201: 195
... 56 more rows

Sheet info_setup
B4: =language!BC1 -> Sprache
B5: =language!BD1 -> User - Email | C5: xx@sixsigmablackbelt.de
B6: =language!BE1 -> User - key | C6: GFRDESX
B8: =language!BF1 -> Gültig bis | C8: =calculation!BK52 -> 00:00:00
B9: =language!BG1 -> Notizen | C9: =calculation!BK53 -> 
B11: =language!BI1 -> Bemerkung | C11: =calculation!BK50 -> ergebnisuservalidieren:user xx@sixsigmablackbelt.de mit ppk in datensatz nicht vorhanden
B14: =language!BX1 -> Gültige Lizenz erwerben | C14: mail to roland.schnurr@sixsigmablackbelt.de
B15: =language!BT1 -> Kontakt | C15: roland.schnurr@sixsigmablackbelt.de
B16: =language!BU1 -> homepage | C16: www.sixsigmablackbelt.de

Sheet language
B1: 1 | C1: =VLOOKUP($B$1,$B$4:$CL$15,2,FALSE) -> Prozess- und Maschinenfähigkeit | D1: =VLOOKUP($B$1,$B$4:$CL$15,3,FALSE) -> Werte können geändert werden | E1: =VLOOKUP($B$1,$B$4:$CL$15,4,FALSE) -> Werte werden berechnet (Blatt Berechnung) | F1: =VLOOKUP($B$1,$B$4:$CL$15,5,FALSE) -> Artikel: | G1: =VLOOKUP($B$1,$B$4:$CL$15,6,FALSE) -> Nummer: | H1: =VLOOKUP($B$1,$B$4:$CL$15,7,FALSE) -> Zeichnung: | I1: =VLOOKUP($B$1,$B$4:$CL$15,8,FALSE) -> Prüfer: | J1: =VLOOKUP($B$1,$B$4:$CL$15,9,FALSE) -> Messmittel: | K1: =VLOOKUP($B$1,$B$4:$CL$15,10,FALSE) -> Datum: | L1: =VLOOKUP($B$1,$B$4:$CL$15,11,FALSE) -> Merkmal: | M1: =VLOOKUP($B$1,$B$4:$CL$15,12,FALSE) -> Maßeinheit: | N1: =VLOOKUP($B$1,$B$4:$CL$15,13,FALSE) -> Sollwert msoll = | O1: =VLOOKUP($B$1,$B$4:$CL$15,14,FALSE) -> UGW | P1: =VLOOKUP($B$1,$B$4:$CL$15,15,FALSE) -> OGW | Q1: =VLOOKUP($B$1,$B$4:$CL$15,16,FALSE) -> Anzahl Klassen Histogramm | R1: =VLOOKUP($B$1,$B$4:$CL$15,17,FALSE) -> Cpk< | S1: =VLOOKUP($B$1,$B$4:$CL$15,18,FALSE) -> Cpk | T1: =VLOOKUP($B$1,$B$4:$CL$15,19,FALSE) -> Cpk> | U1: =VLOOKUP($B$1,$B$4:$CL$15,20,FALSE) -> dazwischen | V1: =VLOOKUP($B$1,$B$4:$CL$15,21,FALSE) -> Prozess nicht fähig | W1: =VLOOKUP($B$1,$B$4:$CL$15,22,FALSE) -> Prozess bedingt fähig | X1: =VLOOKUP($B$1,$B$4:$CL$15,23,FALSE) -> Prozess fähig | Y1: =VLOOKUP($B$1,$B$4:$CL$15,24,FALSE) -> Stichprobenumfang | Z1: =VLOOKUP($B$1,$B$4:$CL$15,25,FALSE) -> Mittelwert | AA1: =VLOOKUP($B$1,$B$4:$CL$15,26,FALSE) -> Standardabweichung | AB1: =VLOOKUP($B$1,$B$4:$CL$15,27,FALSE) -> Die Werte sind nach Andersson Darling Test | AC1: =VLOOKUP($B$1,$B$4:$CL$15,28,FALSE) -> normalverteilt | AD1: =VLOOKUP($B$1,$B$4:$CL$15,29,FALSE) -> nicht normalverteilt | AE1: =VLOOKUP($B$1,$B$4:$CL$15,30,FALSE) -> 0 | AF1: =VLOOKUP($B$1,$B$4:$CL$15,31,FALSE) -> OGW | AG1: =VLOOKUP($B$1,$B$4:$CL$15,32,FALSE) -> UGW | AH1: =VLOOKUP($B$1,$B$4:$CL$15,33,FALSE) -> Stichprobe chronologisch | AI1: =VLOOKUP($B$1,$B$4:$CL$15,34,FALSE) -> Histogramm | AJ1: =VLOOKUP($B$1,$B$4:$CL$15,35,FALSE) -> Wahrscheinlichkeitsnetz | AK1: =VLOOKUP($B$1,$B$4:$CL$15,36,FALSE) -> 0 | AL1: =VLOOKUP($B$1,$B$4:$CL$15,37,FALSE) -> Cmu | AM1: =VLOOKUP($B$1,$B$4:$CL$15,38,FALSE) -> Cmo | AN1: =VLOOKUP($B$1,$B$4:$CL$15,39,FALSE) -> Cm | AO1: =VLOOKUP($B$1,$B$4:$CL$15,40,FALSE) -> Cmk | AP1: =VLOOKUP($B$1,$B$4:$CL$15,41,FALSE) -> Fähigkeits- kennwerte | AQ1: =VLOOKUP($B$1,$B$4:$CL$15,42,FALSE) -> Bewertung cmk => | AR1: =VLOOKUP($B$1,$B$4:$CL$15,43,FALSE) -> Median z | AS1: =VLOOKUP($B$1,$B$4:$CL$15,44,FALSE) -> Spannweite R | AT1: =VLOOKUP($B$1,$B$4:$CL$15,45,FALSE) -> Minimum | AU1: =VLOOKUP($B$1,$B$4:$CL$15,46,FALSE) -> Maximum | AV1: =VLOOKUP($B$1,$B$4:$CL$15,47,FALSE) -> Berechnete Leistung in ppm | AW1: =VLOOKUP($B$1,$B$4:$CL$15,48,FALSE) -> Über- schreitungs- anteil | AX1: =VLOOKUP($B$1,$B$4:$CL$15,49,FALSE) -> pUGW | AY1: =VLOOKUP($B$1,$B$4:$CL$15,50,FALSE) -> pOGW | AZ1: =VLOOKUP($B$1,$B$4:$CL$15,51,FALSE) -> p | BA1: =VLOOKUP($B$1,$B$4:$CL$15,52,FALSE) -> Beobachtete Leistung in ppm | BB1: =VLOOKUP($B$1,$B$4:$CL$15,53,FALSE) -> 0 | BC1: =VLOOKUP($B$1,$B$4:$CL$15,54,FALSE) -> Sprache | BD1: =VLOOKUP($B$1,$B$4:$CL$15,55,FALSE) -> User - Email | BE1: =VLOOKUP($B$1,$B$4:$CL$15,56,FALSE) -> User - key | BF1: =VLOOKUP($B$1,$B$4:$CL$15,57,FALSE) -> Gültig bis | BG1: =VLOOKUP($B$1,$B$4:$CL$15,58,FALSE) -> Notizen | BH1: =VLOOKUP($B$1,$B$4:$CL$15,59,FALSE) ->  | BI1: =VLOOKUP($B$1,$B$4:$CL$15,60,FALSE) -> Bemerkung | BJ1: =VLOOKUP($B$1,$B$4:$CL$15,61,FALSE) -> Status: Die Werte im Arbeitsblatt sind kalkuliert | BK1: =VLOOKUP($B$1,$B$4:$CL$15,62,FALSE) -> Status: Sie haben Werte verändert. Zum Kalkulieren den untenstehenden Button drücken. | BL1: =VLOOKUP($B$1,$B$4:$CL$15,63,FALSE) -> Ist Ihr Messwert einseitig begrenzt, so geben Sie nur den entsprechenden oberen oder unteren Grenzwert an. Bei einer einseitigen Grenze wird im industriellen Umfeld nur der Cmk berechnet. | BM1: =VLOOKUP($B$1,$B$4:$CL$15,64,FALSE) -> u-Wert | BN1: =VLOOKUP($B$1,$B$4:$CL$15,65,FALSE) -> + 3 Sigma | BO1: =VLOOKUP($B$1,$B$4:$CL$15,66,FALSE) -> - 3 Sigma | BP1: =VLOOKUP($B$1,$B$4:$CL$15,67,FALSE) -> Verteilung | BQ1: =VLOOKUP($B$1,$B$4:$CL$15,68,FALSE) -> Hilfe | BR1: =VLOOKUP($B$1,$B$4:$CL$15,69,FALSE) -> Normalverteilung | BS1: =VLOOKUP($B$1,$B$4:$CL$15,70,FALSE) -> Betragsverteilung 1. Art | BT1: =VLOOKUP($B$1,$B$4:$CL$15,71,FALSE) -> Kontakt | BU1: =VLOOKUP($B$1,$B$4:$CL$15,72,FALSE) -> homepage | BV1: =VLOOKUP($B$1,$B$4:$CL$15,73,FALSE) -> Ohne valide Lizenz ist keine Berechnung möglich - Mehr Info (z. Bsp. wie Sie eine Volllizenz erhalten können) unter dem Tabellenblatt 'info_setup' | BW1: =VLOOKUP($B$1,$B$4:$CL$15,74,FALSE) -> Ohne valide Lizenz ist keine Berechnung möglich - Mehr Info (z. Bsp. wie Sie eine Volllizenz erhalten können) unter dem Tabellenblatt 'info_setup' | BX1: =VLOOKUP($B$1,$B$4:$CL$15,75,FALSE) -> Gültige Lizenz erwerben | BY1: =VLOOKUP($B$1,$B$4:$CL$15,76,FALSE) -> Dateneingabe | BZ1: =VLOOKUP($B$1,$B$4:$CL$15,77,FALSE) -> Bis zu 50 Stichproben á 2 - 5 Werte | CA1: =VLOOKUP($B$1,$B$4:$CL$15,78,FALSE) -> Bei jeder Stichprobe muss die gleiche Anzahl an Messerten aufgenommen werden | CB1: =VLOOKUP($B$1,$B$4:$CL$15,79,FALSE) -> Methode für Schätzung Standardabweichung innerhalb - Rquer
A2: Sprache | B2: Beschreibung | C2: 1 | D2: 2 | E2: 3 | F2: 4 | G2: 5 | H2: 6 | I2: 7 | J2: 8 | K2: 9 | L2: 10 | M2: 11 | N2: 12 | O2: 13 | P2: 14 | Q2: 15 | R2: 16 | S2: 17 | T2: 18 | U2: 19 | V2: 20 | W2: 21 | X2: 22 | Y2: 23 | Z2: 24 | AA2: 25 | AB2: 26 | AC2: 27 | AD2: 28 | AE2: 29 | AF2: 30 | AG2: 31 | AH2: 32 | AI2: 33 | AJ2: 34 | AK2: 35 | AL2: 36 | AM2: 37 | AN2: 38 | AO2: 39 | AP2: 40 | AQ2: 41 | AR2: 42 | AS2: 43 | AT2: 44 | AU2: 45 | AV2: 46 | AW2: 47 | AX2: 48 | AY2: 49 | AZ2: 50 | BA2: 51 | BB2: 52 | BC2: 53 | BD2: 54 | BE2: 55 | BF2: 56 | BG2: 57 | BH2: 58 | BI2: 59 | BJ2: 61 | BK2: 62 | BL2: 63 | BM2: 63 | BN2: 64 | BO2: 65 | BP2: 66 | BQ2: 67 | BR2: 68 | BS2: 69 | BT2: 70 | BU2: 71 | BV2: 72 | BW2: 73 | BX2: 74 | BY2: 75 | BZ2: 76 | CA2: 77 | CB2: 78
A3: Tabelle | C3: input | D3: input | E3: input | F3: input | G3: input | H3: input | I3: input | J3: input | K3: input | L3: input | M3: input | N3: input | O3: input | P3: input | Q3: input | R3: input | S3: input | T3: input | U3: input | V3: input | W3: input | X3: input | Y3: input | Z3: input | AA3: input | AB3: input | AC3: input | AD3: input | AE3: input | AF3: input | AG3: input | AH3: input | AI3: input | AJ3: input | AK3: input | AL3: input | AM3: input | AN3: input | AO3: input | AP3: input | AQ3: input | AR3: input | AS3: input | AT3: input | AU3: input | AV3: input | AW3: input | AX3: input | AY3: input | AZ3: input | BA3: input | BC3: language | BD3: language | BE3: language | BF3: language | BG3: language | BH3: language | BI3: language | BJ3: input | BK3: input | BL3: input | BM3: input | BN3: input | BO3: input | BP3: input | BQ3: info_setup | BR3: input | BS3: input | BT3: info_setup | BU3: info_setup | BV3: input | BW3: licence | BX3: licence | BY3: input | BZ3: input | CA3: input | CB3: input
B4: Zelle | C4: O2 | D4: O4 | E4: O5 | F4: N7 | G4: N8 | H4: N9 | I4: N10 | J4: N11 | K4: N12 | L4: N13 | M4: N14 | N4: N15 | O4: N16 | P4: N17 | Q4: N18 | R4: N19 | S4: N20 | T4: N21 | U4: O20 | V4: P19 | W4: P20 | X4: P21 | Y4: N23 | Z4: N24 | AA4: N25 | AB4: N26 | AC4: P26 | AD4: P26 | AF4: Diagramm | AG4: Diagramm | AH4: Diagramm | AI4: Diagramm | AJ4: Diagramm | AL4: O30 | AM4: O31 | AN4: O32 | AO4: O33 | AP4: N30 | AQ4: N34 | AR4: N36 | AS4: N37 | AT4: N38 | AU4: N39 | AV4: N41 | AW4: N42 | AX4: O42 | AY4: O43 | AZ4: O44 | BA4: N46 | BC4: B4 | BD4: B5 | BE4: B6 | BF4: B7 | BG4: B8 | BH4: B9 | BI4: B10 | BJ4: AB2 | BK4: AB2 | BL4: R48 | BM4: Diagramm | BN4: Diagramm | BO4: Diagramm | BP4: N22 | BQ4: Verteilung | BR4: Verteilung | BS4: Verteilung | BT4: B19 | BU4: B20 | BV4: msgbox | BW4: msgbox | BX4: msgbox
A5: deutsch | B5: 1 | C5: Prozess- und Maschinenfähigkeit | D5: Werte können geändert werden | E5: Werte werden berechnet (Blatt Berechnung) | F5: Artikel: | G5: Nummer: | H5: Zeichnung: | I5: Prüfer: | J5: Messmittel: | K5: Datum: | L5: Merkmal: | M5: Maßeinheit: | N5: Sollwert msoll = | O5: UGW | P5: OGW | Q5: Anzahl Klassen Histogramm | R5: Cpk< | S5: Cpk | T5: Cpk> | U5: dazwischen | V5: Prozess nicht fähig | W5: Prozess bedingt fähig | X5: Prozess fähig | Y5: Stichprobenumfang | Z5: Mittelwert | AA5: Standardabweichung | AB5: Die Werte sind nach Andersson Darling Test | AC5: normalverteilt | AD5: nicht normalverteilt | AF5: OGW | AG5: UGW | AH5: Stichprobe chronologisch | AI5: Histogramm | AJ5: Wahrscheinlichkeitsnetz | AL5: Cmu | AM5: Cmo | AN5: Cm | AO5: Cmk | AP5: Fähigkeits- kennwerte | AQ5: ="Bewertung cmk =>" -> Bewertung cmk => | AR5: Median z | AS5: Spannweite R | AT5: Minimum | AU5: Maximum | AV5: Berechnete Leistung in ppm | AW5: Über- schreitungs- anteil | AX5: pUGW | AY5: pOGW | AZ5: p | BA5: Beobachtete Leistung in ppm | BC5: Sprache | BD5: User - Email | BE5: User - key | BF5: Gültig bis | BG5: Notizen | BH5: ="" ->  | BI5: Bemerkung | BJ5: Status: Die Werte im Arbeitsblatt sind kalkuliert | BK5: Status: Sie haben Werte verändert. Zum Kalkulieren den untenstehenden Button drücken. | BL5: Ist Ihr Messwert einseitig begrenzt, so geben Sie nur den entsprechenden oberen oder unteren Grenzwert an. Bei einer einseitigen Grenze wird im industriellen Umfeld nur der Cmk berechnet. | BM5: u-Wert | BN5: ="+ 3 Sigma" -> + 3 Sigma | BO5: ="- 3 Sigma" -> - 3 Sigma | BP5: Verteilung | BQ5: Hilfe | BR5: Normalverteilung | BS5: Betragsverteilung 1. Art | BT5: Kontakt | BU5: homepage | BV5: Ohne valide Lizenz ist keine Berechnung möglich - Mehr Info (z. Bsp. wie Sie eine Volllizenz erhalten können) unter dem Tabellenblatt 'info_setup' | BW5: Ohne valide Lizenz ist keine Berechnung möglich - Mehr Info (z. Bsp. wie Sie eine Volllizenz erhalten können) unter dem Tabellenblatt 'info_setup' | BX5: Gültige Lizenz erwerben | BY5: Dateneingabe | BZ5: Bis zu 50 Stichproben á 2 - 5 Werte | CA5: Bei jeder Stichprobe muss die gleiche Anzahl an Messerten aufgenommen werden | CB5: Methode für Schätzung Standardabweichung innerhalb - Rquer
A6: english | B6: 2 | C6: process and machine capability | D6: value could be changed | E6: value is calculated | F6: part: | G6: part number: | H6: drawing: | I6: inspector: | J6: measuring dev: | K6: date: | L6: attribute: | M6: measuring unit: | N6: nominal value = | O6: lower spec. limit LSL | P6: upper spec. limit USL | Q6: number of classes histogram | R6: Cpk< | S6: Cpk | T6: Cpk> | U6: between | V6: process not capable | W6: process limited capable | X6: process capable | Y6: sample size | Z6: mid | AA6: standard deviation s | AB6: values are according Andersson Darling test | AC6: normal distributed | AD6: not normal distributed | AF6: USL | AG6: LSL | AH6: random sample chronological | AI6: histogram | AJ6: probability plot | AL6: Cpkl | AM6: Cpku | AN6: Cp | AO6: Cpk | AP6: probability values | AQ6: evaluation Cpk => | AR6: median | AS6: range | AT6: minimum | AU6: maximum | AV6: calculated performance | AW6: exceedance | AX6: pLSL | AY6: pUSL | AZ6: p | BA6: observed performance in ppm | BC6: language | BD6: user - email | BE6: user - key | BF6: valid until | BG6: note | BH6: ="" ->  | BI6: note | BJ6: The values are calculated | BK6: Sie haben Werte verändert. Bitte kalkulieren | BL6: If your measured value is one-sided limited, enter only the corresponding upper or lower limit value. With a one-sided limit, in the industrial environment only the Cpk is calclulated | BM6: u-value | BN6: ="+ 3 sigma" -> + 3 sigma | BO6: ="- 3 sigma" -> - 3 sigma | BP6: distribution | BQ6: help | BR6: normal distribution | BS6: truncated normal distribution | BT6: contact | BU6: homepage | BV6: No calculation is possible without a valid licence - More information (e.g. how to obtain a full licence) in the 'info_setup' worksheet | BW6: No calculation is possible without a valid licence - More information (e.g. how to obtain a full licence) in the 'info_setup' worksheet | BX6: buy the full licence | BY6: data input | BZ6: Up to 50 samples of 2 -5 values each | CA6: The same number of samples must be taken for each sample | CB6: Method for estimating standard deviation within - Rquer
A7: italiano | B7: 3 | C7: Capacità di processo e macchina | D7: Valore modificabile | E7: Valore calcolato | F7: Articolo: | G7: Codice: | H7: Disegno | I7: Ispettore | J7: Strumento | K7: Data | L7: Attributo: | M7: Unità di misura | N7: Valore nominale = | O7: Limite inferiore di specifica LSM | P7: Limite superiore di specifica LSS | Q7: Numero di classi dell'istogramma | R7: Cpk< | S7: Cpk | T7: Cpk> | U7: tra | V7: Processo non capace | W7: Processo capace in modo limitatato | X7: Processo capace | Y7: Dimensione del campione | Z7: media | AA7: Deviazione standard s | AB7: Valori in accorso al test Andersson Darling | AC7: Distribuzione normale | AD7: Distribuzione non normale | AF7: USL | AG7: LSL | AH7: Campione casuale cronologico | AI7: Istogramma | AJ7: Grafico delle probabilità | AL7: Cpkl | AM7: Cpku | AN7: Cp | AO7: Cpk | AP7: Valori di probabilità | AQ7: Vautazione Cpk => | AR7: Media | AS7: Range | AT7: Minimo | AU7: Massimo | AV7: Performance calcolata | AW7: Eccedenza | AX7: pLSL | AY7: pUSL | AZ7: p | BA7: Prestazione osservata in ppm | BC7: d | BD7: user - Email | BE7: user - key | BF7: valid until | BG7: note | BH7: ="" ->  | BI7: note | BJ7: Ihre aktuellen Werte sind kalkuliert | BK7: Sie haben Werte verändert. Bitte kalkulieren | BL7: Se il valore misurato è limitato da un lato, inserire solo il valore limite superiore o inferiore corrispondente. Se il limite è unilaterale, nell'ambiente industriale viene calcolato solo il Cpk. | BN7: ="+ 3 sigma" -> + 3 sigma | BO7: ="- 3 sigma" -> - 3 sigma | BP7: distribuzione | BQ7: distribuzione | BR7: distribuzione normale | BS7: distribuzione normale troncata | BT7: NN | BU7: NN | BV7: Non è possibile effettuare calcoli senza una licenza valida - Maggiori informazioni (ad esempio su come ottenere una licenza completa) nel foglio di lavoro "info_setup". | BW7: Non è possibile effettuare calcoli senza una licenza valida - Maggiori informazioni (ad esempio su come ottenere una licenza completa) nel foglio di lavoro "info_setup". | BX7: Acquistare la licenza completa | BY7: Inserimento dati | BZ7: Fino a 50 campioni di 2 -5 valori ciascuno | CA7: Per ogni campione deve essere prelevato lo stesso numero di campioni. | CB7: Metodo per la stima della deviazione standard all'interno di - Rquer
A8: espanol | B8: 4 | C8: NN2 | D8: NN2 | E8: NN2 | F8: NN2 | G8: NN2 | H8: NN2 | I8: NN2 | J8: NN2 | K8: NN2 | L8: NN2 | M8: NN2 | N8: NN2 | O8: NN2 | P8: NN2 | Q8: NN2 | R8: NN2 | S8: NN2 | T8: NN2 | U8: NN2 | V8: NN2 | W8: NN2 | X8: NN2 | Y8: NN2 | Z8: NN2 | AA8: NN2 | AB8: NN2 | AC8: NN2 | AD8: NN2 | AE8: NN2 | AF8: NN2 | AG8: NN2 | AH8: NN2 | AI8: NN2 | AJ8: NN2 | AK8: NN2 | AL8: NN2 | AM8: NN2 | AN8: NN2 | AO8: NN2 | AP8: NN2 | AQ8: NN2 | AR8: NN2 | AS8: NN2 | AT8: NN2 | AU8: NN2 | AV8: NN2 | AW8: NN2 | AX8: NN2 | AY8: NN2 | AZ8: NN2 | BA8: NN2 | BB8: NN2 | BC8: NN2 | BD8: NN2 | BE8: NN2 | BF8: NN2 | BG8: NN2 | BH8: NN2 | BI8: NN2 | BJ8: NN2 | BK8: NN2 | BL8: NN2 | BM8: NN2 | BN8: NN2 | BO8: NN2 | BP8: NN2 | BQ8: NN2 | BR8: NN2 | BS8: NN2 | BT8: NN2 | BU8: NN2 | BV8: NN2 | BW8: NN2 | BX8: NN2 | BY8: NN2 | BZ8: NN2 | CA8: NN2 | CB8: NN2
A9: francais | B9: 5 | C9: NN3 | D9: NN3 | E9: NN3 | F9: NN3 | G9: NN3 | H9: NN3 | I9: NN3 | J9: NN3 | K9: NN3 | L9: NN3 | M9: NN3 | N9: NN3 | O9: NN3 | P9: NN3 | Q9: NN3 | R9: NN3 | S9: NN3 | T9: NN3 | U9: NN3 | V9: NN3 | W9: NN3 | X9: NN3 | Y9: NN3 | Z9: NN3 | AA9: NN3 | AB9: NN3 | AC9: NN3 | AD9: NN3 | AE9: NN3 | AF9: NN3 | AG9: NN3 | AH9: NN3 | AI9: NN3 | AJ9: NN3 | AK9: NN3 | AL9: NN3 | AM9: NN3 | AN9: NN3 | AO9: NN3 | AP9: NN3 | AQ9: NN3 | AR9: NN3 | AS9: NN3 | AT9: NN3 | AU9: NN3 | AV9: NN3 | AW9: NN3 | AX9: NN3 | AY9: NN3 | AZ9: NN3 | BA9: NN3 | BB9: NN3 | BC9: NN3 | BD9: NN3 | BE9: NN3 | BF9: NN3 | BG9: NN3 | BH9: NN3 | BI9: NN3 | BJ9: NN3 | BK9: NN3 | BL9: NN3 | BM9: NN3 | BN9: NN3 | BO9: NN3 | BP9: NN3 | BQ9: NN3 | BR9: NN3 | BS9: NN3 | BT9: NN3 | BU9: NN3 | BV9: NN3 | BW9: NN3 | BX9: NN3 | BY9: NN3 | BZ9: NN3 | CA9: NN3 | CB9: NN3
A10: portugues | B10: 6 | C10: NN4 | D10: NN4 | E10: NN4 | F10: NN4 | G10: NN4 | H10: NN4 | I10: NN4 | J10: NN4 | K10: NN4 | L10: NN4 | M10: NN4 | N10: NN4 | O10: NN4 | P10: NN4 | Q10: NN4 | R10: NN4 | S10: NN4 | T10: NN4 | U10: NN4 | V10: NN4 | W10: NN4 | X10: NN4 | Y10: NN4 | Z10: NN4 | AA10: NN4 | AB10: NN4 | AC10: NN4 | AD10: NN4 | AE10: NN4 | AF10: NN4 | AG10: NN4 | AH10: NN4 | AI10: NN4 | AJ10: NN4 | AK10: NN4 | AL10: NN4 | AM10: NN4 | AN10: NN4 | AO10: NN4 | AP10: NN4 | AQ10: NN4 | AR10: NN4 | AS10: NN4 | AT10: NN4 | AU10: NN4 | AV10: NN4 | AW10: NN4 | AX10: NN4 | AY10: NN4 | AZ10: NN4 | BA10: NN4 | BB10: NN4 | BC10: NN4 | BD10: NN4 | BE10: NN4 | BF10: NN4 | BG10: NN4 | BH10: NN4 | BI10: NN4 | BJ10: NN4 | BK10: NN4 | BL10: NN4 | BM10: NN4 | BN10: NN4 | BO10: NN4 | BP10: NN4 | BQ10: NN4 | BR10: NN4 | BS10: NN4 | BT10: NN4 | BU10: NN4 | BV10: NN4 | BW10: NN4 | BX10: NN4 | BY10: NN4 | BZ10: NN4 | CA10: NN4 | CB10: NN4
A11: mandarin | B11: 7 | C11: NN5 | D11: NN5 | E11: NN5 | F11: NN5 | G11: NN5 | H11: NN5 | I11: NN5 | J11: NN5 | K11: NN5 | L11: NN5 | M11: NN5 | N11: NN5 | O11: NN5 | P11: NN5 | Q11: NN5 | R11: NN5 | S11: NN5 | T11: NN5 | U11: NN5 | V11: NN5 | W11: NN5 | X11: NN5 | Y11: NN5 | Z11: NN5 | AA11: NN5 | AB11: NN5 | AC11: NN5 | AD11: NN5 | AE11: NN5 | AF11: NN5 | AG11: NN5 | AH11: NN5 | AI11: NN5 | AJ11: NN5 | AK11: NN5 | AL11: NN5 | AM11: NN5 | AN11: NN5 | AO11: NN5 | AP11: NN5 | AQ11: NN5 | AR11: NN5 | AS11: NN5 | AT11: NN5 | AU11: NN5 | AV11: NN5 | AW11: NN5 | AX11: NN5 | AY11: NN5 | AZ11: NN5 | BA11: NN5 | BB11: NN5 | BC11: NN5 | BD11: NN5 | BE11: NN5 | BF11: NN5 | BG11: NN5 | BH11: NN5 | BI11: NN5 | BJ11: NN5 | BK11: NN5 | BL11: NN5 | BM11: NN5 | BN11: NN5 | BO11: NN5 | BP11: NN5 | BQ11: NN5 | BR11: NN5 | BS11: NN5 | BT11: NN5 | BU11: NN5 | BV11: NN5 | BW11: NN5 | BX11: NN5 | BY11: NN5 | BZ11: NN5 | CA11: NN5 | CB11: NN5
A12: hindi | B12: 8 | C12: NN6 | D12: NN6 | E12: NN6 | F12: NN6 | G12: NN6 | H12: NN6 | I12: NN6 | J12: NN6 | K12: NN6 | L12: NN6 | M12: NN6 | N12: NN6 | O12: NN6 | P12: NN6 | Q12: NN6 | R12: NN6 | S12: NN6 | T12: NN6 | U12: NN6 | V12: NN6 | W12: NN6 | X12: NN6 | Y12: NN6 | Z12: NN6 | AA12: NN6 | AB12: NN6 | AC12: NN6 | AD12: NN6 | AE12: NN6 | AF12: NN6 | AG12: NN6 | AH12: NN6 | AI12: NN6 | AJ12: NN6 | AK12: NN6 | AL12: NN6 | AM12: NN6 | AN12: NN6 | AO12: NN6 | AP12: NN6 | AQ12: NN6 | AR12: NN6 | AS12: NN6 | AT12: NN6 | AU12: NN6 | AV12: NN6 | AW12: NN6 | AX12: NN6 | AY12: NN6 | AZ12: NN6 | BA12: NN6 | BB12: NN6 | BC12: NN6 | BD12: NN6 | BE12: NN6 | BF12: NN6 | BG12: NN6 | BH12: NN6 | BI12: NN6 | BJ12: NN6 | BK12: NN6 | BL12: NN6 | BM12: NN6 | BN12: NN6 | BO12: NN6 | BP12: NN6 | BQ12: NN6 | BR12: NN6 | BS12: NN6 | BT12: NN6 | BU12: NN6 | BV12: NN6 | BW12: NN6 | BX12: NN6 | BY12: NN6 | BZ12: NN6 | CA12: NN6 | CB12: NN6
A13: arabe | B13: 9 | C13: NN7 | D13: NN7 | E13: NN7 | F13: NN7 | G13: NN7 | H13: NN7 | I13: NN7 | J13: NN7 | K13: NN7 | L13: NN7 | M13: NN7 | N13: NN7 | O13: NN7 | P13: NN7 | Q13: NN7 | R13: NN7 | S13: NN7 | T13: NN7 | U13: NN7 | V13: NN7 | W13: NN7 | X13: NN7 | Y13: NN7 | Z13: NN7 | AA13: NN7 | AB13: NN7 | AC13: NN7 | AD13: NN7 | AE13: NN7 | AF13: NN7 | AG13: NN7 | AH13: NN7 | AI13: NN7 | AJ13: NN7 | AK13: NN7 | AL13: NN7 | AM13: NN7 | AN13: NN7 | AO13: NN7 | AP13: NN7 | AQ13: NN7 | AR13: NN7 | AS13: NN7 | AT13: NN7 | AU13: NN7 | AV13: NN7 | AW13: NN7 | AX13: NN7 | AY13: NN7 | AZ13: NN7 | BA13: NN7 | BB13: NN7 | BC13: NN7 | BD13: NN7 | BE13: NN7 | BF13: NN7 | BG13: NN7 | BH13: NN7 | BI13: NN7 | BJ13: NN7 | BK13: NN7 | BL13: NN7 | BM13: NN7 | BN13: NN7 | BO13: NN7 | BP13: NN7 | BQ13: NN7 | BR13: NN7 | BS13: NN7 | BT13: NN7 | BU13: NN7 | BV13: NN7 | BW13: NN7 | BX13: NN7 | BY13: NN7 | BZ13: NN7 | CA13: NN7 | CB13: NN7
A14: NN8 | B14: 10 | C14: NN8 | D14: NN8 | E14: NN8 | F14: NN8 | G14: NN8 | H14: NN8 | I14: NN8 | J14: NN8 | K14: NN8 | L14: NN8 | M14: NN8 | N14: NN8 | O14: NN8 | P14: NN8 | Q14: NN8 | R14: NN8 | S14: NN8 | T14: NN8 | U14: NN8 | V14: NN8 | W14: NN8 | X14: NN8 | Y14: NN8 | Z14: NN8 | AA14: NN8 | AB14: NN8 | AC14: NN8 | AD14: NN8 | AE14: NN8 | AF14: NN8 | AG14: NN8 | AH14: NN8 | AI14: NN8 | AJ14: NN8 | AK14: NN8 | AL14: NN8 | AM14: NN8 | AN14: NN8 | AO14: NN8 | AP14: NN8 | AQ14: NN8 | AR14: NN8 | AS14: NN8 | AT14: NN8 | AU14: NN8 | AV14: NN8 | AW14: NN8 | AX14: NN8 | AY14: NN8 | AZ14: NN8 | BA14: NN8 | BB14: NN8 | BC14: NN8 | BD14: NN8 | BE14: NN8 | BF14: NN8 | BG14: NN8 | BH14: NN8 | BI14: NN8 | BJ14: NN8 | BK14: NN8 | BL14: NN8 | BM14: NN8 | BN14: NN8 | BO14: NN8 | BP14: NN8 | BQ14: NN8 | BR14: NN8 | BS14: NN8 | BT14: NN8 | BU14: NN8 | BV14: NN8 | BW14: NN8 | BX14: NN8 | BY14: NN8 | BZ14: NN8 | CA14: NN8 | CB14: NN8
A15: NN9 | B15: 11 | C15: NN9 | D15: NN9 | E15: NN9 | F15: NN9 | G15: NN9 | H15: NN9 | I15: NN9 | J15: NN9 | K15: NN9 | L15: NN9 | M15: NN9 | N15: NN9 | O15: NN9 | P15: NN9 | Q15: NN9 | R15: NN9 | S15: NN9 | T15: NN9 | U15: NN9 | V15: NN9 | W15: NN9 | X15: NN9 | Y15: NN9 | Z15: NN9 | AA15: NN9 | AB15: NN9 | AC15: NN9 | AD15: NN9 | AE15: NN9 | AF15: NN9 | AG15: NN9 | AH15: NN9 | AI15: NN9 | AJ15: NN9 | AK15: NN9 | AL15: NN9 | AM15: NN9 | AN15: NN9 | AO15: NN9 | AP15: NN9 | AQ15: NN9 | AR15: NN9 | AS15: NN9 | AT15: NN9 | AU15: NN9 | AV15: NN9 | AW15: NN9 | AX15: NN9 | AY15: NN9 | AZ15: NN9 | BA15: NN9 | BB15: NN9 | BC15: NN9 | BD15: NN9 | BE15: NN9 | BF15: NN9 | BG15: NN9 | BH15: NN9 | BI15: NN9 | BJ15: NN9 | BK15: NN9 | BL15: NN9 | BM15: NN9 | BN15: NN9 | BO15: NN9 | BP15: NN9 | BQ15: NN9 | BR15: NN9 | BS15: NN9 | BT15: NN9 | BU15: NN9 | BV15: NN9 | BW15: NN9 | BX15: NN9 | BY15: NN9 | BZ15: NN9 | CA15: NN9 | CB15: NN9

Sheet examples
B1: Stichprobe | C1: Y1 | D1: Y2 | E1: Y3 | F1: Y4 | G1: Y5
B2: 1 | C2: 74.03 | D2: 74.002 | E2: 74.019 | F2: 73.992 | G2: 74.008
B3: 2 | C3: 73.995 | D3: 73.992 | E3: 74.001 | F3: 74.011 | G3: 74.004
B4: 3 | C4: 73.988 | D4: 74.024 | E4: 74.021 | F4: 74.005 | G4: 74.002
B5: 4 | C5: 74.002 | D5: 73.996 | E5: 73.993 | F5: 74.015 | G5: 74.009
B6: 5 | C6: 73.992 | D6: 74.007 | E6: 74.015 | F6: 73.989 | G6: 74.014
B7: 6 | C7: 74.009 | D7: 73.994 | E7: 73.997 | F7: 73.985 | G7: 73.993
B8: 7 | C8: 73.995 | D8: 74.006 | E8: 73.994 | F8: 74 | G8: 74.005
B9: 8 | C9: 73.985 | D9: 74.003 | E9: 73.993 | F9: 74.015 | G9: 73.988
B10: 9 | C10: 74.008 | D10: 73.995 | E10: 74.009 | F10: 74.005 | G10: 74.004
B11: 10 | C11: 73.998 | D11: 74 | E11: 73.99 | F11: 74.007 | G11: 73.995
B12: 11 | C12: 73.994 | D12: 73.998 | E12: 73.994 | F12: 73.995 | G12: 73.99
B13: 12 | C13: 74.004 | D13: 74 | E13: 74.007 | F13: 74 | G13: 73.996
B14: 13 | C14: 73.983 | D14: 74.002 | E14: 73.998 | F14: 73.997 | G14: 74.012
B15: 14 | C15: 74.006 | D15: 73.967 | E15: 73.994 | F15: 74 | G15: 73.984
B16: 15 | C16: 74.012 | D16: 74.014 | E16: 73.998 | F16: 73.999 | G16: 74.007
B17: 16 | C17: 74 | D17: 73.984 | E17: 74.005 | F17: 73.998 | G17: 73.996
B18: 17 | C18: 73.994 | D18: 74.012 | E18: 73.986 | F18: 74.005 | G18: 74.007
B19: 18 | C19: 74.006 | D19: 74.01 | E19: 74.018 | F19: 74.003 | G19: 74
B20: 19 | C20: 73.984 | D20: 74.002 | E20: 74.003 | F20: 74.005 | G20: 73.997
B21: 20 | C21: 74 | D21: 74.01 | E21: 74.013 | F21: 74.02 | G21: 74.003
B22: 21 | C22: 73.982 | D22: 74.001 | E22: 74.015 | F22: 74.005 | G22: 73.996
B23: 22 | C23: 74.004 | D23: 73.999 | E23: 73.99 | F23: 74.006 | G23: 74.009
B24: 23 | C24: 74.01 | D24: 73.989 | E24: 73.99 | F24: 74.009 | G24: 74.014
B25: 24 | C25: 74.015 | D25: 74.008 | E25: 73.993 | F25: 74 | G25: 74.01
B26: 25 | C26: 73.982 | D26: 73.984 | E26: 73.995 | F26: 74.017 | G26: 74.013
B27: 26 | C27: 74.03 | D27: 74.002 | E27: 74.019 | F27: 73.992 | G27: 74.008
B28: 27 | C28: 73.995 | D28: 73.992 | E28: 74.001 | F28: 74.011 | G28: 74.004
B29: 28 | C29: 73.988 | D29: 74.024 | E29: 74.021 | F29: 74.005 | G29: 74.002
B30: 29 | C30: 74.002 | D30: 73.996 | E30: 73.993 | F30: 74.015 | G30: 74.009
B31: 30 | C31: 73.992 | D31: 74.007 | E31: 74.015 | F31: 73.989 | G31: 74.014
B32: 31 | C32: 74.009 | D32: 73.994 | E32: 73.997 | F32: 73.985 | G32: 73.993
B33: 32 | C33: 73.995 | D33: 74.006 | E33: 73.994 | F33: 74 | G33: 74.005
B34: 33 | C34: 73.985 | D34: 74.003 | E34: 73.993 | F34: 74.015 | G34: 73.988
B35: 34 | C35: 74.008 | D35: 73.995 | E35: 74.009 | F35: 74.005 | G35: 74.004
B36: 35 | C36: 73.998 | D36: 74 | E36: 73.99 | F36: 74.007 | G36: 73.995
B37: 36 | C37: 73.994 | D37: 73.998 | E37: 73.994 | F37: 73.995 | G37: 73.99
B38: 37 | C38: 74.004 | D38: 74 | E38: 74.007 | F38: 74 | G38: 73.996
B39: 38 | C39: 73.983 | D39: 74.002 | E39: 73.998 | F39: 73.997 | G39: 74.012
B40: 39 | C40: 74.006 | D40: 73.967 | E40: 73.994 | F40: 74 | G40: 73.984
B41: 40 | C41: 74.012 | D41: 74.014 | E41: 73.998 | F41: 73.999 | G41: 74.007
B42: 41 | C42: 74 | D42: 73.984 | E42: 74.005 | F42: 73.998 | G42: 73.996
B43: 42 | C43: 73.994 | D43: 74.012 | E43: 73.986 | F43: 74.005 | G43: 74.007
B44: 43 | C44: 74.006 | D44: 74.01 | E44: 74.018 | F44: 74.003 | G44: 74
B45: 44 | C45: 73.984 | D45: 74.002 | E45: 74.003 | F45: 74.005 | G45: 73.997
B46: 45 | C46: 74 | D46: 74.01 | E46: 74.013 | F46: 74.02 | G46: 74.003
B47: 46 | C47: 73.982 | D47: 74.001 | E47: 74.015 | F47: 74.005 | G47: 73.996
B48: 47 | C48: 74.004 | D48: 73.999 | E48: 73.99 | F48: 74.006 | G48: 74.009
B49: 48 | C49: 74.01 | D49: 73.989 | E49: 73.99 | F49: 74.009 | G49: 74.014
B50: 49 | C50: 74.015 | D50: 74.008 | E50: 73.993 | F50: 74 | G50: 74.01
B51: 50 | C51: 73.982 | D51: 73.984 | E51: 73.995 | F51: 74.017 | G51: 74.013
B54: Stichprobe | C54: Y1 | D54: Y2 | E54: Y3 | F54: Y4 | G54: Y5
B55: 1 | C55: 74.03 | D55: 74.002
B56: 2 | C56: 73.995 | D56: 73.992
B57: 3 | C57: 73.988 | D57: 74.024
B58: 4 | C58: 74.002 | D58: 73.996
B59: 5 | C59: 73.992 | D59: 74.007
B60: 6 | C60: 74.009 | D60: 73.994
B61: 7 | C61: 73.995 | D61: 74.006
B62: 8 | C62: 73.985 | D62: 74.003
B63: 9 | C63: 74.008 | D63: 73.995
B64: 10 | C64: 73.998 | D64: 74
B65: 11 | C65: 73.994 | D65: 73.998
B66: 12 | C66: 74.004 | D66: 74
B67: 13 | C67: 73.983 | D67: 74.002
B68: 14 | C68: 74.006 | D68: 73.967
B69: 15 | C69: 74.012 | D69: 74.014
B70: 16 | C70: 74 | D70: 73.984
B71: 17 | C71: 73.994 | D71: 74.012
B72: 18 | C72: 74.006 | D72: 74.01
B73: 19 | C73: 73.984 | D73: 74.002
B74: 20 | C74: 74 | D74: 74.01
B75: 21 | C75: 73.982 | D75: 74.001
B76: 22 | C76: 74.004 | D76: 73.999
B77: 23 | C77: 74.01 | D77: 73.989
B78: 24 | C78: 74.015 | D78: 74.008
B79: 25 | C79: 73.982 | D79: 73.984
B80: 26 | C80: 74.03 | D80: 74.002
B81: 27 | C81: 73.995 | D81: 73.992
B82: 28 | C82: 73.988 | D82: 74.024
B83: 29 | C83: 74.002 | D83: 73.996
B84: 30 | C84: 73.992 | D84: 74.007
B85: 31 | C85: 74.009 | D85: 73.994
B86: 32 | C86: 73.995 | D86: 74.006
B87: 33 | C87: 73.985 | D87: 74.003
B88: 34 | C88: 74.008 | D88: 73.995
B89: 35 | C89: 73.998 | D89: 74
B90: 36 | C90: 73.994 | D90: 73.998
B91: 37
B92: 38
B93: 39
B94: 40
B95: 41
B96: 42
B97: 43
B98: 44
B99: 45
B100: 46
B101: 47
B102: 48
B103: 49
B104: 50
